Workbook

Sheet Welcome
F3: Cost-effectiveness and return on investment (ROI) of interventions associated with Best Start in Life
E9: Background Ensuring every child has the Best Start in Life is one of PHE's national priorities, as set out in PHE's 2014 priorities document Evidence into Action. This interactive tool has been commissioned by Public Health England (PHE) and developed by Optimity Advisors to support local decision makers. The tool aims to facilitate investment decisions regarding local commissioning of interventions targeted at 0-5 year olds and pregnant women. The tool focuses explicitly on supporting commissioning interventions aimed at the 0-5 age group, rather than the wider 0-19 age group, in response to planning and commissioning of public health services for children aged 0 to 5 being transferred from the NHS to local authorities in October 2015. Given the broad nature of this task, the tool focuses on two areas where there is good economic evidence: • Breastfeeding: reactive and proactive support (1 intervention); enhanced staff contact for underweight children (1 intervention) • Maternal mental health: Interventions aimed at reducing postnatal depression (9 interventions) The interventions included in the tool are not necessarily the best interventions available, but they are those that have the best available evidence of cost-effectiveness, in a usable form for this tool, concerning interventions aimed at our target population. These interventions also complement existing NICE ROI tools currenty available as beta versions:
E26: 1) | F26: The Social and Emotional Wellbeing tool
E27: 2) | F27: The Children and Young People tool
E28: The tool is aimed at facilitating users' commissioning decisions, with users able to select their chosen population, broken down by national, regional and county / unitary authority in England, as well as by local authority, CCG and STP. The tool provides an estimate of return on investment (ROI) and cost-effectiveness of these interventions, using the specific eligible populations for each intervention, of their local population. The model provides conservative estimates of ROI and cost-effectiveness - where assumptions have been made in the model, their basis is described and the more conservative assumption used. Best Start in Life - Evidence This tool has been developed with reference to the best available evidence. A Rapid Evidence Assessment (REA) was conducted to find evidence of cost-effectiveness concerning the outcomes attributed to interventions aimed at providing the best start in life to our target population. Using the tool Further instructions on how to use the tool to estimate the ROI of one or a number of interventions are provided on each page of the tool. The information required by the user of the tool is, at a minimum, the proportion of people allocated to participate in each selected intervention from the eligible population within the selected local area, which is provided. Default values have been provided for all other inputs (e.g. cost of intervention) but these values can be overridden with your chosen information. Please also refer to the worked example in this section for further guidance on how to use these data in this tool. More information on the tool is provided in the accompanying report.

Sheet 1a) Model guide
F7: How to use the tool
F9: Formatting
F11: Dark grey background | H11: Indicates input cells containing default or suggested inputs. This cell is locked and cannot be edited by the user
F13: Gold background | H13: Indicates input cells for custom values. These may be changed should more relevant and/or up-to-date evidence become available.
F15: Plain background | H15: Indicates a formula cell for model calculations', containing 'live' values. These are dependent upon other cells, and should not be changed.
F18: Navigation around the model:
F20: The rectangular buttons along the left allow the user to toggle between each section of the tool (Welcome, Information, Inputs, Results and Charts).
F21: Within each section, the chevron buttons along the top can be used to switch between pages.
F26: Sheets in this tool: | H26: Description of tab content
F28: Population(s) | H28: Eligible population rates, interventions of interest
F29: Pop. & Int._descriptions | H29: No input required by user - In depth descriptions of eligible population and effectiveness metric for all interventions included in the tool
F30: Interventions(s)_BF_Sc1 | H30: Proportion of eligible population and relative effectiveness and costs of selected intervention(s) concerning breastfeeding interventions under Scenario 1
F31: Interventions(s)_PND_Sc1 | H31: Proportion of eligible population and relative effectiveness and costs of selected intervention(s) concerning postnatal depression interventions under Scenario 1
F32: Interventions(s)_Sc2 | H32: Proportion of eligible population and relative effectiveness and costs of selected intervention(s) to be considered in Scenario 2.
F33: Other inputs | H33: Value of QALY, discount rate
F34: Results | H34: Display results of scenario analyses
F35: Packages | H35: Display results for package analyses
F38: Key results terminology
F40: Net benefit | H40: Refers to cost savings from an intervention less intervention cost
F41: QALY | H41: Quality-adjusted life year: A measure of health, whereby 1 QALY equates to 1 year of perfect health (i.e. quality of life 1 on a scale of 0-1)
F42: ICER | H42: Incremental cost-effectiveness ratio: Cost per QALY. If an intervention results in both cost savings and a positive QALY gain vs. a comparator, it is said to be 'dominant'

Sheet 1b) Model steps

Sheet 1c) Example
F10: In this example, a decision maker in Lancaster is considering implementing an intervention to reduce the risk of developing postnatal depression, through redesigned midwifery postnatal care. This decision maker must select what proportion of the population of interest participates in the intervention. In this example, the user selects 10% of their population of interest to participate; 145 people, with all other default figures unchanged. Running this through the tool shows that for a cohort of 145 women participating in this intervention, there is a per-child cost-saving of £458 and QALY gain of 0.079, and a per-mother cost-saving of £111 and QALY gains of 0.048. For the whole cohort of 145 women (plus their corresponding newborn children), this equates to a combined cost saving of £82,291, combined QALY gains of 18.371 (valued at £1.1 million), and a combined net benefit of £65,796 (cost savings less intervention cost). When compared to usual care (i.e. no redesigned midwifery postnatal care), the intervention improves health and saves money, so is said to be 'dominant'. The user also has the option to carry out scenario analyses and package results for the interventions where packaging of interventions is applicable (specifically 3 PND interventions where full economic analysis was undertaken, and 6 PND interventions where more basic analyses, due to data restrictions, were undertaken).

Sheet 1d) Disclaimer
F10: Disclaimer Public Health England (PHE) has provided this tool to aid decision-making and cannot be held liable for any investment or other decisions that are made using information obtained from this tool. The best available evidence has been used in this tool and assumptions have been clearly stated. Acknowledgement We would like to thank every member of the steering group who guided us in the evidence collection and development of the final report: Brian Ferguson (PHE), Panos Zerdevas (formerly PHE), Annalisa Belloni (PHE), Kay Nolan (NICE), Gareth Wrench (PHE), Alison Burton (PHE), Mulroney Lorraine (NHS E), Ben Lewing (EIF), Helen Duncan (PHE), Wendy Nicholson (PHE), Karen Todd (DH), Sally Burlington (LGA), Edward Eaton (DfE) & Scott Mahoney (PHE). Many thanks to all the stakeholders from PHE, including Steph Grey from PHE, who conducted the literature that contributed to the project delivery. Finally, many thanks to Professor Antony Morgan for his advice and contribution in the evidence research and final report. Citation Any analysis based on this tool should acknowledge the use of the tool as follows: Public Health England. Cost-effectiveness and return on investment (ROI) of interventions associated with Best Start in Life. 2017 Published ... PHE publications gateway number: ...

Sheet 1e) Acknowledments (hidden)
F10: Acknowledgements We would like to thank every member of the steering group who guided us in the evidence collection and development of the final report: (names). Many thanks to all the stakeholders from PHE that contributed to the project delivery and the project team at Optimity Advisors. Finally many thanks to Professor Antony Morgan for his advice and contribution in the evidence research and final report.

Sheet Population(s)
F9: Population information
F10: Please select the Local Authority and population of interest
F11: Area type | G11: =IF(region="","Please select area type","") -> Please select area type | I11: dropdown
F12: Chosen Area | G12: =IF($H$12="","Please select chosen area","") -> Please select chosen area | I12: dropdown
G14: Default | H14: Custom | I14: Live
F15: Total population | G15: =IF(OR($H$12="",region=""),"",IFERROR(INDEX(Live_Births,MATCH($H$12,Live_Births_Area,0),MATCH($F$15,Live_Births_headings,0))*1000,INDEX(CCG_to_STP,MATCH($H$12,CCG_to_STP_areas,0),MATCH($F$15,CCG_to_STP_headings,0)))) ->  | I15: =IF(H15="",G15,H15) -> 
F17: For all interventions included in the tool, the high-level population of interest, the mother and child dyad, is proxied by the number of live births per year. Default figures for each population of interest for your above selected Area of interest, have been provided below. These figures can be overridden by entering updated figures for your population of interest in the custom boxes below.
G19: Default | H19: Custom | I19: Live
F20: Total (live births) | G20: =IF($H$12="","",IFERROR(INDEX(Live_Births,MATCH($H$12,Live_Births_Area,0),MATCH($F$20,Live_Births_headings,0)),INDEX(CCG_to_STP,MATCH($H$12,CCG_to_STP_areas,0),MATCH($F$20,CCG_to_STP_headings,0)))) ->  | I20: =IF(H20="",G20,H20) -> 
F21: Percentage live births as a proportion of total population | I21: =IFERROR(I20/$I$15,"") -> 
F23: This tool has 2 intervention group types, namely: • Breastfeeding • Maternal mental health Below are a list of relevant sub-populations for the 2 intervention types considered in the tool.
F25: The below tables provide default subpopulation data for your selected area of interest, as a proportion of live births. These figures can be overridden by entering updated figures for your population of interest in the custom boxes below.
F27: Breastfeeding:
F28: With regards to the breastfeeding interventions included in the tool, there are two differing sub-population of interest groups: • Women living in a deprived area (1 intervention) • Number/proportion of live underweight births (1 intervention) For the first group of interventions, the number of mothers living in deprived areas, taken from ONS data on the index of multiple deprivation for England. The level of deprivation was split into quintiles and we took the first 3 quintiles, where 1 is the most deprived, for our target population. This is following the same methodology as reported in the paper from which this intervention is drawn from. Breastfeeding prevalence rates taken from ONS birth characteristics data, disaggregated by breastfeeding patterns, are provided. For the second group of interventions, the proportions of underweight children, drawn from ONS Birth Cohort Tables for infant deaths in England and Wales (2014), in 3 weight bands, are provided.
F30: Eligible population | G30: Default | H30: Custom | I30: Live
F31: Proportion of women living in a deprived area (15-50) England | G31: =IF($H$12="","",VLOOKUP(F31,Prevalence_data,2,0)) ->  | I31: =IF(H31="",G31,H31) -> 
F32: Number of mothers living in a deprived area (15-50) England (as a proportion of live births) | I32: =IFERROR(I31*I20,"") -> 
F34: The below table provides national breastfeeding prevalence rates at 6-8 weeks after birth, which are provided as default values. These figures can be overridden by entering the proportion for your population of interest in the custom, boxes below.
G35: Default | H35: Custom | I35: Live
F36: Women that do not breastfeed | G36: =IF($H$12="","",VLOOKUP(F36,Prevalence_data,2,0)) ->  | I36: =IF(H36="",G36,H36) -> 
F37: Number of women that do not breastfeed | I37: =IFERROR(I36*$I$20,"") -> 
F38: *Note default figures taken from the 2015/2016 Experimental Statistics annual data.
F40: Eligible population | G40: Default | H40: Custom | I40: Live
F41: Proportion live births 500-999g | G41: =IF($H$12="","",IFERROR(INDEX(Underweight_Live_births,MATCH($H$12,Underweight_live_births_area,0),MATCH($F$41,Underweight_live_births_headings,0)),INDEX(CCG_to_STP,MATCH($H$12,CCG_to_STP_areas,0),MATCH($F$41,CCG_to_STP_headings,0)))) ->  | I41: =IF(H41="",G41,H41) -> 
F42: No. of children weighing 500-999g | I42: =IFERROR(I41*$I$20,"") -> 
F43: Proportion live births 1000-1749g | G43: =IF($H$12="","",IFERROR(INDEX(Underweight_Live_births,MATCH($H$12,Underweight_live_births_area,0),MATCH($F$43,Underweight_live_births_headings,0)),INDEX(CCG_to_STP,MATCH($H$12,CCG_to_STP_areas,0),MATCH($F$43,CCG_to_STP_headings,0)))) ->  | I43: =IF(H43="",G43,H43) -> 
F44: No. of children weighing 1000-1749g | I44: =IFERROR(I43*$I$20,"") -> 
F45: Proportion live births 1750-2499g | G45: =IF($H$12="","",IFERROR(INDEX(Underweight_Live_births,MATCH($H$12,Underweight_live_births_area,0),MATCH($F$45,Underweight_live_births_headings,0)),INDEX(CCG_to_STP,MATCH($H$12,CCG_to_STP_areas,0),MATCH($F$45,CCG_to_STP_headings,0)))) ->  | I45: =IF(H45="",G45,H45) -> 
F46: No. of children weighing 1750-2499g | I46: =IFERROR(I45*$I$20,"") -> 
F50: Maternal Mental Health
F51: With regards to the Maternal Mental health interventions included in the tool, there are two differing sub-population of interest groups: • Women with / at risk of postnatal depression - targeted interventions (4 interventions) • Universal interventions targeting postnatal depression (5 interventions) For both groups of interventions, the proportion of mothers are provided for the selected area of interest and default prevalence data is as provided by Morrell (2016), the paper from which these interventions are drawn. Please note that it has been suggested from various sources this figure can be between 7% and 20% (e.g. LSE / PSSRU suggest a prevalence rate of between 10% - 20% of a women developing a mental health condition during pregnancy or within the first year after birth (source: Bauer A, Parsonage M, Knapp M, Iemmi V, Adelaja B. 2014. Costs of perinatal mental health problems.))
F53: Eligible population | G53: Default | H53: Custom | I53: Live
F54: Proportion of women at risk of PND | G54: =IF($H$12="","",VLOOKUP(F54,Prevalence_data,2,0)) ->  | I54: =IF(H54="",G54,H54) -> 
F55: Number of women at risk PND | I55: =IFERROR(I54*$I$20,"") -> 
F56: *please note default proportions for at risk women is equal to women with PND due to lack of data availability around women at risk of postnatal depression.

Sheet Pop. & Int._descriptions
G9: Intervention and eligible population descriptions
G11: Intervention name | H11: Description | I11: Eligible population description | J11: Effectiveness measure/metric | K11: Effectiveness description | L11: Relevant paper
G12: ='Intervention(s)_Sc2'!H24 -> Breastfeeding support: Proactive and Reactive call, daily, for 1 week following hospital discharge. Exclusive breast feeding | H12: =INDEX(Intervention_info,MATCH($G12,Intervention_name,0),MATCH(H$11,Intervention_info_headings,0)) -> Intervention: Proactive telephone calls daily for 1 week following hospital discharge by a specialised feeding team on a postnatal ward. Calls terminated at the woman’s request or if breast feeding ceased. At 1 week following discharge, women could choose to continue receiving daily calls for a further week, change the frequency of calls or have no further calls. Women could telephone the feeding team at any point over the 2 weeks following discharge. Text and answer phone messaging was available. All proactive calls stopped 14 days after hospital discharge Control: Reactive telephone calls - women could telephone the feeding team at any point over the 2 weeks following discharge. Text and answer phone messaging was available NB: Cost Year = 2009 / 2010 | I12: women from deprived areas (Index of Multiple Deprivation (IMD) for England, 1-3) and were breastfeeding at hospital discharge | J12: Breastfeeding uptake, QALYs to mother and child | K12: =INDEX(Intervention_info,MATCH($G12,Intervention_name,0),MATCH(K$11,Intervention_info_headings,0)) -> Exclusive breastfeeding at 6-8 weeks after hospital discharge, percentage increase from baseline with no intervention. Information provided in this paper was linked to three reports; Renfrew (2012), Pokhrel et. al. (2014) & Victora (2016) to allow for calculations to estimate cost-savings and QALY gains for the mother-child dyad. | L12: Hoddinott P, Craig L, Maclennan G, Boyers D, Vale L. The FEeding Support Team (FEST) randomised, controlled feasibility trial of proactive and reactive telephone support for breastfeeding women living in disadvantaged areas. BMJ open. 2012 Jan 1;2(2):e000652.
G13: ='Intervention(s)_Sc2'!H25 -> Enhanced staff contact (500-999g) | H13: =INDEX(Intervention_info,MATCH($G13,Intervention_name,0),MATCH(H$11,Intervention_info_headings,0)) -> Intervention taken from an economic model that uses the findings of a systematic review - i.e. the intervention is not clearly defined Intervention: enhanced staff contact – the addition of specially trained staff, who would be available to advise and support mothers on milk expression and breastfeeding. The intervention is termed broadly as Enhanced Staff contact and includes lactation support at children's hospital neonatal intensive care unit. 45 minutes of specially trained staff time + 2.5 hours of additional staff contact Control: normal staff contact – that is to say, no addition of specially trained staff. NB: Cost Year = 2006 / 2007 | I13: Mothers with infants in neonatal units with infants born underweight: infants were premature (ie, < 37 weeks’ gestation) or low birth weight (≤ 2500 g) subgroups were: 500–999 g; | J13: QALYs to child | K13: Child QALY gains The clinical outcomes of interest were sepsis, confirmed NEC (necrotising enterocolitis) and mortality. The clinical outcomes were aggregated and measured in QALYs over lifetime: incidence NEC (stage II and III) and its secondary effects (mortality, long-term disability) and incidence of sepsis and its secondary effects (mortality, long-term disability) | L13: Renfrew MJ, Craig D, Dyson L, McCormick F, Rice S, King SE, Misso K, Stenhouse E, Williams AF. Breastfeeding promotion for infants in neonatal units: a systematic review and economic analysis.
G14: ='Intervention(s)_Sc2'!H26 -> Enhanced staff contact (1000-1749g) | H14: Intervention taken from an economic model that uses the findings of a systematic review - i.e. the intervention is not clearly defined Intervention: enhanced staff contact – the addition of specially trained staff, who would be available to advise and support mothers on milk expression and breastfeeding. The intervention is termed broadly as Enhanced Staff contact and includes lactation support at children's hospital neonatal intensive care unit. 45 minutes of specially trained staff time + 2.5 hours of additional staff contact Control: normal staff contact – that is to say, no addition of specially trained staff. NB: Cost Year = 2006 / 2007 | I14: Mothers with infants in neonatal units with infants born underweight: infants were premature (ie, < 37 weeks’ gestation) or low birth weight (≤ 2500 g) subgroups were: 1000–1749 g; | J14: QALYs to child | K14: Child QALY gains The clinical outcomes of interest were sepsis, confirmed NEC (necrotising enterocolitis) and mortality. The clinical outcomes were aggregated and measured in QALYs over lifetime: incidence NEC (stage II and III) and its secondary effects (mortality, long-term disability) and incidence of sepsis and its secondary effects (mortality, long-term disability) | L14: Renfrew MJ, Craig D, Dyson L, McCormick F, Rice S, King SE, Misso K, Stenhouse E, Williams AF. Breastfeeding promotion for infants in neonatal units: a systematic review and economic analysis.
G15: ='Intervention(s)_Sc2'!H27 -> Enhanced staff contact (1750-2500g) | H15: Intervention taken from an economic model that uses the findings of a systematic review - i.e. the intervention is not clearly defined Intervention: enhanced staff contact – the addition of specially trained staff, who would be available to advise and support mothers on milk expression and breastfeeding. The intervention is termed broadly as Enhanced Staff contact and includes lactation support at children's hospital neonatal intensive care unit. 45 minutes of specially trained staff time + 2.5 hours of additional staff contact Control: normal staff contact – that is to say, no addition of specially trained staff. NB: Cost Year = 2006 / 2007 | I15: Mothers with infants in neonatal units with infants born underweight: infants were premature (ie, < 37 weeks’ gestation) or low birth weight (≤ 2500 g) subgroups were: 1750–2500 g | J15: QALYs to child | K15: Child QALY gains The clinical outcomes of interest were sepsis, confirmed NEC (necrotising enterocolitis) and mortality. The clinical outcomes were aggregated and measured in QALYs over lifetime: incidence NEC (stage II and III) and its secondary effects (mortality, long-term disability) and incidence of sepsis and its secondary effects (mortality, long-term disability) | L15: Renfrew MJ, Craig D, Dyson L, McCormick F, Rice S, King SE, Misso K, Stenhouse E, Williams AF. Breastfeeding promotion for infants in neonatal units: a systematic review and economic analysis.
G16: ='Intervention(s)_Sc2'!H37 -> Midwifery redesigned postnatal care; Universal | H16: Redesigned midwifery-led community postnatal care Changes to postnatal care to systematic identification and management of women's health problems MacArthur, 2003 The comparator is usual care. NB: Cost Year = 2012 / 2013 | I16: universal | J16: QALYs to mother and child | K16: post partum depression as measured 8 weeks postpartum (but maintained at 12 weeks), >=13 in Edinburgh Postnatal Depression Scale (EPDS) score (change in incidence) Information regarding the interventions from this review was linked to the Bauer et al. report to allow for calculations to estimate cost-savings and QALY gains. | L16: Morrell CJ, Warner R, Slade P, Dixon S, Walters S, Paley G, Brugha T. Psychological interventions for postnatal depression: cluster randomised trial and economic evaluation. The PoNDER trial. Health Technol Assess. 2009 Jun 1;13(30):1-53.
G17: ='Intervention(s)_Sc2'!H38 -> Peer Support Intervention for Prevention of Postpartum Depression; Selective | H17: Proactive individualised telephone based peer (mother to mother) support, initiated within 48-72 hours of randomisation, provided by a volunteer recruited from the community who had previously experienced and recovered from self reported postnatal depression and attended a four hour training session The comparator is usual care. NB: Cost Year = 2012 / 2013 | I17: mothers at risk of PND ~ >9 in Edinburgh Postnatal Depression Scale (EPDS) | J17: QALYs to mother and child | K17: post partum depression as measured 12 weeks postpartum, >12 in Edinburgh Postnatal Depression Scale (EPDS) score (incidence) Information regarding the interventions from this review was linked to the Bauer et al. report to allow for calculations to estimate cost-savings and QALY gains. | L17: Morrell CJ, Warner R, Slade P, Dixon S, Walters S, Paley G, Brugha T. Psychological interventions for postnatal depression: cluster randomised trial and economic evaluation. The PoNDER trial. Health Technol Assess. 2009 Jun 1;13(30):1-53.
G18: ='Intervention(s)_Sc2'!H39 -> Group physical therapy exercises; Universal | H18: 8-week programme of 1 hour of group physical therapy exercises given by a physical therapist and a 30-minute education session delivered by health-care professionals each week. The comparator is usual care. NB: Cost Year = 2012 / 2013 | I18: universal | J18: QALYs to mother and child | K18: post partum depression as measured 8 weeks postpartum (but maintained at 12 weeks), >=13 in Edinburgh Postnatal Depression Scale (EPDS) score (change in incidence) Information regarding the interventions from this review was linked to the Bauer et al. report to allow for calculations to estimate cost-savings and QALY gains. | L18: Morrell CJ, Warner R, Slade P, Dixon S, Walters S, Paley G, Brugha T. Psychological interventions for postnatal depression: cluster randomised trial and economic evaluation. The PoNDER trial. Health Technol Assess. 2009 Jun 1;13(30):1-53.
G19: ='Intervention(s)_Sc2'!H48 -> Booklet on PND; Universal | H19: An educational pamphlet ‘Why is everyone happy but me?’ mailed at 4-weeks postpartum, that explained the symptoms of PPD and identified local services for PPD, Sealy, 2009 The comparator is usual care. NB: Cost Year = 2012 / 2013 | I19: universal | J19: QALYs to mother | K19: QALYs gained - data from the Convergence Diagnostic and Output Analysis (CODA) samples generated from the NMA of Edinburgh Postnatal Depression Scale (EPDS) values. 1-year time horizon There was not enough information available to calculate cost-savings for this intervention. | L19: Morrell CJ, Warner R, Slade P, Dixon S, Walters S, Paley G, Brugha T. Psychological interventions for postnatal depression: cluster randomised trial and economic evaluation. The PoNDER trial. Health Technol Assess. 2009 Jun 1;13(30):1-53.
G20: ='Intervention(s)_Sc2'!H49 -> Early contact with care provider; Universal | H20: A postnatal check-up with a GP 1 week after hospital discharge Changing the 6-week GP appointment to a 1-week appointment (assumes all women still have 6-week appointment in addition) - Gunn, 1998 The comparator is usual care. NB: Cost Year = 2012 / 2013 | I20: universal | J20: QALYs to mother | K20: QALYs gained - data from the Convergence Diagnostic and Output Analysis (CODA) samples generated from the NMA of Edinburgh Postnatal Depression Scale (EPDS) values. 1-year time horizon There was not enough information available to calculate cost-savings for this intervention. | L20: Morrell CJ, Warner R, Slade P, Dixon S, Walters S, Paley G, Brugha T. Psychological interventions for postnatal depression: cluster randomised trial and economic evaluation. The PoNDER trial. Health Technol Assess. 2009 Jun 1;13(30):1-53.
G21: ='Intervention(s)_Sc2'!H50 -> Calcium; Universal | H21: 2000 mg of elemental calcium per day during pregnancy Women prescribed 1000mg of calcium twice a day between 11 and 21 weeks' gestation until birth Harrison-Hohner, 2001 The comparator is usual care. NB: Cost Year = 2012 / 2013 | I21: universal | J21: QALYs to mother | K21: QALYs gained - data from the Convergence Diagnostic and Output Analysis (CODA) samples generated from the NMA of Edinburgh Postnatal Depression Scale (EPDS) values. 1-year time horizon There was not enough information available to calculate cost-savings for this intervention. | L21: Morrell CJ, Warner R, Slade P, Dixon S, Walters S, Paley G, Brugha T. Psychological interventions for postnatal depression: cluster randomised trial and economic evaluation. The PoNDER trial. Health Technol Assess. 2009 Jun 1;13(30):1-53.
G22: ='Intervention(s)_Sc2'!H51 -> CBT-based intervention; Selective | H22: 1-hour prevention session between 2 and 5 days postnatally given by master level psychology students, Barnes 2009 The comparator is usual care. NB: Cost Year = 2012 / 2013 | I22: selective, women scoring 9+ on the Social Disadvantage Screening Index and accepting the offer to participate | J22: QALYs to mother | K22: QALYs gained - data from the Convergence Diagnostic and Output Analysis (CODA) samples generated from the NMA of Edinburgh Postnatal Depression Scale (EPDS) values. 1-year time horizon There was not enough information available to calculate cost-savings for this intervention. | L22: Morrell CJ, Sutcliffe P, Booth A, Stevens J, Scope A, Stevenson M, Harvey R, Bessey A, Cantrell A, Dennis CL, Ren S. A systematic review, evidence synthesis and meta-analysis of quantitative and qualitative studies evaluating the clinical effectiveness, the cost-effectiveness, safety and acceptability of interventions to prevent postnatal depression. Health Technology Assessment. 2016;20(37).
G23: ='Intervention(s)_Sc2'!H52 -> Education on preparing for parenting; Selective | H23: A twin midwife advisor, invitation to attend a series of education sessions, additional home visits and attendance at an antenatal twin clinic for women with twins, Sen, 2006 Used for econ modelling: Four additional classes, run by midwives, nurse/psychologist, psychologist, Sen 2006 One individual visit prenatal and postnatal, five antenatal group sessions lasting 2 hours, Zlotnick, 2011 The comparator is usual care. NB: Cost Year = 2012 / 2013 | I23: selective Sen: women with twins Zlotnick: low-income pregnant women with recent intimate partner violence (IPV). | J23: QALYs to mother | K23: QALYs gained - data from the Convergence Diagnostic and Output Analysis (CODA) samples generated from the NMA of Edinburgh Postnatal Depression Scale (EPDS) values. 1-year time horizon There was not enough information available to calculate cost-savings for this intervention. | L23: Morrell CJ, Sutcliffe P, Booth A, Stevens J, Scope A, Stevenson M, Harvey R, Bessey A, Cantrell A, Dennis CL, Ren S. A systematic review, evidence synthesis and meta-analysis of quantitative and qualitative studies evaluating the clinical effectiveness, the cost-effectiveness, safety and acceptability of interventions to prevent postnatal depression. Health Technology Assessment. 2016;20(37).
G24: ='Intervention(s)_Sc2'!H53 -> IPT-based intervention; Selective | H24: Five individual 1-hour sessions - provided by study interventionists, Chabrol, 2002 The comparator is usual care. NB: Cost Year = 2012 / 2013 | I24: selective Mothers at risk (N = 258) (Edinburgh Postnatal Depression Scale (EPDS) scores [ges ]9) | J24: QALYs to mother | K24: QALYs gained - data from the Convergence Diagnostic and Output Analysis (CODA) samples generated from the NMA of Edinburgh Postnatal Depression Scale (EPDS) values. 1-year time horizon There was not enough information available to calculate cost-savings for this intervention. | L24: Morrell CJ, Sutcliffe P, Booth A, Stevens J, Scope A, Stevenson M, Harvey R, Bessey A, Cantrell A, Dennis CL, Ren S. A systematic review, evidence synthesis and meta-analysis of quantitative and qualitative studies evaluating the clinical effectiveness, the cost-effectiveness, safety and acceptability of interventions to prevent postnatal depression. Health Technology Assessment. 2016;20(37).
G29: References
G30: Renfrew 2012 | H30: Renfrew, M.J., Pokhrel, S., Quigley, M., McCormick, F., Fox-Rushby, J., Dodds, R. et al. 2012 [cited 28 July 2017] Preventing disease and saving resources: the potential contribution of increasing breastfeeding rates in the UK. Available from http://dspace.brunel.ac.uk/bitstream/2438/10266/1/Fulltext.pdf
G31: Pokhrel 2014 | H31: Pokhrel, S., Quigley, M.A., Fox-Rushby, J., McCormick, F., Williams, A., Trueman, P. et al. 2015. Potential economic impacts from improving breastfeeding rates in the UK. Arch Dis Child 100; 334-340.
G32: Victora 2016 | H32: Victora, C.G., Bahl, R., Barros A.J.D., França, G.V.A., Horton, S., Krasevec, J. et al. 2016. Breastfeeding in the 21st century: epidemiology, mechanisms, and lifelong effect. Lancet 387: 475-90
G33: Bauer | H33: Bauer, A., Parsonage, M., Knapp, M., Iemmi, V. and Adelaja, B. [cited 28 July 2017] The costs of perinatal mental health problems. LSE Personal Social Services Research Unit & Centre for Mental Health. Available from https://www.centreformentalhealth.org.uk/Handlers/Download.ashx?IDMF=07afd94b-92cb-4e47-8439-94cbf43548d8

Sheet Intervention(s)_BF_Sc1
G8: BREASTFEEDING: SCENARIO 1
G9: This sheet is used to set up scenario 1 for the breastfeeding interventions, which can then be compared against a 'do nothing' scenario, and another custom scenario (scenario 2)
G11: =IF(OR($H$13="",$H$14=""),"Please go to 'Population(s) sheet and select area type and chosen area","") -> Please go to 'Population(s) sheet and select area type and chosen area
G12: Population of the selected Local Authority (from previous sheet)
G13: Area type | H13: =IF('Population(s)'!$H$11="","",'Population(s)'!$H$11) -> 
G14: Chosen Area | H14: =IF('Population(s)'!$H$12="","",'Population(s)'!$H$12) -> 
G16: Please note that the below costs and effectiveness measures are incremental. The user must therefore input the increased (or decreased) cost of the intervention when compared to care as usual and the increase (or decrease) in effectiveness of the intervention, when compared to care as usual. Please take note of what the effectiveness measure is for each intervention
G18: Breastfeeding Interventions:
G22: ='Data extraction_Sc1'!C5 -> Breastfeeding support: Proactive and Reactive call, daily, for 1 week following hospital discharge. Exclusive breast feeding
G23: Eligible population & description: | H23: ='Data extraction_Sc1'!G5 -> women from deprived areas (Index of Multiple Deprivation (IMD) for England, 1-3) and were breastfeeding at hospital discharge
G24: Effectiveness description: | H24: ='Data extraction_Sc1'!K5 -> Exclusive breastfeeding at 6-8 weeks after hospital discharge, percentage increase from baseline with no intervention. Information provided in this paper was linked to three reports; Renfrew (2012), Pokhrel et. al. (2014) & Victora (2016) to allow for calculations to estimate cost-savings and QALY gains for the mother-child dyad.
G25: Eligible population (from 'Population(s) sheet)
H26: Proportion: | I26: Number: | J26: Select intervention? | K26: Please select whether you want to include this intervention in your analysis.
G27: Mothers living in a deprived area (16-50) England | H27: ='Population(s)'!$I$31 ->  | I27: ='Population(s)'!$I$32 ->  | K27: dropdown
G28: Discount rate (health benefits) | H28: 0.015 | J28: =IF(I28="",H28,I28) -> 0.015
G29: *Please set the discount rate to 0% to see undiscounted results.
H30: Default | I30: Custom | J30: Live
G31: % allocated to intervention | J31: =IF(OR(J27="",J27="no"),"",I31) ->  | K31: =IF(AND(I31="",J27="yes"),"please enter the percentage of people allocated to the intervention","") -> 
G32: No. allocated to intervention | J32: =IF(OR(J27="",J27="no",I27=""),"",J31*I27) -> 
G33: Cost of intervention | H33: =IF(OR(J27="",J27="no"),"",INDEX(Intervention_info,MATCH($G22,Intervention_name,0),MATCH(G33,Intervention_info_headings,0))) ->  | J33: =IF(I33="",H33,I33) -> 
G34: Effectiveness | H34: =IF(OR(J27="",J27="no"),"",'Data extraction_Sc1'!$N$5/'Data extraction_Sc1'!$L$5) ->  | J34: =IF(I34="",H34,I34) -> 
G35: *note: default incremental cost of intervention uplifted to 2016/2017 prices
G38: =CONCATENATE('Data extraction_Sc1'!C6,", ",'Data extraction_Sc1'!C7,", ", 'Data extraction_Sc1'!C8) -> Enhanced staff contact (500-999g), Enhanced staff contact (1000-1749g), Enhanced staff contact (1750-2500g)
G39: Eligible population & description: | H39: ='Data extraction_Sc1'!G6 -> Mothers with infants in neonatal units with infants born underweight: infants were premature (ie, < 37 weeks’ gestation) or low birth weight (≤ 2500 g) subgroups were: 500–999 g;
G40: Effectiveness description: | H40: ='Data extraction_Sc1'!K6 -> Child QALY gains The clinical outcomes of interest were sepsis, confirmed NEC (necrotising enterocolitis) and mortality. The clinical outcomes were aggregated and measured in QALYs over lifetime: incidence NEC (stage II and III) and its secondary effects (mortality, long-term disability) and incidence of sepsis and its secondary effects (mortality, long-term disability)
G41: Eligible population (from 'Population(s) sheet)
H42: Proportion: | I42: Number: | J42: Select intervention? | K42: Please select whether you want to include this intervention in your analysis.
F43: Enhanced staff contact (500-999g) | G43: Live births (500-999g) | H43: ='Population(s)'!I41 ->  | I43: ='Population(s)'!I42 -> 
F44: Enhanced staff contact (1000-1749g) | G44: Live births (1000-1749g) | H44: ='Population(s)'!I43 ->  | I44: ='Population(s)'!I44 -> 
F45: Enhanced staff contact (1750-2500g) | G45: Live births (1750-2499g) | H45: ='Population(s)'!I45 ->  | I45: ='Population(s)'!I46 ->  | K45: dropdown
G46: *Please note that there was not enough data for a user adjusted discount rate for costs and benefits. The discount rate applied to these interventions is 3.5%, the rate applied to the Renfrew (2009) report, of which the this intervention is drawn.
H47: Default | I47: Custom | J47: Live
G48: % allocated to intervention | J48: =IF(OR(J43="",J43="no"),"",I48) ->  | K48: =IF(AND(I48="",J43="yes"),"please enter the percentage of people allocated to the intervention","") -> 
G49: No. allocated to intervention | J49: =IF(OR(J43="",J43="no",I43=""),"",SUM($I$43:$I$45)*J48) -> 
G50: Cost of intervention | H50: =IF(OR(J43="",J43="no"),"",'Data extraction_Sc1'!J6) ->  | J50: =IF(I50="",H50,I50) -> 
F51: Incremental effectiveness | G51: Effectiveness - QALY gain (500-999g) | H51: =IF(OR(J43="",J43="no"),"",'Data extraction_Sc1'!N6) ->  | J51: =IF(I51="",H51,I51) ->  | K51: Please note that for this intervention, effectiveness refers to the final QALY gain, rather than the increased uptake in breastfeeding
F52: Incremental effectiveness | G52: Effectiveness - QALY gain (1000-1749g) | H52: =IF(OR(J43="",J43="no"),"",'Data extraction_Sc1'!N7) ->  | J52: =IF(I52="",H52,I52) -> 
F53: Incremental effectiveness | G53: Effectiveness - QALY gain (1750-2499g) | H53: =IF(OR(J43="",J43="no"),"",'Data extraction_Sc1'!N8) ->  | J53: =IF(I53="",H53,I53) -> 
G54: *note: default incremental cost of intervention uplifted to 2016/2017 prices

Sheet Intervention(s)_PND_Sc1
G8: POSTNATAL DEPRESSION: SCENARIO 1
G9: This sheet is used to set up scenario 1 for the postnatal depression interventions, which can then be compared against a 'do nothing' (i.e. no interventions over and above usual care) scenario, and another custom scenario (scenario 2)
G11: =IF(OR($H$13="",$H$14=""),"Please go to 'Population(s) sheet and select area type and chosen area","") -> Please go to 'Population(s) sheet and select area type and chosen area
G12: Population of the selected Local Authority (from previous sheet)
G13: Area type | H13: =IF('Population(s)'!$H$11="","",'Population(s)'!$H$11) -> 
G14: Chosen Area | H14: =IF('Population(s)'!$H$12="","",'Population(s)'!$H$12) -> 
G16: Please note that the below costs and effectiveness measures are incremental. The user must therefore input the increased (or decreased) cost of the intervention when compared to care as usual and the increase (or decrease) in effectiveness of the effectiveness of the intervention, when compared to care as usual. Please take note of what the effectiveness measure is for each intervention.
G18: Postnatal depression interventions_full
G20: The below 3 interventions have enough information to be fully analysed, allowing the user to change the incremental cost and effectiveness of the intervention. Please note that there was not enough data for a user adjusted discount rate for costs and benefits for the following interventions. The discount rate applied to these interventions is 3.5%. This is the rate applied to the LSE et. al. (2014) calculations, of which the outcomes of these interventions are drawn.
G24: ='Data extraction_Sc1'!C18 -> Midwifery redesigned postnatal care; Universal
G25: Eligible population & description: | H25: ='Data extraction_Sc1'!G18 -> universal
G26: Effectiveness description: | H26: ='Data extraction_Sc1'!K18 -> post partum depression as measured 8 weeks postpartum (but maintained at 12 weeks), >=13 in Edinburgh Postnatal Depression Scale (EPDS) score (change in incidence) Information regarding the interventions from this review was linked to the Bauer et al. report to allow for calculations to estimate cost-savings and QALY gains.
G28: Eligible population (from 'Population(s) sheet)
H29: Proportion: | I29: Number: | J29: Select intervention? | K29: Please select whether you want to include this intervention in your analysis.
G30: Live births | H30: ='Population(s)'!$I$21 ->  | I30: ='Population(s)'!$I$20 ->  | K30: dropdown
H33: Default | I33: Custom | J33: Live
G34: % allocated to intervention | J34: =IF(OR(J30="",J30="no"),"",I34) ->  | K34: =IF(AND(I34="",J30="yes"),"please enter the percentage of people allocated to the intervention","") -> 
G35: No. allocated to intervention | J35: =IF(OR(J30="",J30="no",I30=""),"",J34*I30) -> 
G36: Cost of intervention | H36: =IF(OR(J30="",J30="no"),"",INDEX(Intervention_info,MATCH(G24,Intervention_name,0),MATCH($G$36,Intervention_info_headings,0))) ->  | J36: =IF(I36="",H36,I36) -> 
G37: Cases averted (%) | H37: =IF(OR(J30="",J30="no"),"",ABS('Odds Ratio'!E15)) ->  | J37: =IF(I37="",H37,I37) -> 
G38: *note: default incremental cost of intervention uplifted to 2016/2017 prices.
G41: ='Data extraction_Sc1'!C26 -> Peer Support Intervention for Prevention of Postpartum Depression; Selective
G42: Eligible population & description: | H42: ='Data extraction_Sc1'!G26 -> mothers at risk of PND ~ >9 in Edinburgh Postnatal Depression Scale (EPDS)
G43: Effectiveness description: | H43: ='Data extraction_Sc1'!K26 -> post partum depression as measured 12 weeks postpartum, >12 in Edinburgh Postnatal Depression Scale (EPDS) score (incidence) Information regarding the interventions from this review was linked to the Bauer et al. report to allow for calculations to estimate cost-savings and QALY gains.
G45: Eligible population (from 'Population(s) sheet)
H46: Proportion: | I46: Number: | J46: Select intervention? | K46: Please select whether you want to include this intervention in your analysis.
G47: Women at risk of PND | H47: ='Population(s)'!$I$54 ->  | I47: ='Population(s)'!$I$55 ->  | K47: dropdown
H50: Default | I50: Custom | J50: Live
G51: % allocated to intervention | J51: =IF(OR(J47="",J47="no"),"",I51) ->  | K51: =IF(AND(I51="",J47="yes"),"please enter the percentage of people allocated to the intervention","") -> 
G52: No. allocated to intervention | J52: =IF(OR(J47="",J47="no",I47=""),"",J51*I47) -> 
G53: Cost of intervention | H53: =IF(OR(J47="",J47="no"),"",(INDEX(Intervention_info,MATCH(G41,Intervention_name,0),MATCH($G$53,Intervention_info_headings,0)))*'Further Calculations_Sc1'!$D$65) ->  | J53: =IF(I53="",H53,I53) -> 
G54: Effectiveness | H54: =IF(OR(J47="",J47="no"),"",ABS('Odds Ratio'!E16)) ->  | J54: =IF(I54="",H54,I54) -> 
G55: *note: default incremental cost of intervention uplifted to 2016/2017 prices
G58: ='Data extraction_Sc1'!C27 -> Group physical therapy exercises; Universal
G59: Eligible population & description: | H59: ='Data extraction_Sc1'!G27 -> universal
G60: Effectiveness description: | H60: ='Data extraction_Sc1'!K27 -> post partum depression as measured 8 weeks postpartum (but maintained at 12 weeks), >=13 in Edinburgh Postnatal Depression Scale (EPDS) score (change in incidence) Information regarding the interventions from this review was linked to the Bauer et al. report to allow for calculations to estimate cost-savings and QALY gains.
G62: Eligible population (from 'Population(s) sheet)
H63: Proportion: | I63: Number: | J63: Select intervention? | K63: Please select whether you want to include this intervention in your analysis.
G64: Live births | H64: ='Population(s)'!$I$21 ->  | I64: ='Population(s)'!$I$20 ->  | K64: dropdown
H67: Default | I67: Custom | J67: Live
G68: % allocated to intervention | J68: =IF(OR(J64="",J64="no"),"",I68) ->  | K68: =IF(AND(I68="",J64="yes"),"please enter the percentage of people allocated to the intervention","") -> 
G69: No. allocated to intervention | J69: =IF(OR(J64="",J64="no",I64=""),"",J68*I64) -> 
G70: Cost of intervention | H70: =IF(OR(J64="",J64="no"),"",INDEX(Intervention_info,MATCH(G58,Intervention_name,0),MATCH($G$70,Intervention_info_headings,0))) ->  | J70: =IF(I70="",H70,I70) -> 
G71: Effectiveness | H71: =IF(OR(J64="",J64="no"),"",ABS(-'Further Calculations_Sc1'!$I$54*'Further Calculations_Sc1'!$G$54)) ->  | J71: =IF(I71="",H71,I71) -> 
G72: *note: default incremental cost of intervention uplifted to 2016/2017 prices
G74: Postnatal depression interventions_basic
G76: The below 6 interventions do not have enough information to be fully analysed, therefore the user is unable to change the incremental effectiveness of the intervention. The only inputs the user can adjust is the percentage allocated to the intervention and the incremental cost of intervention. Please note that there was not enough data for a user adjusted discount rate for costs and benefits for the following interventions. There was no discounting applied, following the approach taken in Morrell (2016), with which these interventions are drawn.
G80: ='Data extraction_Sc1'!C15 -> Booklet on PND; Universal
G81: Eligible population & description: | H81: ='Data extraction_Sc1'!G15 -> universal
G82: Effectiveness description: | H82: ='Data extraction_Sc1'!K15 -> QALYs gained - data from the Convergence Diagnostic and Output Analysis (CODA) samples generated from the NMA of Edinburgh Postnatal Depression Scale (EPDS) values. 1-year time horizon There was not enough information available to calculate cost-savings for this intervention.
G84: Eligible population (from 'Population(s) sheet)
H85: Proportion: | I85: Number: | J85: Select intervention? | K85: Please select whether you want to include this intervention in your analysis.
G86: Live births | H86: ='Population(s)'!$I$21 ->  | I86: ='Population(s)'!$I$20 ->  | K86: dropdown
H89: Default | I89: Custom | J89: Live
G90: % allocated to intervention | J90: =IF(OR(J86="",J86="no"),"",I90) ->  | K90: =IF(AND(I90="",J86="yes"),"please enter the percentage of people allocated to the intervention","") -> 
G91: No. allocated to intervention | J91: =IF(OR(J86="",J86="no",I86=""),"",J90*I86) -> 
G92: Cost of intervention | H92: =IF(OR(J86="",J86="no"),"",INDEX(Intervention_info,MATCH($G80,Intervention_name,0),MATCH(G92,Intervention_info_headings,0))) ->  | J92: =IF(I92="",H92,I92) -> 
G93: Effectiveness | J93: =IF(OR(J86="",J86="no"),"",INDEX(Intervention_info,MATCH($G80,Intervention_name,0),MATCH(G93,Intervention_info_headings,0))) -> 
G94: *note: default incremental cost of intervention uplifted to 2016/2017 prices
G97: ='Data extraction_Sc1'!C16 -> Early contact with care provider; Universal
G98: Eligible population & description: | H98: ='Data extraction_Sc1'!G16 -> universal
G99: Effectiveness description: | H99: ='Data extraction_Sc1'!K16 -> QALYs gained - data from the Convergence Diagnostic and Output Analysis (CODA) samples generated from the NMA of Edinburgh Postnatal Depression Scale (EPDS) values. 1-year time horizon There was not enough information available to calculate cost-savings for this intervention.
G101: Eligible population (from 'Population(s) sheet)
H102: Proportion: | I102: Number: | J102: Select intervention? | K102: Please select whether you want to include this intervention in your analysis.
G103: Live births | H103: ='Population(s)'!$I$21 ->  | I103: ='Population(s)'!$I$20 ->  | K103: dropdown
H106: Default | I106: Custom | J106: Live
G107: % allocated to intervention | J107: =IF(OR(J103="",J103="no"),"",I107) ->  | K107: =IF(AND(I107="",J103="yes"),"please enter the percentage of people allocated to the intervention","") -> 
G108: No. allocated to intervention | J108: =IF(OR(J103="",J103="no",I103=""),"",J107*I103) -> 
G109: Cost of intervention | H109: =IF(OR(J103="",J103="no"),"",INDEX(Intervention_info,MATCH($G97,Intervention_name,0),MATCH(G109,Intervention_info_headings,0))) ->  | J109: =IF(I109="",H109,I109) -> 
G110: Effectiveness | J110: =IF(OR(J103="",J103="no"),"",INDEX(Intervention_info,MATCH($G97,Intervention_name,0),MATCH(G110,Intervention_info_headings,0))) -> 
G111: *note: default incremental cost of intervention uplifted to 2016/2017 prices
G114: ='Data extraction_Sc1'!C17 -> Calcium; Universal
G115: Eligible population & description: | H115: ='Data extraction_Sc1'!G17 -> universal
G116: Effectiveness description: | H116: ='Data extraction_Sc1'!K17 -> QALYs gained - data from the Convergence Diagnostic and Output Analysis (CODA) samples generated from the NMA of Edinburgh Postnatal Depression Scale (EPDS) values. 1-year time horizon There was not enough information available to calculate cost-savings for this intervention.
G118: Eligible population (from 'Population(s) sheet)
H119: Proportion: | I119: Number: | J119: Select intervention? | K119: Please select whether you want to include this intervention in your analysis.
G120: Live births | H120: ='Population(s)'!$I$21 ->  | I120: ='Population(s)'!$I$20 ->  | K120: dropdown
H123: Default | I123: Custom | J123: Live
G124: % allocated to intervention | J124: =IF(OR(J120="",J120="no"),"",I124) ->  | K124: =IF(AND(I124="",J120="yes"),"please enter the percentage of people allocated to the intervention","") -> 
G125: No. allocated to intervention | J125: =IF(OR(J120="",J120="no",I120=""),"",J124*I120) -> 
G126: Cost of intervention | H126: =IF(OR(J120="",J120="no"),"",INDEX(Intervention_info,MATCH($G114,Intervention_name,0),MATCH(G126,Intervention_info_headings,0))) ->  | J126: =IF(I126="",H126,I126) -> 
G127: Effectiveness | J127: =IF(OR(J120="",J120="no"),"",INDEX(Intervention_info,MATCH($G114,Intervention_name,0),MATCH(G127,Intervention_info_headings,0))) -> 
G128: *note: default incremental cost of intervention uplifted to 2016/2017 prices
G131: ='Data extraction_Sc1'!C19 -> CBT-based intervention; Selective
G132: Eligible population & description: | H132: ='Data extraction_Sc1'!G19 -> selective, women scoring 9+ on the Social Disadvantage Screening Index and accepting the offer to participate
G133: Effectiveness description: | H133: ='Data extraction_Sc1'!K19 -> QALYs gained - data from the Convergence Diagnostic and Output Analysis (CODA) samples generated from the NMA of Edinburgh Postnatal Depression Scale (EPDS) values. 1-year time horizon There was not enough information available to calculate cost-savings for this intervention.
G135: Eligible population (from 'Population(s) sheet)
H136: Proportion: | I136: Number: | J136: Select intervention? | K136: Please select whether you want to include this intervention in your analysis.
G137: Women at risk of PND | H137: ='Population(s)'!$I$54 ->  | I137: ='Population(s)'!$I$55 ->  | K137: dropdown
H140: Default | I140: Custom | J140: Live
G141: % allocated to intervention | J141: =IF(OR(J137="",J137="no"),"",I141) ->  | K141: =IF(AND(I141="",J137="yes"),"please enter the percentage of people allocated to the intervention","") -> 
G142: No. allocated to intervention | J142: =IF(OR(J137="",J137="no",I137=""),"",J141*I137) -> 
G143: Cost of intervention | H143: =IF(OR(J137="",J137="no"),"",INDEX(Intervention_info,MATCH($G131,Intervention_name,0),MATCH(G143,Intervention_info_headings,0))) ->  | J143: =IF(I143="",H143,I143) -> 
G144: Effectiveness | J144: =IF(OR(J137="",J137="no"),"",INDEX(Intervention_info,MATCH($G131,Intervention_name,0),MATCH(G144,Intervention_info_headings,0))) -> 
G145: *note: default incremental cost of intervention uplifted to 2016/2017 prices
G148: ='Data extraction_Sc1'!C20 -> Education on preparing for parenting; Selective
G149: Eligible population & description: | H149: ='Data extraction_Sc1'!G20 -> selective Sen: women with twins Zlotnick: low-income pregnant women with recent intimate partner violence (IPV).
G150: Effectiveness description: | H150: ='Data extraction_Sc1'!K20 -> QALYs gained - data from the Convergence Diagnostic and Output Analysis (CODA) samples generated from the NMA of Edinburgh Postnatal Depression Scale (EPDS) values. 1-year time horizon There was not enough information available to calculate cost-savings for this intervention.
G152: Eligible population (from 'Population(s) sheet)
H153: Proportion: | I153: Number: | J153: Select intervention? | K153: Please select whether you want to include this intervention in your analysis.
G154: Women at risk of PND | H154: ='Population(s)'!$I$54 ->  | I154: ='Population(s)'!$I$55 ->  | K154: dropdown
H157: Default | I157: Custom | J157: Live
G158: % allocated to intervention | J158: =IF(OR(J154="",J154="no"),"",I158) ->  | K158: =IF(AND(I158="",J154="yes"),"please enter the percentage of people allocated to the intervention","") -> 
G159: No. allocated to intervention | J159: =IF(OR(J154="",J154="no",I154=""),"",J158*I154) -> 
G160: Cost of intervention | H160: =IF(OR(J154="",J154="no"),"",INDEX(Intervention_info,MATCH($G148,Intervention_name,0),MATCH(G160,Intervention_info_headings,0))) ->  | J160: =IF(I160="",H160,I160) -> 
G161: Effectiveness | J161: =IF(OR(J154="",J154="no"),"",INDEX(Intervention_info,MATCH($G148,Intervention_name,0),MATCH(G161,Intervention_info_headings,0))) -> 
G162: *note: default incremental cost of intervention uplifted to 2016/2017 prices
G165: ='Data extraction_Sc1'!C21 -> IPT-based intervention; Selective
G166: Eligible population & description: | H166: ='Data extraction_Sc1'!G21 -> selective Mothers at risk (N = 258) (Edinburgh Postnatal Depression Scale (EPDS) scores [ges ]9)
G167: Effectiveness description: | H167: ='Data extraction_Sc1'!K21 -> QALYs gained - data from the Convergence Diagnostic and Output Analysis (CODA) samples generated from the NMA of Edinburgh Postnatal Depression Scale (EPDS) values. 1-year time horizon There was not enough information available to calculate cost-savings for this intervention.
G169: Eligible population (from 'Population(s) sheet)
H170: Proportion: | I170: Number: | J170: Select intervention? | K170: Please select whether you want to include this intervention in your analysis.
G171: Women at risk of PND | H171: ='Population(s)'!$I$54 ->  | I171: ='Population(s)'!$I$55 ->  | K171: dropdown
H174: Default | I174: Custom | J174: Live
G175: % allocated to intervention | J175: =IF(OR(J171="",J171="no"),"",I175) ->  | K175: =IF(AND(I175="",J171="yes"),"please enter the percentage of people allocated to the intervention","") -> 
G176: No. allocated to intervention | J176: =IF(OR(J171="",J171="no",I171=""),"",J175*I171) -> 
G177: Cost of intervention | H177: =IF(OR(J171="",J171="no"),"",INDEX(Intervention_info,MATCH($G165,Intervention_name,0),MATCH(G177,Intervention_info_headings,0))) ->  | J177: =IF(I177="",H177,I177) -> 
G178: Effectiveness | J178: =IF(OR(J171="",J171="no"),"",INDEX(Intervention_info,MATCH($G165,Intervention_name,0),MATCH(G178,Intervention_info_headings,0))) -> 
G179: *note: default incremental cost of intervention uplifted to 2016/2017 prices

Sheet Intervention(s)_Sc2
G8: SCENARIO 2
G9: This sheet is used to set up scenario 2 for all interventions. Scenario testing allows the user to change input variables, where possible, to discover how changes in, for instance, the incremental cost of an intervention and / or the effectiveness of the intervention, affects results. This allows an extra layer of flexibility in the model, creating the potential for more tailored results where possible.
G11: =IF(OR($H$13="",$H$14=""),"Please go to 'Population(s) sheet and select area type and chosen area","") -> Please go to 'Population(s) sheet and select area type and chosen area
G12: Population of the selected Local Authority (from Population(s) sheet)
G13: Area type | H13: =IF('Population(s)'!$H$11="","",'Population(s)'!$H$11) -> 
G14: Chosen area | H14: =IF('Population(s)'!$H$12="","",'Population(s)'!$H$12) -> 
G16: The input values for Scenario 1 have been replicated below for reference. In order for scenario and package calculations to be computed, the user must input value(s) in the below scenario 2 table. Note that for every intervention the user wants to see results for in scenario 2, every cell in scenario2 must be filled. For example, if the user chooses to only change the number of people allocated to the 'Enhanced staff contact (500-999g)' intervention, the user must still input the incremental cost and effectiveness of the intervention.
G17: Please note that the below costs and effectiveness measures are incremental. The user must therefore input the increased (or decreased) cost of the intervention when compared to care as usual and the increase (or decrease) in effectiveness of the effectiveness of the intervention, when compared to care as usual. Please take note of what the effectiveness measure is for each intervention
G19: Breastfeeding interventions
J21: From 'Interventions_BF_Sc1' sheet
J22: Scenario 1 | N22: Scenario 2
G23: Intervention type | H23: Intervention name | J23: No. allocated to intervention | K23: Cost of intervention | L23: Effectiveness of intervention | N23: No. allocated to intervention | O23: Cost of intervention | P23: Effectiveness of intervention
G24: Breastfeeding | H24: ='Intervention(s)_BF_Sc1'!G22 -> Breastfeeding support: Proactive and Reactive call, daily, for 1 week following hospital discharge. Exclusive breast feeding | I24: =H24 -> Breastfeeding support: Proactive and Reactive call, daily, for 1 week following hospital discharge. Exclusive breast feeding | J24: =IF(OR($H$13="",$H$14=""),"",IF('Intervention(s)_BF_Sc1'!J27="yes",'Intervention(s)_BF_Sc1'!J32,"not selected")) ->  | K24: ='Intervention(s)_BF_Sc1'!J33 ->  | L24: ='Intervention(s)_BF_Sc1'!J34 ->  | M24: =H24 -> Breastfeeding support: Proactive and Reactive call, daily, for 1 week following hospital discharge. Exclusive breast feeding | Q24: =IF(AND(N24="",O24="",P24=""),"",IF(OR(N24="",O24="",P24=""),"please enter a value in any empty cells in this row","")) -> 
G25: Breastfeeding | H25: ='Intervention(s)_BF_Sc1'!F43 -> Enhanced staff contact (500-999g) | I25: =H25 -> Enhanced staff contact (500-999g) | J25: =IF(OR($H$13="",$H$14=""),"",IF('Intervention(s)_BF_Sc1'!J43="yes",'Intervention(s)_BF_Sc1'!J49,"not selected")) ->  | K25: ='Intervention(s)_BF_Sc1'!$J$50 ->  | L25: ='Intervention(s)_BF_Sc1'!J51 ->  | M25: =H25 -> Enhanced staff contact (500-999g) | Q25: Please note that for this intervention, effectiveness refers to the final QALY gain, rather than the increased uptake in breastfeeding
G26: Breastfeeding | H26: ='Intervention(s)_BF_Sc1'!F44 -> Enhanced staff contact (1000-1749g) | I26: Enhanced staff contact (1000-1749g) | L26: ='Intervention(s)_BF_Sc1'!J52 ->  | M26: =H26 -> Enhanced staff contact (1000-1749g)
G27: Breastfeeding | H27: ='Intervention(s)_BF_Sc1'!F45 -> Enhanced staff contact (1750-2500g) | I27: Enhanced staff contact (1750-2500g) | L27: ='Intervention(s)_BF_Sc1'!J53 ->  | M27: =H27 -> Enhanced staff contact (1750-2500g)
N28: =IF(AND(N25="",O25="",P25="",P26="",P27=""),"",IF(OR(N25="",O25="",P25="",P26="",P27=""),"please enter a value in any empty cells for the intervention above","")) -> 
G31: PND interventions_Full
J34: From 'Interventions_PND_Sc1' sheet
J35: Scenario 1 | N35: Scenario 2
G36: Intervention type | H36: Intervention name | J36: No. allocated to intervention | K36: Cost of intervention | L36: Effectiveness of intervention | N36: No. allocated to intervention | O36: Cost of intervention | P36: Effectiveness of intervention
G37: PND | H37: ='Intervention(s)_PND_Sc1'!G24 -> Midwifery redesigned postnatal care; Universal | I37: =H37 -> Midwifery redesigned postnatal care; Universal | J37: =IF(OR($H$13="",$H$14=""),"",IF('Intervention(s)_PND_Sc1'!J30="yes",'Intervention(s)_PND_Sc1'!J35,"not selected")) ->  | K37: ='Intervention(s)_PND_Sc1'!J36 ->  | L37: ='Intervention(s)_PND_Sc1'!J37 ->  | M37: =H37 -> Midwifery redesigned postnatal care; Universal | Q37: =IF(AND(N37="",O37="",P37=""),"",IF(OR(N37="",O37="",P37=""),"please enter a value in any empty cells in this row","")) -> 
G38: PND | H38: ='Intervention(s)_PND_Sc1'!G41 -> Peer Support Intervention for Prevention of Postpartum Depression; Selective | I38: =H38 -> Peer Support Intervention for Prevention of Postpartum Depression; Selective | J38: =IF(OR($H$13="",$H$14=""),"",IF('Intervention(s)_PND_Sc1'!J47="yes",'Intervention(s)_PND_Sc1'!J52,"not selected")) ->  | K38: ='Intervention(s)_PND_Sc1'!J53 ->  | L38: ='Intervention(s)_PND_Sc1'!J54 ->  | M38: =H38 -> Peer Support Intervention for Prevention of Postpartum Depression; Selective
G39: PND | H39: ='Intervention(s)_PND_Sc1'!G58 -> Group physical therapy exercises; Universal | I39: Group physical therapy exercises; Universal | J39: =IF(OR($H$13="",$H$14=""),"",IF('Intervention(s)_PND_Sc1'!J64="yes",'Intervention(s)_PND_Sc1'!J69,"not selected")) ->  | K39: ='Intervention(s)_PND_Sc1'!J70 ->  | L39: ='Intervention(s)_PND_Sc1'!J71 ->  | M39: Group physical therapy exercises; Universal
G42: PND interventions_Basic
J45: From 'Interventions_PND_Sc1' sheet
J46: Scenario 1 | N46: Scenario 2
G47: Intervention type | H47: Intervention name | J47: No. allocated to intervention | K47: Cost of intervention | L47: Effectiveness of intervention | N47: No. allocated to intervention | O47: Cost of intervention | P47: Effectiveness of intervention
G48: PND | H48: ='Intervention(s)_PND_Sc1'!G80 -> Booklet on PND; Universal | I48: Booklet on PND; Universal | J48: =IF(OR($H$13="",$H$14=""),"",IF('Intervention(s)_PND_Sc1'!J86="yes",'Intervention(s)_PND_Sc1'!J91,"not selected")) ->  | K48: ='Intervention(s)_PND_Sc1'!J92 ->  | L48: ='Intervention(s)_PND_Sc1'!J93 ->  | M48: Booklet on PND; Universal | P48: =IF(AND(N48="",O48=""),"",INDEX(Intervention_info,MATCH(H48,Intervention_name,0),MATCH('Intervention(s)_PND_Sc1'!$G$93,Intervention_info_headings,0))) ->  | Q48: =IF(AND(N48="",O48=""),"",IF(OR(N48="",O48=""),"please enter a value in any empty cells in this row","")) -> 
G49: PND | H49: ='Intervention(s)_PND_Sc1'!G97 -> Early contact with care provider; Universal | I49: Early contact with care provider; Universal | J49: =IF(OR($H$13="",$H$14=""),"",IF('Intervention(s)_PND_Sc1'!J103="yes",'Intervention(s)_PND_Sc1'!J108,"not selected")) ->  | K49: ='Intervention(s)_PND_Sc1'!J109 ->  | L49: ='Intervention(s)_PND_Sc1'!J110 ->  | M49: Early contact with care provider; Universal | P49: =IF(AND(N49="",O49=""),"",INDEX(Intervention_info,MATCH(H49,Intervention_name,0),MATCH('Intervention(s)_PND_Sc1'!$G$93,Intervention_info_headings,0))) ->  | Q49: =IF(AND(N49="",O49=""),"",IF(OR(N49="",O49=""),"please enter a value in any empty cells in this row","")) -> 
G50: PND | H50: ='Intervention(s)_PND_Sc1'!G114 -> Calcium; Universal | I50: Calcium; Universal | J50: =IF(OR($H$13="",$H$14=""),"",IF('Intervention(s)_PND_Sc1'!J120="yes",'Intervention(s)_PND_Sc1'!J125,"not selected")) ->  | K50: ='Intervention(s)_PND_Sc1'!J126 ->  | L50: ='Intervention(s)_PND_Sc1'!J127 ->  | M50: Calcium; Universal | P50: =IF(AND(N50="",O50=""),"",INDEX(Intervention_info,MATCH(H50,Intervention_name,0),MATCH('Intervention(s)_PND_Sc1'!$G$93,Intervention_info_headings,0))) -> 
G51: PND | H51: ='Intervention(s)_PND_Sc1'!G131 -> CBT-based intervention; Selective | I51: CBT-based intervention; Selective | J51: =IF(OR($H$13="",$H$14=""),"",IF('Intervention(s)_PND_Sc1'!J137="yes",'Intervention(s)_PND_Sc1'!J142,"not selected")) ->  | K51: ='Intervention(s)_PND_Sc1'!J143 ->  | L51: ='Intervention(s)_PND_Sc1'!J144 ->  | M51: CBT-based intervention; Selective | P51: =IF(AND(N51="",O51=""),"",INDEX(Intervention_info,MATCH(H51,Intervention_name,0),MATCH('Intervention(s)_PND_Sc1'!$G$93,Intervention_info_headings,0))) -> 
G52: PND | H52: ='Intervention(s)_PND_Sc1'!G148 -> Education on preparing for parenting; Selective | I52: Education on preparing for parenting; Selective | J52: =IF(OR($H$13="",$H$14=""),"",IF('Intervention(s)_PND_Sc1'!J154="yes",'Intervention(s)_PND_Sc1'!J159,"not selected")) ->  | K52: ='Intervention(s)_PND_Sc1'!J160 ->  | L52: ='Intervention(s)_PND_Sc1'!J161 ->  | M52: Education on preparing for parenting; Selective | P52: =IF(AND(N52="",O52=""),"",INDEX(Intervention_info,MATCH(H52,Intervention_name,0),MATCH('Intervention(s)_PND_Sc1'!$G$93,Intervention_info_headings,0))) -> 
G53: PND | H53: ='Intervention(s)_PND_Sc1'!G165 -> IPT-based intervention; Selective | I53: IPT-based intervention; Selective | J53: =IF(OR($H$13="",$H$14=""),"",IF('Intervention(s)_PND_Sc1'!J171="yes",'Intervention(s)_PND_Sc1'!J176,"not selected")) ->  | K53: ='Intervention(s)_PND_Sc1'!J177 ->  | L53: ='Intervention(s)_PND_Sc1'!J178 ->  | M53: IPT-based intervention; Selective | P53: =IF(AND(N53="",O53=""),"",INDEX(Intervention_info,MATCH(H53,Intervention_name,0),MATCH('Intervention(s)_PND_Sc1'!$G$93,Intervention_info_headings,0))) -> 

Sheet Other Inputs
F9: The default monetary value of a QALY gain is £60,000. This represents the willingness to pay per QALY value gained as used by the NHS and PHE. This default value can be overridden by entering a value in the custom field.
G11: Default | H11: Custom | I11: Live
F12: Value of a QALY | G12: 60000 | I12: =IF(H12="",G12,H12) -> 60000

Sheet Results_BF_Sc1
G5: Net costs = positive value is a cost
E9: BREASTFEEDING RESULTS: SCENARIO 1
E10: This sheet is used to present results for scenario 1 for the breastfeeding interventions, which can then be compared against a 'do nothing' scenario (i.e. no interventions over and above usual care), and another custom scenario (scenario 2)
E12: Note that the below cost savings and potential QALY gains associated with breastfeeding interventions are likely to be an underestimate, given the proven benefits seen of wider breastfeeding uptake and as demonstrated by three key messages highlighted in a report commissioned by Unicef. • Low breastfeeding rates in the UK lead to an increased incidence of illness that has a significant cost to the health service. • Investment in effective services to increase and sustain breastfeeding rates is likely to provide a return within a few years, possibly as little as one year. • Investing in supporting women to breastfeed will improve the quality of life for women through the reduction in incidence of breast cancer; and for children through reducing acute and chronic diseases. • Research into the extent of the burden of disease associated with low breastfeeding rates is hampered by data collection methods; this can be addressed by investment in good quality research. In future, with a more robust evidence, more accurate potential cost savings and QALY gains, to both mother and child, can be incorporated into ROI tools. Source: Renfrew MJ, Pokhrel S, Quigley M, McCormick F, Fox-Rushby J, Dodds R, Duffy S, Trueman P, Williams A. Preventing disease and saving resources: the potential contribution of increasing breastfeeding rates in the UK. UNICEF; 2012.
E13: =IF(OR($F$15="",$F$16=""),"Please go to 'Population(s) sheet and select area type and chosen area","") -> Please go to 'Population(s) sheet and select area type and chosen area
E14: Population of the selected Local Authority (from Population(s) sheet)
E15: Area type | F15: =IF('Population(s)'!$H$11="","",'Population(s)'!$H$11) -> 
E16: Chosen Area | F16: =IF('Population(s)'!$H$12="","",'Population(s)'!$H$12) -> 
E18: Please note that the below costs and effectiveness measures are incremental vs. care as usual
D21: ='Data extraction_Sc1'!C5 -> Breastfeeding support: Proactive and Reactive call, daily, for 1 week following hospital discharge. Exclusive breast feeding
F23: No. allocated to intervention | I23: =INDEX(Scenario1_inputs,MATCH(D21,Scenario1_inputs_intervention_names,0),MATCH(F23,Scenario1_inputs_headings,0)) -> 
F24: Length of benefit (mother): | I24: lifetime
F25: Length of benefit (child): | I25: one year (although QALY losses from early mortality are calculated for all life years lost)
G27: Mother | I27: Child | L27: Combined
F28: Cost of intervention | G28: Cost savings per mother | H28: QALY gain per mother | I28: Cost savings per child | J28: QALY gain per child | L28: Combined cost savings | M28: Combined QALY gain | N28: Combined Net Benefit | O28: Combined monetised QALY gain | Q28: Combined ICER per QALY
E29: Per Person | F29: =IFERROR(INDEX(Scenario1_inputs,MATCH($D$21,Scenario1_inputs_intervention_names,0),MATCH(F28,Scenario1_inputs_headings,0)),"") ->  | G29: =IFERROR(INDEX(Hoddinott_info,MATCH($D$21,Hoddinott_info_name,0),MATCH(G28,Hoddinott_info_name_headings,0)),"") ->  | H29: =IFERROR(INDEX(Hoddinott_info,MATCH($D$21,Hoddinott_info_name,0),MATCH(H28,Hoddinott_info_name_headings,0)),"") ->  | I29: =IFERROR(INDEX(Hoddinott_info,MATCH($D$21,Hoddinott_info_name,0),MATCH(I28,Hoddinott_info_name_headings,0)),"") ->  | J29: =IFERROR(INDEX(Hoddinott_info,MATCH($D$21,Hoddinott_info_name,0),MATCH(J28,Hoddinott_info_name_headings,0)),"") ->  | L29: =IFERROR(INDEX(Hoddinott_info,MATCH($D$21,Hoddinott_info_name,0),MATCH(L28,Hoddinott_info_name_headings,0)),"") ->  | M29: =IFERROR(INDEX(Hoddinott_info,MATCH($D$21,Hoddinott_info_name,0),MATCH(M28,Hoddinott_info_name_headings,0)),"") ->  | N29: =IFERROR(INDEX(Hoddinott_info,MATCH($D$21,Hoddinott_info_name,0),MATCH(N28,Hoddinott_info_name_headings,0)),"") ->  | O29: =IFERROR(M29*'Other Inputs'!$I$12,"") ->  | Q29: =IFERROR(INDEX(Hoddinott_info,MATCH($D$21,Hoddinott_info_name,0),MATCH(Q28,Hoddinott_info_name_headings,0)),"") -> 
E30: Total | F30: =IFERROR(F29*$I$23,"") ->  | G30: =IFERROR(G29*$I$23,"") ->  | H30: =IFERROR(H29*$I$23,"") ->  | I30: =IFERROR(I29*$I$23,"") ->  | J30: =IFERROR(J29*$I$23,"") ->  | L30: =IFERROR(L29*$I$23,"") ->  | M30: =IFERROR(M29*$I$23,"") ->  | N30: =IFERROR(N29*$I$23,"") ->  | O30: =IFERROR(O29*I23,"") ->  | Q30: =INDEX(Hoddinott_info,MATCH($D$21,Hoddinott_info_name,0),MATCH(Q29,Hoddinott_info_name_headings,0)) -> 
E32: The cost savings and QALYs measured for this intervention are associated with: • reduced hospitalisation cases and subsequently avoidance of death, due to infectious diseases for children during their 1st year. • reduced Breast Cancer cases for first time mothers (lifetime) The intervention does not include: • any long term effects to the child due to breastfeeding • other benefits to the mother
E33: =IF($I$23="","",IFERROR(CONCATENATE("Cost savings and QALY gains for mothers are caused by ",ROUND(I23*'Further Calculations_Sc1'!P5,2)," avoided cases of breast cancer. Cost savings for children are caused by ",ROUND(I23*ABS(SUM('Further Calculations_Sc1'!AF5:AG5,'Further Calculations_Sc1'!AO5:AP5,'Further Calculations_Sc1'!AX5:AY5,'Further Calculations_Sc1'!BF5:BG5)),2)," avoided cases of infectious diseases i.e. gastrointestinal illnesses, lower respiratory tract infection, acute otitis media, NEC"," QALY gains for children are caused by ",ROUND(I23*ABS('Further Calculations_Sc1'!Y5),3)," avoided cases of infant mortality due to infectious diseases.",),"")) -> 
D39: Enhanced staff contact for underweight children
F41: No. allocated to intervention | I41: =INDEX(Scenario1_inputs,MATCH(E50,Scenario1_inputs_intervention_names,0),MATCH(F41,Scenario1_inputs_headings,0)) -> 
F42: of which:
F43: No. allocated to 500-999g | I43: =IFERROR(('Intervention(s)_BF_Sc1'!H43/SUM('Intervention(s)_BF_Sc1'!$H$43:$H$45))*I$41,"") -> 
F44: No. allocated to 1000-1749g | I44: =IFERROR(('Intervention(s)_BF_Sc1'!H44/SUM('Intervention(s)_BF_Sc1'!$H$43:$H$45))*I$41,"") -> 
F45: No. allocated to 1749g-2500g | I45: =IFERROR(('Intervention(s)_BF_Sc1'!H45/SUM('Intervention(s)_BF_Sc1'!$H$43:$H$45))*I$41,"") -> 
F46: Length of benefit: | I46: Lifetime
H49: Cost of intervention | I49: Cost Saving | J49: Net benefit | K49: QALY gain | L49: Monetised QALY gain | N49: ICER (cost of intervention + timeframe benefits)
E50: ='Data extraction_Sc1'!C6 -> Enhanced staff contact (500-999g) | G50: Per Person | H50: =INDEX(Scenario1_inputs,MATCH(E50,Scenario1_inputs_intervention_names,0),MATCH(H49,Scenario1_inputs_headings,0)) ->  | I50: =IF(I43="","",INDEX(Intervention_info,MATCH($E50,Intervention_name,0),MATCH($I49,Intervention_info_headings,0))) ->  | J50: =IFERROR(I50-H50,"") ->  | K50: =INDEX(Intervention_info,MATCH($E50,Intervention_name,0),MATCH($K49,Intervention_info_headings,0)) ->  | L50: =IFERROR(K50*'Other Inputs'!$I$12,"") ->  | N50: =IFERROR(IF(-J51/K51<0,"dominant",-J51/K51),"") -> 
G51: Total | H51: =IFERROR(H50*$I$43,"") ->  | I51: =IFERROR(I50*$I$43,"") ->  | J51: =IFERROR(J50*$I$43,"") ->  | K51: =IFERROR(K50*$I$43,"") ->  | L51: =IFERROR(K51*'Other Inputs'!$I$12,"") -> 
E53: ='Data extraction_Sc1'!C7 -> Enhanced staff contact (1000-1749g) | F53: ='Data extraction_Sc1'!C7 -> Enhanced staff contact (1000-1749g) | G53: Per Person | H53: =INDEX(Scenario1_inputs,MATCH(E50,Scenario1_inputs_intervention_names,0),MATCH(H49,Scenario1_inputs_headings,0)) ->  | I53: =IF($I$41="","",INDEX(Intervention_info,MATCH($F53,Intervention_name,0),MATCH($I49,Intervention_info_headings,0))) ->  | J53: =IFERROR(I53-H53,"") ->  | K53: =INDEX(Intervention_info,MATCH($F53,Intervention_name,0),MATCH($K49,Intervention_info_headings,0)) ->  | L53: =IFERROR(K53*'Other Inputs'!$I$12,"") ->  | N53: =IFERROR(IF(-J54/K54<0,"dominant",-J54/K54),"") -> 
G54: Total | H54: =IFERROR(H53*I44,"") ->  | I54: =IFERROR(I53*I44,"") ->  | J54: =IFERROR(J53*I44,"") ->  | K54: =IFERROR(K53*I44,"") ->  | L54: =IFERROR(K54*'Other Inputs'!$I$12,"") -> 
E56: ='Data extraction_Sc1'!C8 -> Enhanced staff contact (1750-2500g) | F56: ='Data extraction_Sc1'!C8 -> Enhanced staff contact (1750-2500g) | G56: Per Person | H56: =INDEX(Scenario1_inputs,MATCH(E50,Scenario1_inputs_intervention_names,0),MATCH(H49,Scenario1_inputs_headings,0)) ->  | I56: =IF($I$41="","",INDEX(Intervention_info,MATCH($F56,Intervention_name,0),MATCH($I49,Intervention_info_headings,0))) ->  | J56: =IFERROR(I56-H56,"") ->  | K56: =INDEX(Intervention_info,MATCH($F56,Intervention_name,0),MATCH($K49,Intervention_info_headings,0)) ->  | L56: =IFERROR(K56*'Other Inputs'!$I$12,"") ->  | N56: =IFERROR(IF(-J57/K57<0,"dominant",-J57/K57),"") -> 
G57: Total | H57: =IFERROR(H56*I45,"") ->  | I57: =IFERROR(I56*I45,"") ->  | J57: =IFERROR(J56*I45,"") ->  | K57: =IFERROR(K56*I45,"") ->  | L57: =IFERROR(K57*'Other Inputs'!$I$12,"") -> 
E59: Combined | G59: Total | H59: =IF($I$41="","",SUM(H51,H54,H57)) ->  | I59: =IF($I$41="","",SUM(I51,I54,I57)) ->  | J59: =IF($I$41="","",SUM(J51,J54,J57)) ->  | K59: =IF($I$41="","",SUM(K51,K54,K57)) ->  | L59: =IF($I$41="","",IFERROR(SUM(L51,L54,L57),"")) ->  | N59: =IFERROR(IF(-J59/K59<0,"dominant",-J59/K59),"") -> 
E61: The cost savings and QALYs measured for this intervention are associated with: • child benefits during their lifetime. These include reduced hospitalisations and reduced mortality due to infectious diseases or sepsis and reduced developmental problems (disabilities). The intervention does not include: • any benefits to the mother • a breakdown of number or cases averted
E62: Cost savings and QALY gains are only available for children. The cost savings are caused by the reduction in hospitalisation rates and therapy costs of infectious diseases (i.e. NEC and/or sepsis) as well as by reduction in lifetime disability rates and costs. QALY gains are also caused by the reduction in disability rates by means of neurodevelopmental impairment (NDI) and by the reduction of infant mortality.

Sheet Results_BF_Sc2
G5: Net costs = positive value is a cost
E9: BREASTFEEDING RESULTS: SCENARIO 2
E10: This sheet is used to present results for scenario 2 for the breastfeeding interventions, which can then be compared against a 'do nothing' scenario (i.e. no interventions over and above usual care), and another custom scenario (scenario 1)
E12: Note that the below cost savings and potential QALY gains associated with breastfeeding interventions are likely to be an underestimation, given the proven benefits seen of wider breastfeeding uptake and as demonstrated by three key messages highlighted in a report commissioned by Unicef. • Low breastfeeding rates in the UK lead to an increased incidence of illness that has a significant cost to the health service. • Investment in effective services to increase and sustain breastfeeding rates is likely to provide a return within a few years, possibly as little as one year. • Investing in supporting women to breastfeed will improve the quality of life for women through the reduction in incidence of breast cancer; and for children through reducing acute and chronic diseases. • Research into the extent of the burden of disease associated with low breastfeeding rates is hampered by data collection methods; this can be addressed by investment in good quality research. In future, with a more robust evidence, more accurate potential cost savings and QALY gains, to both mother and child, can be incorporated in ROI tools. Source: Renfrew MJ, Pokhrel S, Quigley M, McCormick F, Fox-Rushby J, Dodds R, Duffy S, Trueman P, Williams A. Preventing disease and saving resources: the potential contribution of increasing breastfeeding rates in the UK. UNICEF; 2012.
E13: =IF(OR($F$15="",$F$16=""),"Please go to 'Population(s) sheet and select area type and chosen area","") -> Please go to 'Population(s) sheet and select area type and chosen area
E14: Population of the selected Local Authority (from Population(s) sheet)
E15: Area type | F15: =IF('Population(s)'!$H$11="","",'Population(s)'!$H$11) -> 
E16: Chosen Area | F16: =IF('Population(s)'!$H$12="","",'Population(s)'!$H$12) -> 
E18: Please note that the below costs and effectiveness measures are incremental vs. care as usual
D21: ='Data extraction_Sc1'!C5 -> Breastfeeding support: Proactive and Reactive call, daily, for 1 week following hospital discharge. Exclusive breast feeding
F23: No. allocated to intervention | I23: =IF(INDEX(Scenario2_inputs,MATCH(D21,Scenario2_inputs_intervention_names,0),MATCH(F23,Scenario2_inputs_headings,0))="","",INDEX(Scenario2_inputs,MATCH(D21,Scenario2_inputs_intervention_names,0),MATCH(F23,Scenario2_inputs_headings,0))) -> 
F24: Length of benefit (mother): | I24: lifetime
F25: Length of benefit (child): | I25: one year (although QALY losses from early mortality are calculated for all life years lost)
G27: Mother | I27: Child | L27: Combined
F28: Cost of intervention | G28: Cost savings per mother | H28: QALY gain per mother | I28: Cost savings per child | J28: QALY gain per child | L28: Combined cost savings | M28: Combined QALY gain | N28: Combined Net Benefit | O28: Combined monetised QALY gain | Q28: Combined ICER per QALY
E29: Per Person | F29: =IF($I$23="","",(INDEX(Scenario2_inputs,MATCH(D21,Scenario2_inputs_intervention_names,0),MATCH(F28,Scenario2_inputs_headings,0)))) ->  | G29: =IF($I$23="","",INDEX(Hoddinott_info_Sc2,MATCH($D$21,Hoddinott_info_Sc2_name,0),MATCH(G28,Hoddinott_info_Sc2_headings,0))) ->  | H29: =IF($I$23="","",INDEX(Hoddinott_info_Sc2,MATCH($D$21,Hoddinott_info_Sc2_name,0),MATCH(H28,Hoddinott_info_Sc2_headings,0))) ->  | I29: =IF($I$23="","",INDEX(Hoddinott_info_Sc2,MATCH($D$21,Hoddinott_info_Sc2_name,0),MATCH(I28,Hoddinott_info_Sc2_headings,0))) ->  | J29: =IF($I$23="","",INDEX(Hoddinott_info_Sc2,MATCH($D$21,Hoddinott_info_Sc2_name,0),MATCH(J28,Hoddinott_info_Sc2_headings,0))) ->  | L29: =IF($I$23="","",INDEX(Hoddinott_info_Sc2,MATCH($D$21,Hoddinott_info_Sc2_name,0),MATCH(L28,Hoddinott_info_Sc2_headings,0))) ->  | M29: =IF($I$23="","",INDEX(Hoddinott_info_Sc2,MATCH($D$21,Hoddinott_info_Sc2_name,0),MATCH(M28,Hoddinott_info_Sc2_headings,0))) ->  | N29: =IF($I$23="","",INDEX(Hoddinott_info_Sc2,MATCH($D$21,Hoddinott_info_Sc2_name,0),MATCH(N28,Hoddinott_info_Sc2_headings,0))) ->  | O29: =IF($I$23="","",M29*'Other Inputs'!$I$12) ->  | Q29: =IFERROR(INDEX(Hoddinott_info_Sc2,MATCH($D$21,Hoddinott_info_Sc2_name,0),MATCH(Q28,Hoddinott_info_Sc2_headings,0)),"") -> 
E30: Total | F30: =IFERROR(F29*$I$23,"") ->  | G30: =IFERROR(G29*$I$23,"") ->  | H30: =IFERROR(H29*$I$23,"") ->  | I30: =IFERROR(I29*$I$23,"") ->  | J30: =IFERROR(J29*$I$23,"") ->  | L30: =IFERROR(L29*$I$23,"") ->  | M30: =IFERROR(M29*$I$23,"") ->  | N30: =IFERROR(N29*$I$23,"") ->  | O30: =IFERROR(O29*I23,"") ->  | Q30: =INDEX(Hoddinott_info_Sc2,MATCH($D$21,Hoddinott_info_Sc2_name,0),MATCH(Q29,Hoddinott_info_Sc2_headings,0)) -> 
E32: The cost savings and QALYs measured for this intervention are associated with: • reduced hospitalisation cases and subsequently avoidance of death, due to infectious diseases for children during their 1st year. • reduced Breast Cancer cases for first time mothers (lifetime) The intervention does not include: • any long term effects to the child due to breastfeeding • other benefits to the mother
E33: =IF($I$23="","",IFERROR(CONCATENATE("Cost savings and QALY gains for mothers are caused by ",ROUND(I23*'Further Calculations_Sc2'!P5,2)," avoided cases of breast cancer. Cost savings for children are caused by ",ROUND(I23*ABS(SUM('Further Calculations_Sc2'!AF5:AG5,'Further Calculations_Sc2'!AO5:AP5,'Further Calculations_Sc2'!AX5:AY5,'Further Calculations_Sc2'!BF5:BG5)),2)," avoided cases of infectious diseases i.e. gastrointestinal illnesses, lower respiratory tract infection, acute otitis media, NEC"," QALY gains for children are caused by ",ROUND(I23*ABS('Further Calculations_Sc2'!Y5),3)," avoided cases of infant mortality due to infectious diseases.",),"")) -> 
D39: Enhanced staff contact for underweight children
F41: No. allocated to intervention | I41: =IF(INDEX(Scenario2_inputs,MATCH(E50,Scenario2_inputs_intervention_names,0),MATCH(F41,Scenario2_inputs_headings,0))="","",INDEX(Scenario2_inputs,MATCH(E50,Scenario2_inputs_intervention_names,0),MATCH(F41,Scenario2_inputs_headings,0))) -> 
H42: of which:
F43: No. allocated to 500-999g | I43: =IFERROR(('Intervention(s)_BF_Sc1'!H43/SUM('Intervention(s)_BF_Sc1'!$H$43:$H$45))*I$41,"") -> 
F44: No. allocated to 1000-1749g | I44: =IFERROR(('Intervention(s)_BF_Sc1'!H44/SUM('Intervention(s)_BF_Sc1'!$H$43:$H$45))*I$41,"") -> 
F45: No. allocated to 1749g-2500g | I45: =IFERROR(('Intervention(s)_BF_Sc1'!H45/SUM('Intervention(s)_BF_Sc1'!$H$43:$H$45))*I$41,"") -> 
F46: Length of benefit: | I46: Lifetime
H49: Cost of intervention | I49: Cost Saving | J49: Net benefit | K49: QALY gain | L49: Monetised QALY gain | N49: ICER (cost of intervention + timeframe benefits)
E50: ='Data extraction_Sc1'!C6 -> Enhanced staff contact (500-999g) | G50: Per Person | H50: =IF($I$41="","",INDEX(Scenario2_inputs,MATCH(E50,Scenario2_inputs_intervention_names,0),MATCH(H49,Scenario2_inputs_headings,0))) ->  | I50: =IF($I$41="","",INDEX(Intervention_info_Sc2,MATCH($E$50,Intervention_info_Sc2_Intervention_names,0),MATCH(I49,Intervention_info_Sc2_headings,0))) ->  | J50: =IF($I$41="","",INDEX(Intervention_info_Sc2,MATCH($E$50,Intervention_info_Sc2_Intervention_names,0),MATCH(J49,Intervention_info_Sc2_headings,0))) ->  | K50: =IF($I$41="","",INDEX(Intervention_info_Sc2,MATCH($E$50,Intervention_info_Sc2_Intervention_names,0),MATCH(K49,Intervention_info_Sc2_headings,0))) ->  | L50: =IF($I$41="","",K50*'Other Inputs'!$I$12) ->  | N50: =IFERROR(IF(-J51/K51<0,"dominant",-J51/K51),"") -> 
G51: Total | H51: =IF($I$43="","",H50*$I$43) ->  | I51: =IF($I$43="","",I50*$I$43) ->  | J51: =IF($I$43="","",J50*$I$43) ->  | K51: =IF($I$43="","",K50*$I$43) ->  | L51: =IF($I$43="","",K51*'Other Inputs'!$I$12) -> 
E53: ='Data extraction_Sc1'!C7 -> Enhanced staff contact (1000-1749g) | F53: ='Data extraction_Sc1'!M7 -> 21 | G53: Per Person | H53: =IF($I$41="","",INDEX(Scenario2_inputs,MATCH(E50,Scenario2_inputs_intervention_names,0),MATCH(H49,Scenario2_inputs_headings,0))) ->  | I53: =IF($I$41="","",INDEX(Intervention_info_Sc2,MATCH($E$53,Intervention_info_Sc2_Intervention_names,0),MATCH(I49,Intervention_info_Sc2_headings,0))) ->  | J53: =IF($I$41="","",INDEX(Intervention_info_Sc2,MATCH($E$53,Intervention_info_Sc2_Intervention_names,0),MATCH(J49,Intervention_info_Sc2_headings,0))) ->  | K53: =IF($I$41="","",INDEX(Intervention_info_Sc2,MATCH($E$53,Intervention_info_Sc2_Intervention_names,0),MATCH(K49,Intervention_info_Sc2_headings,0))) ->  | L53: =IF($I$41="","",K53*'Other Inputs'!$I$12) ->  | N53: =IFERROR(IF(-J54/K54<0,"dominant",-J54/K54),"") -> 
G54: Total | H54: =IF($I$44="","",H53*$I$44) ->  | I54: =IF($I$44="","",I53*$I$44) ->  | J54: =IF($I$44="","",J53*$I$44) ->  | K54: =IF($I$44="","",K53*$I$44) ->  | L54: =IF($I$44="","",K54*'Other Inputs'!$I$12) -> 
E56: ='Data extraction_Sc1'!C8 -> Enhanced staff contact (1750-2500g) | F56: ='Data extraction_Sc1'!M8 -> 21.91 | G56: Per Person | H56: =IF($I$41="","",INDEX(Scenario2_inputs,MATCH(E50,Scenario2_inputs_intervention_names,0),MATCH(H49,Scenario2_inputs_headings,0))) ->  | I56: =IF($I$41="","",INDEX(Intervention_info_Sc2,MATCH($E$56,Intervention_info_Sc2_Intervention_names,0),MATCH(I49,Intervention_info_Sc2_headings,0))) ->  | J56: =IF($I$41="","",INDEX(Intervention_info_Sc2,MATCH($E$56,Intervention_info_Sc2_Intervention_names,0),MATCH(J49,Intervention_info_Sc2_headings,0))) ->  | K56: =IF($I$41="","",INDEX(Intervention_info_Sc2,MATCH($E$56,Intervention_info_Sc2_Intervention_names,0),MATCH(K49,Intervention_info_Sc2_headings,0))) ->  | L56: =IF($I$41="","",K56*'Other Inputs'!$I$12) ->  | N56: =IFERROR(IF(-J57/K57<0,"dominant",-J57/K57),"") -> 
G57: Total | H57: =IF($I$45="","",H56*$I$45) ->  | I57: =IF($I$45="","",I56*$I$45) ->  | J57: =IF($I$45="","",J56*$I$45) ->  | K57: =IF($I$45="","",K56*$I$45) ->  | L57: =IF($I$45="","",K57*'Other Inputs'!$I$12) -> 
E59: Combined | G59: Total | H59: =IF($I$41="","",SUM(H51,H54,H57)) ->  | I59: =IF($I$41="","",SUM(I51,I54,I57)) ->  | J59: =IF($I$41="","",SUM(J51,J54,J57)) ->  | K59: =IF($I$41="","",SUM(K51,K54,K57)) ->  | L59: =IF($I$41="","",SUM(L51,L54,L57)) ->  | N59: =IFERROR(IF(-J59/K59<0,"dominant",-J59/K59),"") -> 
E61: The cost savings and QALYs measured for this intervention are associated with: • child benefits during their lifetime. These include reduced hospitalisations and reduced mortality due to infectious diseases or sepsis and reduced developmental problems (disabilities). The intervention does not include: • any benefits to the mother • a breakdown of number or cases averted
E62: Cost savings and QALY gains are only available for children. The cost savings are caused by the reduction in hospitalisation rates and therapy costs of infectious diseases (i.e. NEC and/or sepsis) as well as by reduction in lifetime disability rates and costs. QALY gains are also caused by the reduction in disability rates by means of neurodevelopmental impairment (NDI) and by the reduction of infant mortality.

Sheet Results_PND_Sc1
G5: Net costs = positive value is a cost
E10: PND RESULTS: SCENARIO 1
E11: This sheet is used to present results for scenario 1 for the breastfeeding interventions, which can then be compared against a 'do nothing' scenario (i.e. no interventions over and above usual care), and another custom scenario (scenario 2)
E13: =IF(OR($F$15="",$F$16=""),"Please go to 'Population(s) sheet and select area type and chosen area","") -> Please go to 'Population(s) sheet and select area type and chosen area
E14: Population of the selected Local Authority (from Population(s) sheet)
E15: Area type | F15: =IF('Population(s)'!$H$11="","",'Population(s)'!$H$11) -> 
E16: Chosen Area | F16: =IF('Population(s)'!$H$12="","",'Population(s)'!$H$12) -> 
E18: With regards to 3 interventions aimed at preventing postnatal depression (PND), we have results relatable to both the mother and child in the form of cost savings and QALYs gained - Postnatal depression interventions_full. For the remaining 6 interventions aimed at preventing PND, due to a lack of evidence and information to provide a fully costed and robust analysis, only the cost of intervention and shorter-term QALYs to the mother are reported = PND interventions_basic.
E20: Please note that the below costs and effectiveness measures are incremental vs. care as usual
E24: Postnatal depression interventions_full
D26: ='Data extraction_Sc1'!C18 -> Midwifery redesigned postnatal care; Universal
F28: No. allocated to intervention | I28: =INDEX(Scenario1_inputs,MATCH(D26,Scenario1_inputs_intervention_names,0),MATCH(F28,Scenario1_inputs_headings,0)) -> 
F29: Length of benefit (mother): | I29: up to 10 years after birth
F30: Length of benefit (child): | I30: Lifetime
G32: Mother | I32: Child | L32: Combined
F33: Cost of intervention | G33: Cost savings per mother | H33: QALY gains per mother | I33: Cost savings per child | J33: QALY gains per child | L33: Combined cost savings | M33: Combined QALY gains | N33: Combined Net Benefit | O33: Combined monetised QALY gain | Q33: Combined ICER per QALY
E34: Per Person | F34: =INDEX(Full_PND_interventions,MATCH($D26,Full_PND_interventions_names,0),MATCH(F33,Full_PND_interventions_headings,0)) ->  | G34: =IFERROR(INDEX(Full_PND_interventions,MATCH($D26,Full_PND_interventions_names,0),MATCH(G33,Full_PND_interventions_headings,0)),"") ->  | H34: =IFERROR(INDEX(Full_PND_interventions,MATCH($D26,Full_PND_interventions_names,0),MATCH(H33,Full_PND_interventions_headings,0)),"") ->  | I34: =IFERROR(INDEX(Full_PND_interventions,MATCH($D26,Full_PND_interventions_names,0),MATCH(I33,Full_PND_interventions_headings,0)),"") ->  | J34: =IFERROR(INDEX(Full_PND_interventions,MATCH($D26,Full_PND_interventions_names,0),MATCH(J33,Full_PND_interventions_headings,0)),"") ->  | L34: =IFERROR(INDEX(Full_PND_interventions,MATCH($D26,Full_PND_interventions_names,0),MATCH(L33,Full_PND_interventions_headings,0)),"") ->  | M34: =IFERROR(INDEX(Full_PND_interventions,MATCH($D26,Full_PND_interventions_names,0),MATCH(M33,Full_PND_interventions_headings,0)),"") ->  | N34: =IFERROR(INDEX(Full_PND_interventions,MATCH($D26,Full_PND_interventions_names,0),MATCH(N33,Full_PND_interventions_headings,0)),"") ->  | O34: =IFERROR(M34*'Other Inputs'!$I$12,"") ->  | Q34: =IFERROR(INDEX(Full_PND_interventions,MATCH($D26,Full_PND_interventions_names,0),MATCH(Q33,Full_PND_interventions_headings,0)),"") -> 
E35: Total | F35: =IFERROR(F34*$I$28,"") ->  | G35: =IFERROR(G34*$I$28,"") ->  | H35: =IFERROR(H34*$I$28,"") ->  | I35: =IFERROR(I34*$I$28,"") ->  | J35: =IFERROR(J34*$I$28,"") ->  | L35: =IFERROR(L34*$I$28,"") ->  | M35: =IFERROR(M34*$I$28,"") ->  | N35: =IFERROR(N34*$I$28,"") ->  | O35: =IFERROR(O34*$I$28,"") -> 
E37: The cost savings and QALYs measured for this intervention are associated with: • Number of Postnatal Depression cases averted • Public sector costs (Health and Social Care) and QALY losses of perinatal depression for mothers for a period of 10 years after birth. The 10 year period is selected by the author of the study as it aligns with the data on remission of an episode of mental illness. The author assumes that by that time all mothers would have recovered from their initial episode. • Public sector costs (Health and Social Care, Education and Criminal Justice) and QALY losses for children throughout their lives as a result of the mother's perinatal depression
E38: =IFERROR(CONCATENATE("Cost savings and QALY gains for mothers are caused by ", ROUND(I28*'Further Calculations_Sc1'!$J$52,2), " avoided cases of postnatal depression. It can be assumed that these averted cases have a direct effect on ", ROUND(I28*'Further Calculations_Sc1'!$J$52,2), " children. The cost savings QALY gains achieved from the children pespective are based on", " health and social care savings, educational savings and criminal savings."),"") -> 
D43: ='Data extraction_Sc1'!C26 -> Peer Support Intervention for Prevention of Postpartum Depression; Selective
F45: No. allocated to intervention | I45: =INDEX(Scenario1_inputs,MATCH(D43,Scenario1_inputs_intervention_names,0),MATCH(F45,Scenario1_inputs_headings,0)) -> 
F46: Length of benefit (mother): | I46: up to 10 years after birth
F47: Length of benefit (child): | I47: Lifetime
G49: Mother | I49: Child | L49: Combined
F50: Cost of intervention | G50: Cost savings per mother | H50: QALY gains per mother | I50: Cost savings per child | J50: QALY gains per child | L50: Combined cost savings | M50: Combined QALY gains | N50: Combined Net Benefit | O50: Combined monetised QALY gain | Q50: Combined ICER per QALY
E51: Per Person | F51: =INDEX(Full_PND_interventions,MATCH($D43,Full_PND_interventions_names,0),MATCH(F50,Full_PND_interventions_headings,0)) ->  | G51: =IFERROR(INDEX(Full_PND_interventions,MATCH($D43,Full_PND_interventions_names,0),MATCH(G50,Full_PND_interventions_headings,0)),"") ->  | H51: =IFERROR(INDEX(Full_PND_interventions,MATCH($D43,Full_PND_interventions_names,0),MATCH(H50,Full_PND_interventions_headings,0)),"") ->  | I51: =IFERROR(INDEX(Full_PND_interventions,MATCH($D43,Full_PND_interventions_names,0),MATCH(I50,Full_PND_interventions_headings,0)),"") ->  | J51: =IFERROR(INDEX(Full_PND_interventions,MATCH($D43,Full_PND_interventions_names,0),MATCH(J50,Full_PND_interventions_headings,0)),"") ->  | L51: =IFERROR(INDEX(Full_PND_interventions,MATCH($D43,Full_PND_interventions_names,0),MATCH(L50,Full_PND_interventions_headings,0)),"") ->  | M51: =IFERROR(INDEX(Full_PND_interventions,MATCH($D43,Full_PND_interventions_names,0),MATCH(M50,Full_PND_interventions_headings,0)),"") ->  | N51: =IFERROR(INDEX(Full_PND_interventions,MATCH($D43,Full_PND_interventions_names,0),MATCH(N50,Full_PND_interventions_headings,0)),"") ->  | O51: =IFERROR(M51*'Other Inputs'!$I$12,"") ->  | Q51: =IFERROR(INDEX(Full_PND_interventions,MATCH($D43,Full_PND_interventions_names,0),MATCH(Q50,Full_PND_interventions_headings,0)),"") -> 
E52: Total | F52: =IFERROR(F51*$I$45,"") ->  | G52: =IFERROR(G51*$I$45,"") ->  | H52: =IFERROR(H51*$I$45,"") ->  | I52: =IFERROR(I51*$I$45,"") ->  | J52: =IFERROR(J51*$I$45,"") ->  | L52: =IFERROR(L51*$I$45,"") ->  | M52: =IFERROR(M51*$I$45,"") ->  | N52: =IFERROR(N51*$I$45,"") ->  | O52: =IFERROR(O51*$I$45,"") -> 
E54: The cost savings and QALYs measured for this intervention are associated with: • Number of Postnatal Depression cases averted • Public sector costs (Health and Social Care) and QALY losses of perinatal depression for mothers for a period of 10 years after birth. The 10 year period is selected by the author of the study as it aligns with the data on remission of an episode of mental illness. The author assumes that by that time all mothers would have recovered from their initial episode. • Public sector costs (Health and Social Care, Education and Criminal Justice) and QALY losses for children throughout their lives as a result of the mother's perinatal depression
E55: =IFERROR(CONCATENATE("Cost savings and QALY gains for mothers are caused by ", ROUND(I45*'Further Calculations_Sc1'!$J$53,2), " avoided cases of postnatal depression. It can be assume that these averted cases have a direct effect on ", ROUND(I45*'Further Calculations_Sc1'!$J$53,2), " children. The cost savings QALY gains achieved from the children pespective are based on", " health and social care savings, educational savings and criminal savings."),"") -> 
D60: ='Data extraction_Sc1'!C27 -> Group physical therapy exercises; Universal
F62: No. allocated to intervention | I62: =INDEX(Scenario1_inputs,MATCH(D60,Scenario1_inputs_intervention_names,0),MATCH(F62,Scenario1_inputs_headings,0)) -> 
F63: Length of benefit (mother): | I63: up to 10 years after birth
F64: Length of benefit (child): | I64: Lifetime
G66: Mother | I66: Child | L66: Combined
F67: Cost of intervention | G67: Cost savings per mother | H67: QALY gains per mother | I67: Cost savings per child | J67: QALY gains per child | L67: Combined cost savings | M67: Combined QALY gains | N67: Combined Net Benefit | O67: Combined monetised QALY gain | Q67: Combined ICER per QALY
E68: Per Person | F68: =INDEX(Full_PND_interventions,MATCH($D60,Full_PND_interventions_names,0),MATCH(F67,Full_PND_interventions_headings,0)) ->  | G68: =IFERROR(INDEX(Full_PND_interventions,MATCH($D60,Full_PND_interventions_names,0),MATCH(G67,Full_PND_interventions_headings,0)),"") ->  | H68: =IFERROR(INDEX(Full_PND_interventions,MATCH($D60,Full_PND_interventions_names,0),MATCH(H67,Full_PND_interventions_headings,0)),"") ->  | I68: =IFERROR(INDEX(Full_PND_interventions,MATCH($D60,Full_PND_interventions_names,0),MATCH(I67,Full_PND_interventions_headings,0)),"") ->  | J68: =IFERROR(INDEX(Full_PND_interventions,MATCH($D60,Full_PND_interventions_names,0),MATCH(J67,Full_PND_interventions_headings,0)),"") ->  | L68: =IFERROR(INDEX(Full_PND_interventions,MATCH($D60,Full_PND_interventions_names,0),MATCH(L67,Full_PND_interventions_headings,0)),"") ->  | M68: =IFERROR(INDEX(Full_PND_interventions,MATCH($D60,Full_PND_interventions_names,0),MATCH(M67,Full_PND_interventions_headings,0)),"") ->  | N68: =IFERROR(INDEX(Full_PND_interventions,MATCH($D60,Full_PND_interventions_names,0),MATCH(N67,Full_PND_interventions_headings,0)),"") ->  | O68: =IFERROR(M68*'Other Inputs'!$I$12,"") ->  | Q68: =IFERROR(INDEX(Full_PND_interventions,MATCH($D60,Full_PND_interventions_names,0),MATCH(Q67,Full_PND_interventions_headings,0)),"") -> 
E69: Total | F69: =IFERROR(F68*$I$62,"") ->  | G69: =IFERROR(G68*$I$62,"") ->  | H69: =IFERROR(H68*$I$62,"") ->  | I69: =IFERROR(I68*$I$62,"") ->  | J69: =IFERROR(J68*$I$62,"") ->  | L69: =IFERROR(L68*$I$62,"") ->  | M69: =IFERROR(M68*$I$62,"") ->  | N69: =IFERROR(N68*$I$62,"") ->  | O69: =IFERROR(O68*$I$62,"") -> 
E71: The cost savings and QALYs measured for this intervention are associated with: • Number of Postnatal Depression cases averted • Public sector costs (Health and Social Care) and QALY losses of perinatal depression for mothers for a period of 10 years after birth. The 10 year period is selected by the author of the study as it aligns with the data on remission of an episode of mental illness. The author assumes that by that time all mothers would have recovered from their initial episode. • Public sector costs (Health and Social Care, Education and Criminal Justice) and QALY losses for children throughout their lives as a result of the mother's perinatal depression
E72: =IFERROR(CONCATENATE("Cost savings and QALY gains for mothers are caused by ", ROUND(I62*'Further Calculations_Sc1'!$J$54,2), " avoided cases of postnatal depression. It can be assume that these averted cases have a direct effect on ", ROUND(I62*'Further Calculations_Sc1'!$J$54,2), " children. The cost savings QALY gains achieved from the children pespective are based on", " health and social care savings, educational savings and criminal savings."),"") -> 
E77: Postnatal depression interventions_basic
E79: As aforementioned, due to a lack of relevant information, a robust analysis of the following 6 interventions was not possible. Please note that no cost savings, and only limited QALY gains, were reported for the below interventions.
D81: ='Intervention(s)_Sc2'!H48 -> Booklet on PND; Universal
F83: No. allocated to intervention | I83: =INDEX(Scenario1_inputs,MATCH(D81,Scenario1_inputs_intervention_names,0),MATCH(F83,Scenario1_inputs_headings,0)) -> 
F84: Length of benefit: | I84: 1 year
F87: Cost of intervention | G87: Cost Saving | H87: Net benefit | I87: QALY gain | J87: Monetised QALY gain | L87: ICER (cost of intervention + timeframe benefits)
E88: Per Person | F88: =INDEX(Scenario1_inputs,MATCH(D81,Scenario1_inputs_intervention_names,0),MATCH(F87,Scenario1_inputs_headings,0)) ->  | G88: =IF($I$83="","",INDEX(Intervention_info,MATCH($D81,Intervention_name,0),MATCH($G87,Intervention_info_headings,0))) ->  | H88: =IFERROR(G88-F88,"") ->  | I88: =IF($I$83="","",INDEX(Intervention_info,MATCH($D81,Intervention_name,0),MATCH($I87,Intervention_info_headings,0))) ->  | J88: =IFERROR(I88*'Other Inputs'!$I$12,"") ->  | L88: =IFERROR(IF(-H89/I89<0,"dominant",-H89/I89),"") -> 
E89: Total | F89: =IFERROR(F88*$I$83,"") ->  | G89: =IFERROR(G88*$I$83,"") ->  | H89: =IFERROR(H88*$I$83,"") ->  | I89: =IFERROR(I88*$I$83,"") ->  | J89: =IFERROR(I89*'Other Inputs'!$I$12,"") -> 
E91: The QALY gains per person have been calculated from the EPDS scores of the population that was initially assessed by the evidence paper. The evidence source did not present data on cost savings achieved by this intervention. As a result, the analysis includes only the incremental cost of the intervention. ** It is important here to note that costs savings and additional QALY gains not captured here are likely to be achieved by implementing the intervention. **
E93: =IFERROR(CONCATENATE("For this intervention to be dominant, in a cohort of ",ROUNDUP(I83,0), " people, a number of ",ROUNDUP(ABS(H88)/SUM('Further Calculations_Sc1'!$A$36, 'Further Calculations_Sc1'!$A$43, 'Further Calculations_Sc1'!$A$46, 'Further Calculations_Sc1'!$A$49)*I83,5), " case averted must be achieved. This is equivalent to 1 case in ", ROUNDUP(SUM('Further Calculations_Sc1'!$A$36, 'Further Calculations_Sc1'!$A$43, 'Further Calculations_Sc1'!$A$46, 'Further Calculations_Sc1'!$A$49)/ABS(H88),0)," people." ),"") -> 
D97: ='Intervention(s)_Sc2'!H49 -> Early contact with care provider; Universal
F99: No. allocated to intervention | I99: =INDEX(Scenario1_inputs,MATCH(D97,Scenario1_inputs_intervention_names,0),MATCH(F99,Scenario1_inputs_headings,0)) -> 
F100: Length of benefit: | I100: 1 year
F103: Cost of intervention | G103: Cost Saving | H103: Net benefit | I103: QALY gain | J103: Monetised QALY gain | L103: ICER (cost of intervention + timeframe benefits)
E104: Per Person | F104: =INDEX(Scenario1_inputs,MATCH(D97,Scenario1_inputs_intervention_names,0),MATCH(F103,Scenario1_inputs_headings,0)) ->  | G104: =IF($I$99="","",INDEX(Intervention_info,MATCH($D97,Intervention_name,0),MATCH($G103,Intervention_info_headings,0))) ->  | H104: =IFERROR(IF($I$99="","",G104-F104),"") ->  | I104: =IF($I$99="","",INDEX(Intervention_info,MATCH($D97,Intervention_name,0),MATCH($I103,Intervention_info_headings,0))) ->  | J104: =IFERROR(I104*'Other Inputs'!$I$12,"") ->  | L104: =IFERROR(IF(-H105/I105<0,"dominant",-H105/I105),"") -> 
E105: Total | F105: =IFERROR(F104*$I$99,"") ->  | G105: =IFERROR(G104*$I$99,"") ->  | H105: =IFERROR(H104*$I$99,"") ->  | I105: =IFERROR(I104*$I$99,"") ->  | J105: =IFERROR(I105*'Other Inputs'!$I$12,"") -> 
E107: The QALY gains per person have been calculated from the EPDS scores of the population that was initially assessed by the evidence paper. The evidence source did not present data on cost savings achieved by this intervention. As a result, the analysis includes only the incremental cost of the intervention. ** It is important here to note that costs savings and additional QALY gains not captured here are likely to be achieved by implementing the intervention. **
E109: =IFERROR(CONCATENATE("For this intervention to be dominant, in a cohort of ",ROUNDUP(I99,0), " people, a number of ",ROUNDUP(ABS(H104)/SUM('Further Calculations_Sc1'!$A$36, 'Further Calculations_Sc1'!$A$43, 'Further Calculations_Sc1'!$A$46, 'Further Calculations_Sc1'!$A$49)*I99,5), " case averted must be achieved. This is equivalent to 1 case in ", ROUNDUP(SUM('Further Calculations_Sc1'!$A$36, 'Further Calculations_Sc1'!$A$43, 'Further Calculations_Sc1'!$A$46, 'Further Calculations_Sc1'!$A$49)/ABS(H104),0)," people." ),"") -> 
D113: ='Intervention(s)_Sc2'!H50 -> Calcium; Universal
F115: No. allocated to intervention | I115: =INDEX(Scenario1_inputs,MATCH(D113,Scenario1_inputs_intervention_names,0),MATCH(F115,Scenario1_inputs_headings,0)) -> 
F116: Length of benefit: | I116: 1 year
F119: Cost of intervention | G119: Cost Saving | H119: Net benefit | I119: QALY gain | J119: Monetised QALY gain | L119: ICER (cost of intervention + timeframe benefits)
E120: Per Person | F120: =INDEX(Scenario1_inputs,MATCH(D113,Scenario1_inputs_intervention_names,0),MATCH(F119,Scenario1_inputs_headings,0)) ->  | G120: =IF($I$115="","",INDEX(Intervention_info,MATCH($D113,Intervention_name,0),MATCH($G119,Intervention_info_headings,0))) ->  | H120: =IFERROR(IF($I$115="","",G120-F120),"") ->  | I120: =IF($I$115="","",INDEX(Intervention_info,MATCH($D113,Intervention_name,0),MATCH($I119,Intervention_info_headings,0))) ->  | J120: =IFERROR(I120*'Other Inputs'!$I$12,"") ->  | L120: =IFERROR(IF(-H121/I121<0,"dominant",-H121/I121),"") -> 
E121: Total | F121: =IFERROR(F120*$I$115,"") ->  | G121: =IFERROR(G120*$I$115,"") ->  | H121: =IFERROR(H120*$I$115,"") ->  | I121: =IFERROR(I120*$I$115,"") ->  | J121: =IFERROR(I121*'Other Inputs'!$I$12,"") -> 
E123: The QALY gains per person have been calculated from the EPDS scores of the population that was initially assessed by the evidence paper. The evidence source did not present data on cost savings achieved by this intervention. As a result, the analysis includes only the incremental cost of the intervention. ** It is important here to note that costs savings and additional QALY gains not captured here are likely to be achieved by implementing the intervention. **
E125: =IFERROR(CONCATENATE("For this intervention to be dominant, in a cohort of ",ROUNDUP(I115,0), " people, a number of ",ROUNDUP(ABS(H120)/SUM('Further Calculations_Sc1'!$A$36, 'Further Calculations_Sc1'!$A$43, 'Further Calculations_Sc1'!$A$46, 'Further Calculations_Sc1'!$A$49)*I115,5), " case averted must be achieved. This is equivalent to 1 case in ", ROUNDUP(SUM('Further Calculations_Sc1'!$A$36, 'Further Calculations_Sc1'!$A$43, 'Further Calculations_Sc1'!$A$46, 'Further Calculations_Sc1'!$A$49)/ABS(H120),0)," people." ),"") -> 
D129: ='Intervention(s)_Sc2'!H51 -> CBT-based intervention; Selective
F131: No. allocated to intervention | I131: =INDEX(Scenario1_inputs,MATCH(D129,Scenario1_inputs_intervention_names,0),MATCH(F131,Scenario1_inputs_headings,0)) -> 
F132: Length of benefit: | I132: 1 year
F135: Cost of intervention | G135: Cost Saving | H135: Net benefit | I135: QALY gain | J135: Monetised QALY gain | L135: ICER (cost of intervention + timeframe benefits)
E136: Per Person | F136: =INDEX(Scenario1_inputs,MATCH(D129,Scenario1_inputs_intervention_names,0),MATCH(F135,Scenario1_inputs_headings,0)) ->  | G136: =IF($I$131="","",INDEX(Intervention_info,MATCH($D129,Intervention_name,0),MATCH($G135,Intervention_info_headings,0))) ->  | H136: =IFERROR(IF($I$131="","",G136-F136),"") ->  | I136: =IF($I$131="","",INDEX(Intervention_info,MATCH($D129,Intervention_name,0),MATCH($I135,Intervention_info_headings,0))) ->  | J136: =IFERROR(I136*'Other Inputs'!$I$12,"") ->  | L136: =IFERROR(IF(-H137/I137<0,"dominant",-H137/I137),"") -> 
E137: Total | F137: =IFERROR(F136*$I$131,"") ->  | G137: =IFERROR(G136*$I$131,"") ->  | H137: =IFERROR(H136*$I$131,"") ->  | I137: =IFERROR(I136*$I$131,"") ->  | J137: =IFERROR(I137*'Other Inputs'!$I$12,"") -> 
E139: The QALY gains per person have been calculated from the EPDS scores of the population that was initially assessed by the evidence paper. The evidence source did not present data on cost savings achieved by this intervention. As a result, the analysis includes only the incremental cost of the intervention. ** It is important here to note that costs savings and additional QALY gains not captured here are likely to be achieved by implementing the intervention. **
E141: =IFERROR(CONCATENATE("For this intervention to be dominant, in a cohort of ",ROUNDUP(I131,0), " people, a number of ",ROUNDUP(ABS(H136)/SUM('Further Calculations_Sc1'!$A$36, 'Further Calculations_Sc1'!$A$43, 'Further Calculations_Sc1'!$A$46, 'Further Calculations_Sc1'!$A$49)*I131,5), " case averted must be achieved. This is equivalent to 1 case in ", ROUNDUP(SUM('Further Calculations_Sc1'!$A$36, 'Further Calculations_Sc1'!$A$43, 'Further Calculations_Sc1'!$A$46, 'Further Calculations_Sc1'!$A$49)/ABS(H136),0)," people." ),"") -> 
D145: ='Intervention(s)_Sc2'!H52 -> Education on preparing for parenting; Selective
F147: No. allocated to intervention | I147: =INDEX(Scenario1_inputs,MATCH(D145,Scenario1_inputs_intervention_names,0),MATCH(F147,Scenario1_inputs_headings,0)) -> 
F148: Length of benefit: | I148: 1 year
F151: Cost of intervention | G151: Cost Saving | H151: Net benefit | I151: QALY gain | J151: Monetised QALY gain | L151: ICER (cost of intervention + timeframe benefits)
E152: Per Person | F152: =INDEX(Scenario1_inputs,MATCH(D145,Scenario1_inputs_intervention_names,0),MATCH(F151,Scenario1_inputs_headings,0)) ->  | G152: =IF($I$147="","",INDEX(Intervention_info,MATCH($D145,Intervention_name,0),MATCH($G151,Intervention_info_headings,0))) ->  | H152: =IFERROR(IF($I$147="","",G152-F152),"") ->  | I152: =IF($I$147="","",INDEX(Intervention_info,MATCH($D145,Intervention_name,0),MATCH($I151,Intervention_info_headings,0))) ->  | J152: =IFERROR(I152*'Other Inputs'!$I$12,"") ->  | L152: =IFERROR(IF(-H153/I153<0,"dominant",-H153/I153),"") -> 
E153: Total | F153: =IFERROR(F152*$I$147,"") ->  | G153: =IFERROR(G152*$I$147,"") ->  | J153: =IFERROR(I153*'Other Inputs'!$I$12,"") -> 
E155: The QALY gains per person have been calculated from the EPDS scores of the population that was initially assessed by the evidence paper. The evidence source did not present data on cost savings achieved by this intervention. As a result, the analysis includes only the incremental cost of the intervention. ** It is important here to note that costs savings and additional QALY gains not captured here are likely to be achieved by implementing the intervention. **
E157: =IFERROR(CONCATENATE("For this intervention to be dominant, in a cohort of ",ROUNDUP(I147,0), " people, a number of ",ROUNDUP(ABS(H152)/SUM('Further Calculations_Sc1'!$A$36, 'Further Calculations_Sc1'!$A$43, 'Further Calculations_Sc1'!$A$46, 'Further Calculations_Sc1'!$A$49)*I147,5), " case averted must be achieved. This is equivalent to 1 case in ", ROUNDUP(SUM('Further Calculations_Sc1'!$A$36, 'Further Calculations_Sc1'!$A$43, 'Further Calculations_Sc1'!$A$46, 'Further Calculations_Sc1'!$A$49)/ABS(H152),0)," people." ),"") -> 
D161: ='Intervention(s)_Sc2'!H53 -> IPT-based intervention; Selective
F163: No. allocated to intervention | I163: =INDEX(Scenario1_inputs,MATCH(D161,Scenario1_inputs_intervention_names,0),MATCH(F163,Scenario1_inputs_headings,0)) -> 
F164: Length of benefit: | I164: 1 year
F167: Cost of intervention | G167: Cost Saving | H167: Net benefit | I167: QALY gain | J167: Monetised QALY gain | L167: ICER (cost of intervention + timeframe benefits)
E168: Per Person | F168: =INDEX(Scenario1_inputs,MATCH(D161,Scenario1_inputs_intervention_names,0),MATCH(F167,Scenario1_inputs_headings,0)) ->  | G168: =IF($I$163="","",INDEX(Intervention_info,MATCH($D161,Intervention_name,0),MATCH($G167,Intervention_info_headings,0))) ->  | H168: =IFERROR(IF($I$163="","",G168-F168),"") ->  | I168: =IF($I$163="","",INDEX(Intervention_info,MATCH($D161,Intervention_name,0),MATCH($I167,Intervention_info_headings,0))) ->  | J168: =IFERROR(I168*'Other Inputs'!$I$12,"") ->  | L168: =IFERROR(IF(-H169/I169<0,"dominant",-H169/I169),"") -> 
E169: Total | F169: =IFERROR(F168*$I$163,"") ->  | G169: =IFERROR(G168*$I$163,"") ->  | H169: =IFERROR(H168*$I$163,"") ->  | I169: =IFERROR(I168*$I$163,"") ->  | J169: =IFERROR(I169*'Other Inputs'!$I$12,"") -> 
E171: The QALY gains per person have been calculated from the EPDS scores of the population that was initially assessed by the evidence paper. The evidence source did not present data on cost savings achieved by this intervention. As a result, the analysis includes only the incremental cost of the intervention. ** It is important here to note that costs savings and additional QALY gains not captured here are likely to be achieved by implementing the intervention. **
E173: =IFERROR(CONCATENATE("For this intervention to be dominant, in a cohort of ",ROUNDUP(I163,0), " people, a number of ",ROUNDUP(ABS(H168)/SUM('Further Calculations_Sc1'!$A$36, 'Further Calculations_Sc1'!$A$43, 'Further Calculations_Sc1'!$A$46, 'Further Calculations_Sc1'!$A$49)*I163,5), " case averted must be achieved. This is equivalent to 1 case in ", ROUNDUP(SUM('Further Calculations_Sc1'!$A$36, 'Further Calculations_Sc1'!$A$43, 'Further Calculations_Sc1'!$A$46, 'Further Calculations_Sc1'!$A$49)/ABS(H168),0)," people." ),"") -> 

Sheet Results_PND_Sc2
G5: Net costs = positive value is a cost
E10: PND RESULTS: SCENARIO 2
E11: This sheet is used to present results for scenario 2 for the breastfeeding interventions, which can then be compared against a 'do nothing' scenario (i.e. no interventions over and above usual care), and another custom scenario (scenario 1)
E13: =IF(OR($F$15="",$F$16=""),"Please go to 'Population(s) sheet and select area type and chosen area","") -> Please go to 'Population(s) sheet and select area type and chosen area
E14: Population of the selected Local Authority (from Population(s) sheet)
E15: Area type | F15: =IF('Population(s)'!$H$11="","",'Population(s)'!$H$11) -> 
E16: Chosen Area | F16: =IF('Population(s)'!$H$12="","",'Population(s)'!$H$12) -> 
E18: With regards to 3 interventions aimed at preventing postnatal depression (PND), we have results relatable to both the mother and child in the form of cost savings and QALYs gained - Postnatal depression interventions_full. For the remaining 6 interventions aimed at preventing PND, due to a lack of evidence and information to provide a fully costed and robust analysis, only the cost of intervention and shorter-term QALYs to the mother are reported = PND interventions_basic.
E20: Please note that the below costs and effectiveness measures are incremental vs. care as usual
E23: Postnatal depression interventions_full
D25: ='Data extraction_Sc1'!C18 -> Midwifery redesigned postnatal care; Universal
F27: No. allocated to intervention | I27: =IF(INDEX(Scenario2_inputs,MATCH(D25,Scenario2_inputs_intervention_names,0),MATCH(F27,Scenario2_inputs_headings,0))="","",INDEX(Scenario2_inputs,MATCH(D25,Scenario2_inputs_intervention_names,0),MATCH(F27,Scenario2_inputs_headings,0))) -> 
F28: Length of benefit (mother): | I28: up to 10 years after birth
F29: Length of benefit (child): | I29: Lifetime
G31: Mother | I31: Child | L31: Combined
F32: Cost of intervention | G32: Cost savings per mother | H32: QALY gains per mother | I32: Cost savings per child | J32: QALY gains per child | L32: Combined cost savings | M32: Combined QALY gains | N32: Combined Net Benefit | O32: Combined monetised QALY gain | Q32: Combined ICER per QALY
E33: Per Person | F33: =IF($I$27="","",INDEX(Full_PND_Sc2_info,MATCH($D$25,Full_PND_Sc2_info_intervention_names,0),MATCH(F32,Full_PND_Sc2_info_intervention_headings,0))) ->  | G33: =IF($I$27="","",INDEX(Full_PND_Sc2_info,MATCH($D$25,Full_PND_Sc2_info_intervention_names,0),MATCH(G32,Full_PND_Sc2_info_intervention_headings,0))) ->  | H33: =IF($I$27="","",INDEX(Full_PND_Sc2_info,MATCH($D$25,Full_PND_Sc2_info_intervention_names,0),MATCH(H32,Full_PND_Sc2_info_intervention_headings,0))) ->  | I33: =IF($I$27="","",INDEX(Full_PND_Sc2_info,MATCH($D$25,Full_PND_Sc2_info_intervention_names,0),MATCH(I32,Full_PND_Sc2_info_intervention_headings,0))) ->  | J33: =IF($I$27="","",INDEX(Full_PND_Sc2_info,MATCH($D$25,Full_PND_Sc2_info_intervention_names,0),MATCH(J32,Full_PND_Sc2_info_intervention_headings,0))) ->  | L33: =IF($I$27="","",INDEX(Full_PND_Sc2_info,MATCH($D$25,Full_PND_Sc2_info_intervention_names,0),MATCH(L32,Full_PND_Sc2_info_intervention_headings,0))) ->  | M33: =IF($I$27="","",INDEX(Full_PND_Sc2_info,MATCH($D$25,Full_PND_Sc2_info_intervention_names,0),MATCH(M32,Full_PND_Sc2_info_intervention_headings,0))) ->  | N33: =IF($I$27="","",INDEX(Full_PND_Sc2_info,MATCH($D$25,Full_PND_Sc2_info_intervention_names,0),MATCH(N32,Full_PND_Sc2_info_intervention_headings,0))) ->  | O33: =IFERROR(M33*'Other Inputs'!$I$12,"") ->  | Q33: =IFERROR(INDEX(Full_PND_Sc2_info,MATCH($D$25,Full_PND_Sc2_info_intervention_names,0),MATCH(Q32,Full_PND_Sc2_info_intervention_headings,0)),"") -> 
E34: Total | F34: =IFERROR(F33*$I$27,"") ->  | G34: =IFERROR(G33*$I$27,"") ->  | H34: =IFERROR(H33*$I$27,"") ->  | I34: =IFERROR(I33*$I$27,"") ->  | J34: =IFERROR(J33*$I$27,"") ->  | L34: =IFERROR(L33*$I$27,"") ->  | M34: =IFERROR(M33*$I$27,"") ->  | N34: =IFERROR(N33*$I$27,"") ->  | O34: =IFERROR(O33*$I$27,"") ->  | Q34: =INDEX(Full_PND_Sc2_info,MATCH($D$25,Full_PND_Sc2_info_intervention_names,0),MATCH(Q33,Full_PND_Sc2_info_intervention_headings,0)) -> 
E36: The cost savings and QALYs measured for this intervention are associated with: • Number of Postnatal Depression cases averted • Public sector costs (Health and Social Care) and QALY losses of perinatal depression for mothers for a period of 10 years after birth. The 10 year period is selected by the author of the study as it aligns with the data on remission of an episode of mental illness. The author assumes that by that time all mothers would have recovered from their initial episode. • Public sector costs (Health and Social Care, Education and Criminal Justice) and QALY losses for children throughout their lives as a result of the mother's perinatal depression
E37: =IFERROR(CONCATENATE("Cost savings and QALY gains for mothers are caused by ", ROUND(I27*'Further Calculations_Sc2'!$J$52,2), " avoided cases of postnatal depression. It can be assume that these averted cases have a direct effect on ", ROUND(I27*'Further Calculations_Sc2'!$J$52,2), " children. The cost savings QALY gains achieved from the children pespective are based on", " health and social care savings, educational savings and criminal savings."),"") -> 
D42: ='Data extraction_Sc1'!C26 -> Peer Support Intervention for Prevention of Postpartum Depression; Selective
F44: No. allocated to intervention | I44: =IF(INDEX(Scenario2_inputs,MATCH(D42,Scenario2_inputs_intervention_names,0),MATCH(F44,Scenario2_inputs_headings,0))="","",INDEX(Scenario2_inputs,MATCH(D42,Scenario2_inputs_intervention_names,0),MATCH(F44,Scenario2_inputs_headings,0))) -> 
F45: Length of benefit (mother): | I45: up to 10 years after birth
F46: Length of benefit (child): | I46: Lifetime
G48: Mother | I48: Child | L48: Combined
F49: Cost of intervention | G49: Cost savings per mother | H49: QALY gains per mother | I49: Cost savings per child | J49: QALY gains per child | L49: Combined cost savings | M49: Combined QALY gains | N49: Combined Net Benefit | O49: Combined monetised QALY gain | Q49: Combined ICER per QALY
E50: Per Person | F50: =IF($I$44="","",INDEX(Full_PND_Sc2_info,MATCH($D$42,Full_PND_Sc2_info_intervention_names,0),MATCH(F49,Full_PND_Sc2_info_intervention_headings,0))) ->  | G50: =IF($I$44="","",INDEX(Full_PND_Sc2_info,MATCH($D$42,Full_PND_Sc2_info_intervention_names,0),MATCH(G49,Full_PND_Sc2_info_intervention_headings,0))) ->  | H50: =IF($I$44="","",INDEX(Full_PND_Sc2_info,MATCH($D$42,Full_PND_Sc2_info_intervention_names,0),MATCH(H49,Full_PND_Sc2_info_intervention_headings,0))) ->  | I50: =IF($I$44="","",INDEX(Full_PND_Sc2_info,MATCH($D$42,Full_PND_Sc2_info_intervention_names,0),MATCH(I49,Full_PND_Sc2_info_intervention_headings,0))) ->  | J50: =IF($I$44="","",INDEX(Full_PND_Sc2_info,MATCH($D$42,Full_PND_Sc2_info_intervention_names,0),MATCH(J49,Full_PND_Sc2_info_intervention_headings,0))) ->  | L50: =IF($I$44="","",INDEX(Full_PND_Sc2_info,MATCH($D$42,Full_PND_Sc2_info_intervention_names,0),MATCH(L49,Full_PND_Sc2_info_intervention_headings,0))) ->  | M50: =IF($I$44="","",INDEX(Full_PND_Sc2_info,MATCH($D$42,Full_PND_Sc2_info_intervention_names,0),MATCH(M49,Full_PND_Sc2_info_intervention_headings,0))) ->  | N50: =IF($I$44="","",INDEX(Full_PND_Sc2_info,MATCH($D$42,Full_PND_Sc2_info_intervention_names,0),MATCH(N49,Full_PND_Sc2_info_intervention_headings,0))) ->  | O50: =IFERROR(M50*'Other Inputs'!$I$12,"") ->  | Q50: =IFERROR(INDEX(Full_PND_Sc2_info,MATCH($D$42,Full_PND_Sc2_info_intervention_names,0),MATCH(Q49,Full_PND_Sc2_info_intervention_headings,0)),"") -> 
E51: Total | F51: =IF($I$44="","",F50*$I$44) ->  | G51: =IF($I$44="","",G50*$I$44) ->  | H51: =IF($I$44="","",H50*$I$44) ->  | I51: =IF($I$44="","",I50*$I$44) ->  | J51: =IF($I$44="","",J50*$I$44) ->  | L51: =IF($I$44="","",L50*$I$44) ->  | M51: =IF($I$44="","",M50*$I$44) ->  | N51: =IF($I$44="","",N50*$I$44) ->  | O51: =IF($I$44="","",O50*$I$44) ->  | Q51: =INDEX(Full_PND_Sc2_info,MATCH($D$42,Full_PND_Sc2_info_intervention_names,0),MATCH(Q50,Full_PND_Sc2_info_intervention_headings,0)) -> 
E53: The cost savings and QALYs measured for this intervention are associated with: • Number of Postnatal Depression cases averted • Public sector costs (Health and Social Care) and QALY losses of perinatal depression for mothers for a period of 10 years after birth. The 10 year period is selected by the author of the study as it aligns with the data on remission of an episode of mental illness. The author assumes that by that time all mothers would have recovered from their initial episode. • Public sector costs (Health and Social Care, Education and Criminal Justice) and QALY losses for children throughout their lives as a result of the mother's perinatal depression
E54: =IFERROR(CONCATENATE("Cost savings and QALY gains for mothers are caused by ", ROUND(I44*'Further Calculations_Sc2'!$J$53,2), " avoided cases of postnatal depression. It can be assume that these averted cases have a direct effect on ", ROUND(I44*'Further Calculations_Sc2'!$J$53,2), " children. The cost savings QALY gains achieved from the children pespective are based on", " health and social care savings, educational savings and criminal savings."),"") -> 
D59: ='Data extraction_Sc1'!C27 -> Group physical therapy exercises; Universal
F61: No. allocated to intervention | I61: =IF(INDEX(Scenario2_inputs,MATCH(D59,Scenario2_inputs_intervention_names,0),MATCH(F61,Scenario2_inputs_headings,0))="","",INDEX(Scenario2_inputs,MATCH(D59,Scenario2_inputs_intervention_names,0),MATCH(F61,Scenario2_inputs_headings,0))) -> 
F62: Length of benefit (mother): | I62: up to 10 years after birth
F63: Length of benefit (child): | I63: Lifetime
G65: Mother | I65: Child | L65: Combined
F66: Cost of intervention | G66: Cost savings per mother | H66: QALY gains per mother | I66: Cost savings per child | J66: QALY gains per child | L66: Combined cost savings | M66: Combined QALY gains | N66: Combined Net Benefit | O66: Combined monetised QALY gain | Q66: Combined ICER per QALY
E67: Per Person | F67: =IF($I$61="","",INDEX(Full_PND_Sc2_info,MATCH($D$59,Full_PND_Sc2_info_intervention_names,0),MATCH(F66,Full_PND_Sc2_info_intervention_headings,0))) ->  | G67: =IF($I$61="","",INDEX(Full_PND_Sc2_info,MATCH($D$59,Full_PND_Sc2_info_intervention_names,0),MATCH(G66,Full_PND_Sc2_info_intervention_headings,0))) ->  | H67: =IF($I$61="","",INDEX(Full_PND_Sc2_info,MATCH($D$59,Full_PND_Sc2_info_intervention_names,0),MATCH(H66,Full_PND_Sc2_info_intervention_headings,0))) ->  | I67: =IF($I$61="","",INDEX(Full_PND_Sc2_info,MATCH($D$59,Full_PND_Sc2_info_intervention_names,0),MATCH(I66,Full_PND_Sc2_info_intervention_headings,0))) ->  | J67: =IF($I$61="","",INDEX(Full_PND_Sc2_info,MATCH($D$59,Full_PND_Sc2_info_intervention_names,0),MATCH(J66,Full_PND_Sc2_info_intervention_headings,0))) ->  | L67: =IF($I$61="","",INDEX(Full_PND_Sc2_info,MATCH($D$59,Full_PND_Sc2_info_intervention_names,0),MATCH(L66,Full_PND_Sc2_info_intervention_headings,0))) ->  | M67: =IF($I$61="","",INDEX(Full_PND_Sc2_info,MATCH($D$59,Full_PND_Sc2_info_intervention_names,0),MATCH(M66,Full_PND_Sc2_info_intervention_headings,0))) ->  | N67: =IF($I$61="","",INDEX(Full_PND_Sc2_info,MATCH($D$59,Full_PND_Sc2_info_intervention_names,0),MATCH(N66,Full_PND_Sc2_info_intervention_headings,0))) ->  | O67: =IFERROR(M67*'Other Inputs'!$I$12,"") ->  | Q67: =IFERROR(INDEX(Full_PND_Sc2_info,MATCH($D$42,Full_PND_Sc2_info_intervention_names,0),MATCH(Q66,Full_PND_Sc2_info_intervention_headings,0)),"") -> 
E68: Total | F68: =IFERROR(F67*$I$61,"") ->  | G68: =IFERROR(G67*$I$61,"") ->  | H68: =IFERROR(H67*$I$61,"") ->  | I68: =IFERROR(I67*$I$61,"") ->  | J68: =IFERROR(J67*$I$61,"") ->  | L68: =IFERROR(L67*$I$61,"") ->  | M68: =IFERROR(M67*$I$61,"") ->  | N68: =IFERROR(N67*$I$61,"") ->  | O68: =IFERROR(O67*$I$61,"") ->  | Q68: =INDEX(Full_PND_Sc2_info,MATCH($D$42,Full_PND_Sc2_info_intervention_names,0),MATCH(Q67,Full_PND_Sc2_info_intervention_headings,0)) -> 
E70: The cost savings and QALYs measured for this intervention are associated with: • Number of Postnatal Depression cases averted • Public sector costs (Health and Social Care) and QALY losses of perinatal depression for mothers for a period of 10 years after birth. The 10 year period is selected by the author of the study as it aligns with the data on remission of an episode of mental illness. The author assumes that by that time all mothers would have recovered from their initial episode. • Public sector costs (Health and Social Care, Education and Criminal Justice) and QALY losses for children throughout their lives as a result of the mother's perinatal depression
E71: =IFERROR(CONCATENATE("Cost savings and QALY gains for mothers are caused by ", ROUND(I61*'Further Calculations_Sc2'!$J$54,2), " avoided cases of postnatal depression. It can be assume that these averted cases have a direct effect on ", ROUND(I61*'Further Calculations_Sc2'!$J$54,2), " children. The cost savings QALY gains achieved from the children pespective are based on", " health and social care savings, educational savings and criminal savings."),"") -> 
E76: Postnatal depression interventions_basic
E78: As aforementioned, due to a lack of relevant information, a robust analysis of the following 6 interventions was not possible. Please note that no cost savings, and only limited QALY gains, were reported for the below interventions.
D80: ='Intervention(s)_Sc2'!H48 -> Booklet on PND; Universal
F82: No. allocated to intervention | I82: =IF(INDEX(Scenario2_inputs,MATCH(D80,Scenario2_inputs_intervention_names,0),MATCH(F82,Scenario2_inputs_headings,0))="","",INDEX(Scenario2_inputs,MATCH(D80,Scenario2_inputs_intervention_names,0),MATCH(F82,Scenario2_inputs_headings,0))) -> 
F83: Length of benefit: | I83: 1 year
F86: Cost of intervention | G86: Cost Saving | H86: Net benefit | I86: QALY gain | J86: Monetised QALY gain | L86: ICER (cost of intervention + timeframe benefits)
E87: Per Person | F87: =IF($I$82="","",INDEX(Scenario2_inputs,MATCH(D80,Scenario2_inputs_intervention_names,0),MATCH(F86,Scenario2_inputs_headings,0))) ->  | G87: =IF($I$82="","",INDEX(Intervention_info_Sc2,MATCH($D$80,Intervention_info_Sc2_Intervention_names,0),MATCH(G86,Intervention_info_Sc2_headings,0))) ->  | H87: =IF(I82="","",G87-F87) ->  | I87: =IF($I$82="","",INDEX(Intervention_info_Sc2,MATCH($D$80,Intervention_info_Sc2_Intervention_names,0),MATCH(I86,Intervention_info_Sc2_headings,0))) ->  | J87: =IFERROR(I87*'Other Inputs'!$I$12,"") ->  | L87: =IFERROR(IF(-H88/I88<0,"Dominant",-H88/I88),"") -> 
E88: Total | F88: =IF($I$82="","",F87*I82) ->  | G88: =IF(I82="","",G87*I82) ->  | H88: =IF(I82="","",H87*I82) ->  | I88: =IF(I82="","",I87*I82) ->  | J88: =IF(I82="","",I88*'Other Inputs'!$I$12) -> 
E90: The QALY gains per person have been calculated from the EPDS scores of the population that was initially assessed by the evidence paper. The evidence source did not present data on cost savings achieved by this intervention. As a result, the analysis includes only the incremental cost of the intervention. ** It is important here to note that costs savings and additional QALY gains not captured here are likely to be achieved by implementing the intervention. **
E92: =CONCATENATE("For this intervention to be dominant, in a cohort of ",ROUNDUP(I82,0), " people, a number of ",ROUNDUP(ABS(H87)/SUM('Further Calculations_Sc1'!$A$36, 'Further Calculations_Sc1'!$A$43, 'Further Calculations_Sc1'!$A$46, 'Further Calculations_Sc1'!$A$49)*I82,5), " case averted must be achieved. This is equivalent to 1 case in ", ROUNDUP(SUM('Further Calculations_Sc1'!$A$36, 'Further Calculations_Sc1'!$A$43, 'Further Calculations_Sc1'!$A$46, 'Further Calculations_Sc1'!$A$49)/ABS(H87),0)," people." ) -> 
D96: ='Intervention(s)_Sc2'!H49 -> Early contact with care provider; Universal
F98: No. allocated to intervention | I98: =IF(INDEX(Scenario2_inputs,MATCH(D96,Scenario2_inputs_intervention_names,0),MATCH(F98,Scenario2_inputs_headings,0))="","",INDEX(Scenario2_inputs,MATCH(D96,Scenario2_inputs_intervention_names,0),MATCH(F98,Scenario2_inputs_headings,0))) -> 
F99: Length of benefit: | I99: 1 year
F102: Cost of intervention | G102: Cost Saving | H102: Net benefit | I102: QALY gain | J102: Monetised QALY gain | L102: ICER (cost of intervention + timeframe benefits)
E103: Per Person | F103: =IF($I$98="","",INDEX(Scenario2_inputs,MATCH(D96,Scenario2_inputs_intervention_names,0),MATCH(F102,Scenario2_inputs_headings,0))) ->  | G103: =IF($I$98="","",INDEX(Intervention_info_Sc2,MATCH(D96,Intervention_info_Sc2_Intervention_names,0),MATCH(G102,Intervention_info_Sc2_headings,0))) ->  | H103: =IF(I98="","",G103-F103) ->  | I103: =IF($I$98="","",INDEX(Intervention_info_Sc2,MATCH(D96,Intervention_info_Sc2_Intervention_names,0),MATCH(I102,Intervention_info_Sc2_headings,0))) ->  | J103: =IF($I$98="","",I103*'Other Inputs'!$I$12) ->  | L103: =IFERROR(IF(-H104/I104<0,"Dominant",-H104/I104),"") -> 
E104: Total | F104: =IF(I98="","",F103*I98) ->  | G104: =IF(I98="","",G103*I98) ->  | H104: =IF(I98="","",H103*I98) ->  | I104: =IF(I98="","",I103*I98) ->  | J104: =IF(I98="","",I104*'Other Inputs'!$I$12) -> 
E106: The QALY gains per person have been calculated from the EPDS scores of the population that was initially assessed by the evidence paper. The evidence source did not present data on cost savings achieved by this intervention. As a result, the analysis includes only the incremental cost of the intervention. ** It is important here to note that costs savings and additional QALY gains not captured here are likely to be achieved by implementing the intervention. **
E108: =CONCATENATE("For this intervention to be dominant, in a cohort of ",ROUNDUP(I98,0), " people, a number of ",ROUNDUP(ABS(H103)/SUM('Further Calculations_Sc1'!$A$36, 'Further Calculations_Sc1'!$A$43, 'Further Calculations_Sc1'!$A$46, 'Further Calculations_Sc1'!$A$49)*I98,5), " case averted must be achieved. This is equivalent to 1 case in ", ROUNDUP(SUM('Further Calculations_Sc1'!$A$36, 'Further Calculations_Sc1'!$A$43, 'Further Calculations_Sc1'!$A$46, 'Further Calculations_Sc1'!$A$49)/ABS(H103),0)," people." ) -> 
D112: ='Intervention(s)_Sc2'!H50 -> Calcium; Universal
F114: No. allocated to intervention | I114: =IF(INDEX(Scenario2_inputs,MATCH(D112,Scenario2_inputs_intervention_names,0),MATCH(F114,Scenario2_inputs_headings,0))="","",INDEX(Scenario2_inputs,MATCH(D112,Scenario2_inputs_intervention_names,0),MATCH(F114,Scenario2_inputs_headings,0))) -> 
F115: Length of benefit: | I115: 1 year
F118: Cost of intervention | G118: Cost Saving | H118: Net benefit | I118: QALY gain | J118: Monetised QALY gain | L118: ICER (cost of intervention + timeframe benefits)
E119: Per Person | F119: =IF($I$114="","",INDEX(Scenario2_inputs,MATCH(D112,Scenario2_inputs_intervention_names,0),MATCH(F118,Scenario2_inputs_headings,0))) ->  | G119: =IF($I$114="","",INDEX(Intervention_info_Sc2,MATCH(D112,Intervention_info_Sc2_Intervention_names,0),MATCH(G118,Intervention_info_Sc2_headings,0))) ->  | H119: =IF(I114="","",G119-F119) ->  | I119: =IF($I$114="","",INDEX(Intervention_info_Sc2,MATCH(D112,Intervention_info_Sc2_Intervention_names,0),MATCH(I118,Intervention_info_Sc2_headings,0))) ->  | J119: =IFERROR(I119*'Other Inputs'!$I$12,"") ->  | L119: =IFERROR(IF(-H120/I120<0,"Dominant",-H120/I120),"") -> 
E120: Total | F120: =IF(I114="","",F119*I114) ->  | G120: =IF(I114="","",G119*I114) ->  | H120: =IF(I114="","",H119*I114) ->  | I120: =IF(I114="","",I119*I114) ->  | J120: =IF(I114="","",I120*'Other Inputs'!$I$12) -> 
E122: The QALY gains per person have been calculated from the EPDS scores of the population that was initially assessed by the evidence paper. The evidence source did not present data on cost savings achieved by this intervention. As a result, the analysis includes only the incremental cost of the intervention. ** It is important here to note that costs savings and additional QALY gains not captured here are likely to be achieved by implementing the intervention. **
E124: =CONCATENATE("For this intervention to be dominant, in a cohort of ",ROUNDUP(I114,0), " people, a number of ",ROUNDUP(ABS(H119)/SUM('Further Calculations_Sc1'!$A$36, 'Further Calculations_Sc1'!$A$43, 'Further Calculations_Sc1'!$A$46, 'Further Calculations_Sc1'!$A$49)*I114,5), " case averted must be achieved. This is equivalent to 1 case in ", ROUNDUP(SUM('Further Calculations_Sc1'!$A$36, 'Further Calculations_Sc1'!$A$43, 'Further Calculations_Sc1'!$A$46, 'Further Calculations_Sc1'!$A$49)/ABS(H119),0)," people." ) -> 
D128: ='Intervention(s)_Sc2'!H51 -> CBT-based intervention; Selective
F130: No. allocated to intervention | I130: =IF(INDEX(Scenario2_inputs,MATCH(D128,Scenario2_inputs_intervention_names,0),MATCH(F130,Scenario2_inputs_headings,0))="","",INDEX(Scenario2_inputs,MATCH(D128,Scenario2_inputs_intervention_names,0),MATCH(F130,Scenario2_inputs_headings,0))) -> 
F131: Length of benefit: | I131: 1 year
F134: Cost of intervention | G134: Cost Saving | H134: Net benefit | I134: QALY gain | J134: Monetised QALY gain | L134: ICER (cost of intervention + timeframe benefits)
E135: Per Person | F135: =IF($I$130="","",INDEX(Scenario2_inputs,MATCH(D128,Scenario2_inputs_intervention_names,0),MATCH(F134,Scenario2_inputs_headings,0))) ->  | G135: =IF($I$130="","",INDEX(Intervention_info_Sc2,MATCH(D128,Intervention_info_Sc2_Intervention_names,0),MATCH(G134,Intervention_info_Sc2_headings,0))) ->  | H135: =IF(I130="","",G135-F135) ->  | I135: =IF($I$130="","",INDEX(Intervention_info_Sc2,MATCH(D128,Intervention_info_Sc2_Intervention_names,0),MATCH(I134,Intervention_info_Sc2_headings,0))) ->  | J135: =IFERROR(I135*'Other Inputs'!$I$12,"") ->  | L135: =IFERROR(IF(-H136/I136<0,"Dominant",-H136/I136),"") -> 
E136: Total | F136: =IF(I130="","",F135*I130) ->  | G136: =IF(I130="","",G135*I130) ->  | H136: =IF(I130="","",H135*I130) ->  | I136: =IF(I130="","",I135*I130) ->  | J136: =IF(I130="","",I136*'Other Inputs'!$I$12) -> 
E138: The QALY gains per person have been calculated from the EPDS scores of the population that was initially assessed by the evidence paper. The evidence source did not present data on cost savings achieved by this intervention. As a result, the analysis includes only the incremental cost of the intervention. ** It is important here to note that costs savings and additional QALY gains not captured here are likely to be achieved by implementing the intervention. **
E140: =CONCATENATE("For this intervention to be dominant, in a cohort of ",ROUNDUP(I130,0), " people, a number of ",ROUNDUP(ABS(H135)/SUM('Further Calculations_Sc1'!$A$36, 'Further Calculations_Sc1'!$A$43, 'Further Calculations_Sc1'!$A$46, 'Further Calculations_Sc1'!$A$49)*I130,5), " case averted must be achieved. This is equivalent to 1 case in ", ROUNDUP(SUM('Further Calculations_Sc1'!$A$36, 'Further Calculations_Sc1'!$A$43, 'Further Calculations_Sc1'!$A$46, 'Further Calculations_Sc1'!$A$49)/ABS(H135),0)," people." ) -> 
D144: ='Intervention(s)_Sc2'!H52 -> Education on preparing for parenting; Selective
F146: No. allocated to intervention | I146: =IF(INDEX(Scenario2_inputs,MATCH(D144,Scenario2_inputs_intervention_names,0),MATCH(F146,Scenario2_inputs_headings,0))="","",INDEX(Scenario2_inputs,MATCH(D144,Scenario2_inputs_intervention_names,0),MATCH(F146,Scenario2_inputs_headings,0))) -> 
F147: Length of benefit: | I147: 1 year
F150: Cost of intervention | G150: Cost Saving | H150: Net benefit | I150: QALY gain | J150: Monetised QALY gain | L150: ICER (cost of intervention + timeframe benefits)
E151: Per Person | F151: =IF($I$146="","",INDEX(Scenario2_inputs,MATCH(D144,Scenario2_inputs_intervention_names,0),MATCH(F150,Scenario2_inputs_headings,0))) ->  | G151: =IF($I$146="","",INDEX(Intervention_info_Sc2,MATCH(D144,Intervention_info_Sc2_Intervention_names,0),MATCH(G150,Intervention_info_Sc2_headings,0))) ->  | H151: =IF(I146="","",G151-F151) ->  | I151: =IF($I$146="","",INDEX(Intervention_info_Sc2,MATCH(D144,Intervention_info_Sc2_Intervention_names,0),MATCH(I150,Intervention_info_Sc2_headings,0))) ->  | J151: =IFERROR(I151*'Other Inputs'!$I$12,"") ->  | L151: =IFERROR(IF(-H152/I152<0,"Dominant",-H152/I152),"") -> 
E152: Total | F152: =IF(I146="","",F151*I146) ->  | G152: =IF(I146="","",G151*I146) ->  | H152: =IF(I146="","",H151*I146) ->  | I152: =IF(I146="","",I151*I146) ->  | J152: =IF(I146="","",I152*'Other Inputs'!$I$12) -> 
E154: The QALY gains per person have been calculated from the EPDS scores of the population that was initially assessed by the evidence paper. The evidence source did not present data on cost savings achieved by this intervention. As a result, the analysis includes only the incremental cost of the intervention. ** It is important here to note that costs savings and additional QALY gains not captured here are likely to be achieved by implementing the intervention. **
E156: =CONCATENATE("For this intervention to be dominant, in a cohort of ",ROUNDUP(I146,0), " people, a number of ",ROUNDUP(ABS(H151)/SUM('Further Calculations_Sc1'!$A$36, 'Further Calculations_Sc1'!$A$43, 'Further Calculations_Sc1'!$A$46, 'Further Calculations_Sc1'!$A$49)*I146,5), " case averted must be achieved. This is equivalent to 1 case in ", ROUNDUP(SUM('Further Calculations_Sc1'!$A$36, 'Further Calculations_Sc1'!$A$43, 'Further Calculations_Sc1'!$A$46, 'Further Calculations_Sc1'!$A$49)/ABS(H151),0)," people." ) -> 
D160: ='Intervention(s)_Sc2'!H53 -> IPT-based intervention; Selective
F162: No. allocated to intervention | I162: =IF(INDEX(Scenario2_inputs,MATCH(D160,Scenario2_inputs_intervention_names,0),MATCH(F162,Scenario2_inputs_headings,0))="","",INDEX(Scenario2_inputs,MATCH(D160,Scenario2_inputs_intervention_names,0),MATCH(F162,Scenario2_inputs_headings,0))) -> 
F163: Length of benefit: | I163: 1 year
F166: Cost of intervention | G166: Cost Saving | H166: Net benefit | I166: QALY gain | J166: Monetised QALY gain | L166: ICER (cost of intervention + timeframe benefits)
E167: Per Person | F167: =IF($I$162="","",INDEX(Scenario2_inputs,MATCH(D160,Scenario2_inputs_intervention_names,0),MATCH(F166,Scenario2_inputs_headings,0))) ->  | G167: =IF($I$162="","",INDEX(Intervention_info_Sc2,MATCH(D160,Intervention_info_Sc2_Intervention_names,0),MATCH(G166,Intervention_info_Sc2_headings,0))) ->  | H167: =IF(I162="","",G167-F167) ->  | I167: =IF($I$162="","",INDEX(Intervention_info_Sc2,MATCH(D160,Intervention_info_Sc2_Intervention_names,0),MATCH(I166,Intervention_info_Sc2_headings,0))) ->  | J167: =IFERROR(I167*'Other Inputs'!$I$12,"") ->  | L167: =IFERROR(IF(-H168/I168<0,"Dominant",-H168/I168),"") -> 
E168: Total | F168: =IF(I162="","",F167*I162) ->  | G168: =IF(I162="","",G167*I162) ->  | H168: =IF(I162="","",H167*I162) ->  | I168: =IF(I162="","",I167*I162) ->  | J168: =IF(I162="","",I168*'Other Inputs'!$I$12) -> 
E170: The QALY gains per person have been calculated from the EPDS scores of the population that was initially assessed by the evidence paper. The evidence source did not present data on cost savings achieved by this intervention. As a result, the analysis includes only the incremental cost of the intervention. ** It is important here to note that costs savings and additional QALY gains not captured here are likely to be achieved by implementing the intervention. **
E172: =CONCATENATE("For this intervention to be dominant, in a cohort of ",ROUNDUP(I162,0), " people, a number of ",ROUNDUP(ABS(H167)/SUM('Further Calculations_Sc1'!$A$36, 'Further Calculations_Sc1'!$A$43, 'Further Calculations_Sc1'!$A$46, 'Further Calculations_Sc1'!$A$49)*I162,5), " case averted must be achieved. This is equivalent to 1 case in ", ROUNDUP(SUM('Further Calculations_Sc1'!$A$36, 'Further Calculations_Sc1'!$A$43, 'Further Calculations_Sc1'!$A$46, 'Further Calculations_Sc1'!$A$49)/ABS(H167),0)," people." ) -> 

Sheet Packages
F8: Packages
F10: Breastfeeding Interventions
F12: Breastfeeding - Support | G12: Scenario 1 vs. do nothing | H12: Scenario 2 vs. do nothing | I12: Scenario 2 vs Scenario 1
F13: Total eligible population | G13: =IF(OR('Intervention(s)_BF_Sc1'!J27="",'Intervention(s)_BF_Sc1'!J27="No"),"",'Intervention(s)_BF_Sc1'!I27) -> 
F14: Total number allocated to intervention(s) | G14: =IF('Intervention(s)_Sc2'!J24="","",'Intervention(s)_Sc2'!J24) ->  | H14: =IF('Intervention(s)_Sc2'!N24="","not selected",'Intervention(s)_Sc2'!N24) -> not selected | I14: =IFERROR(H14-G14,"") -> 
G15: =IF(OR(G14="not selected",H14="not selected",G14=0,H14=0),"",IF(AND(G14>G13,H14>G13),"Number of people allocated to intervention in Scenario 1 & Scenario 2 is greater than the eligible population. Please return to relevant input tabs and enter a number less than or equal to the eligible population.",IF(G14>G13,"Number of people allocated to intervention in Scenario 1 is greater than the eligible population. Please return to relevant input tabs and enter a number less than or equal to the eligible population.",IF(H14>G13,"Number of people allocated to intervention in Scenario 2 is greater than the eligible population. Please return to relevant input tabs and enter a number less than or equal to the eligible population.","")))) -> 
F16: Total cost of interventions | G16: =IF(SUM(Results_BF_Sc1!F30)=0,"",SUM(Results_BF_Sc1!F30)) ->  | H16: =IF(SUM(Results_BF_Sc2!F30)=0,"",SUM(Results_BF_Sc2!F30)) ->  | I16: =IFERROR(H16-G16,"") -> 
F17: Total cost savings | G17: =IF(SUM(Results_BF_Sc1!L30)=0,"",SUM(Results_BF_Sc1!L30)) ->  | H17: =IF(SUM(Results_BF_Sc2!L30)=0,"",SUM(Results_BF_Sc2!L30)) ->  | I17: =IFERROR(H17-G17,"") -> 
F18: Total net benefit | G18: =IF(SUM(Results_BF_Sc1!N30)=0,"",SUM(Results_BF_Sc1!N30)) ->  | H18: =IF(SUM(Results_BF_Sc2!N30)=0,"",SUM(Results_BF_Sc2!N30)) ->  | I18: =IFERROR(H18-G18,"") -> 
F19: Total QALY gain | G19: =IF(SUM(Results_BF_Sc1!M30)=0,"",SUM(Results_BF_Sc1!M30)) ->  | H19: =IF(SUM(Results_BF_Sc2!M30)=0,"",SUM(Results_BF_Sc2!M30)) ->  | I19: =IFERROR(H19-G19,"") -> 
F20: ICER (intervention cost only) | G20: =IFERROR(G16/G19,"") ->  | H20: =IFERROR(H16/H19,"") ->  | I20: =IFERROR(H20-G20,"") ->  | J20: Intervention cost only (no cost savings) / QALY gain
F21: ICER (net benefits only) | G21: =IFERROR(IF((-G18)/G19<0, "Dominant",(-G18)/G19),"") ->  | H21: =IFERROR(IF((-H18)/H19<0, "Dominant",(-H18)/H19),"") ->  | I21: =IFERROR(IF((-G18)/G19>(-H18)/H19,"Scenario 2 dominates Scenario 1","Scenario 1 dominates Scenario 2"),"") ->  | J21: Net benefit / QALY gain
F22: Benefit:Cost Ratio | G22: =IFERROR(G17/G16,"") ->  | H22: =IFERROR(H17/H16,"") ->  | I22: =IFERROR(H22-G22,"") ->  | J22: Government financial savings per £1 spent on the intervention
F23: Total value (inc. QALY gain) | G23: =IFERROR(G18+SUM(Results_BF_Sc1!O30),"") ->  | H23: =IFERROR(H18+SUM(Results_BF_Sc2!O30),"") ->  | I23: =IFERROR(H23-G23,"") -> 
F25: Breastfeeding - Enhanced Staff Contact | G25: Scenario 1 vs. do nothing | H25: Scenario 2 vs. do nothing | I25: Scenario 2 vs Scenario 1
F26: Total eligible population | G26: =IFERROR(IF(OR('Intervention(s)_BF_Sc1'!J43="",'Intervention(s)_BF_Sc1'!J43="No"),"",SUM('Intervention(s)_BF_Sc1'!I43:I45)),"") -> 
F27: Total number allocated to intervention(s) | G27: ='Intervention(s)_Sc2'!J25 ->  | H27: =IF('Intervention(s)_Sc2'!N25=0,"not selected",'Intervention(s)_Sc2'!N25) -> not selected | I27: =IFERROR(H27-G27,"") -> 
G28: =IF(OR(G27="not selected",H27="not selected",G27=0,H27=0),"",IF(AND(G27>G26,H27>G26),"Number of people allocated to intervention in Scenario 1 & Scenario 2 is greater than the eligible population. Please return to relevant input tabs and enter a number less than or equal to the eligible population.",IF(G27>G26,"Number of people allocated to intervention in Scenario 1 is greater than the eligible population. Please return to relevant input tabs and enter a number less than or equal to the eligible population.",IF(H27>G26,"Number of people allocated to intervention in Scenario 2 is greater than the eligible population. Please return to relevant input tabs and enter a number less than or equal to the eligible population.","")))) -> 
F29: Total cost of interventions | G29: =IF(SUM(Results_BF_Sc1!H59)=0,"",SUM(Results_BF_Sc1!H59)) ->  | H29: =IF(SUM(Results_BF_Sc2!H59)=0,"",SUM(Results_BF_Sc2!H59)) ->  | I29: =IFERROR(H29-G29,"") -> 
F30: Total cost savings | G30: =IF(SUM(Results_BF_Sc1!I59)=0,"",SUM(Results_BF_Sc1!I59)) ->  | H30: =IF(SUM(Results_BF_Sc2!I59)=0,"",SUM(Results_BF_Sc2!I59)) ->  | I30: =IFERROR(H30-G30,"") -> 
F31: Total net benefit | G31: =IF(SUM(Results_BF_Sc1!J59)=0,"",SUM(Results_BF_Sc1!J59)) ->  | H31: =IF(SUM(Results_BF_Sc2!J59)=0,"",SUM(Results_BF_Sc2!J59)) ->  | I31: =IFERROR(H31-G31,"") -> 
F32: Total QALY gain | G32: =IF(SUM(Results_BF_Sc1!K59)=0,"",SUM(Results_BF_Sc1!K59)) ->  | H32: =IF(SUM(Results_BF_Sc2!K59)=0,"",SUM(Results_BF_Sc2!K59)) ->  | I32: =IFERROR(H32-G32,"") -> 
F33: ICER (intervention cost only) | G33: =IFERROR(G29/G32,"") ->  | H33: =IFERROR(H29/H32,"") ->  | I33: =IFERROR(H33-G33,"") ->  | J33: Intervention cost only (no cost savings) / QALY gain
F34: ICER (net benefits only) | G34: =IFERROR(IF((-G31)/G32<0, "Dominant",(-G31)/G32),"") ->  | H34: =IFERROR(IF((-H31)/H32<0, "Dominant",(-H31)/H32),"") ->  | I34: =IFERROR(IF((-G31)/G32>(-H31)/H32,"Scenario 2 dominates Scenario 1","Scenario 1 dominates Scenario 2"),"") ->  | J34: Net benefit / QALY gain
F35: Benefit:Cost Ratio | G35: =IFERROR(G30/G29,"") ->  | H35: =IFERROR(H30/H29,"") ->  | I35: =IFERROR(H35-G35,"") ->  | J35: Government financial savings per £1 spent on the intervention
F36: Total value (inc. QALY gain) | G36: =IFERROR(G31+SUM(Results_BF_Sc1!L59),"") ->  | H36: =IFERROR(H31+SUM(Results_BF_Sc2!L59),"") ->  | I36: =IFERROR(H36-G36,"") -> 
F38: Postnatal Depression Interventions
G39: ='Intervention(s)_PND_Sc1'!I30 ->  | H39: ='Intervention(s)_PND_Sc1'!I47 -> 
F40: Postnatal depression_full | G40: Scenario 1 vs. do nothing | H40: Scenario 2 vs. do nothing | I40: Scenario 2 vs Scenario 1
F41: Total eligible population | G41: =IFERROR(IF(AND('Intervention(s)_PND_Sc1'!J30<>"Yes",'Intervention(s)_PND_Sc1'!J47<>"Yes",'Intervention(s)_PND_Sc1'!J64<>"Yes"),"",CONCATENATE(ROUND('Intervention(s)_PND_Sc1'!I30,0)," for universal PND interventions, ",ROUND('Intervention(s)_PND_Sc1'!I47,0)," for selective PND intervention")),"") -> 
F42: Total number allocated to intervention(s) | G42: =IF(SUM('Intervention(s)_Sc2'!J37:J39)=0,"not selected",SUM('Intervention(s)_Sc2'!J37:J39)) -> not selected | H42: =IF(SUM('Intervention(s)_Sc2'!N37:N39)=0,"not selected",SUM('Intervention(s)_Sc2'!N37:N39)) -> not selected | I42: =IFERROR(H42-G42,"") -> 
F43: =IF(AND(SUM('Intervention(s)_Sc2'!J37,'Intervention(s)_Sc2'!J39)>Packages!G39,ISNUMBER('Intervention(s)_Sc2'!J38),'Intervention(s)_Sc2'!J38>Packages!H39),1,IF(SUM('Intervention(s)_Sc2'!J37,'Intervention(s)_Sc2'!J39)>Packages!G39,2,IF(AND(ISNUMBER('Intervention(s)_Sc2'!J38),'Intervention(s)_Sc2'!J38>Packages!H39),3,IF(AND(SUM('Intervention(s)_Sc2'!N37,'Intervention(s)_Sc2'!N39)>Packages!G39,'Intervention(s)_Sc2'!N38>Packages!H39),4,IF(SUM('Intervention(s)_Sc2'!N37,'Intervention(s)_Sc2'!N39)>Packages!G39,5,IF('Intervention(s)_Sc2'!N38>Packages!H39,6,"")))))) ->  | G43: =IF(F43=1,"Number of people allocated to both Universal and Selective intervention(s) in Scenario 1 is greater than the eligible population. Please return to relevant input tabs and enter a number less than or equal to the eligible population.",IF(F43=2,"Number of people allocated to Universal intervention(s) in Scenario 1 is greater than the eligible population. Please return to relevant input tabs and enter a number less than or equal to the eligible population.",IF(F43=3,"Number of people allocated to Selective intervention(s) in Scenario 1 is greater than the eligible population. Please return to relevant input tabs and enter a number less than or equal to the eligible population.",IF(F43=4,"Number of people allocated to both Universal & Selective intervention(s) in Scenario 2 is greater than the eligible population. Please return to relevant input tabs and enter a number less than or equal to the eligible population.",IF(F43=5,"Number of people allocated to Universal intervention(s) in Scenario 2 is greater than the eligible population. Please return to relevant input tabs and enter a number less than or equal to the eligible population.",IF(F43=6,"Number of people allocated to Selective intervention(s) in Scenario 2 is greater than the eligible population. Please return to relevant input tabs and enter a number less than or equal to the eligible population.",IF(F43="",""))))))) -> 
F44: Total no. of interventions* | G44: =IF(COUNT('Intervention(s)_Sc2'!J37:J39)=0,0,COUNT('Intervention(s)_Sc2'!J37:J39)) -> 0 | H44: =IF(COUNT('Intervention(s)_Sc2'!N37:N39)=0,0,COUNT('Intervention(s)_Sc2'!N37:N39)) -> 0 | I44: =IF(AND(G44="",H44=""),"",IF(G44=H44,CONCATENATE("Equal number of interventions = ",H44),CONCATENATE("Scenario 2 has",IF(H44-G44>0," +",""),H44-G44," interventions compared to Scenario 1"))) -> Equal number of interventions = 0
F45: Total cost of interventions | G45: =IF(SUM(Results_PND_Sc1!F35,Results_PND_Sc1!F52,Results_PND_Sc1!F69)=0,"",SUM(Results_PND_Sc1!F35,Results_PND_Sc1!F52,Results_PND_Sc1!F69)) ->  | H45: =IF(SUM(Results_PND_Sc2!F34,Results_PND_Sc2!F51,Results_PND_Sc2!F68)=0,"",SUM(Results_PND_Sc2!F34,Results_PND_Sc2!F51,Results_PND_Sc2!F68)) ->  | I45: =IFERROR(H45-G45,"") -> 
F46: Total cost savings | G46: =IF(SUM(Results_PND_Sc1!L35,Results_PND_Sc1!L52,Results_PND_Sc1!L69)=0,"",SUM(Results_PND_Sc1!L35,Results_PND_Sc1!L52,Results_PND_Sc1!L69)) ->  | H46: =IF(SUM(Results_PND_Sc2!L34,Results_PND_Sc2!L51,Results_PND_Sc2!L68)=0,"",SUM(Results_PND_Sc2!L34,Results_PND_Sc2!L51,Results_PND_Sc2!L68)) -> 
F47: Total net benefit | G47: =IF(SUM(Results_PND_Sc1!N35,Results_PND_Sc1!N52,Results_PND_Sc1!N69)=0,"",SUM(Results_PND_Sc1!N35,Results_PND_Sc1!N52,Results_PND_Sc1!N69)) ->  | H47: =IF(SUM(Results_PND_Sc2!N34,Results_PND_Sc2!N51,Results_PND_Sc2!N68)=0,"",SUM(Results_PND_Sc2!N34,Results_PND_Sc2!N51,Results_PND_Sc2!N68)) -> 
F48: Total QALY gain (cumulative) | G48: =IF(SUM(Results_PND_Sc1!M35,Results_PND_Sc1!M52,Results_PND_Sc1!M69)=0,"",SUM(Results_PND_Sc1!M35,Results_PND_Sc1!M52,Results_PND_Sc1!M69)) ->  | H48: =IF(SUM(Results_PND_Sc2!M34,Results_PND_Sc2!M51,Results_PND_Sc2!M68)=0,"",SUM(Results_PND_Sc2!M34,Results_PND_Sc2!M51,Results_PND_Sc2!M68)) ->  | J48: Assumes different people participate in each intervention
F49: Total QALY gain (conservative) | G49: =IF('Package calculations'!B28=0,"",'Package calculations'!B28) ->  | H49: =IFERROR('Package calculations'!I28,"") ->  | J49: Assumes the same people participate in each intervention*
F50: Total QALY gain (average) | G50: =IF('Package calculations'!B29=0,"",'Package calculations'!B29) ->  | H50: =IFERROR('Package calculations'!I29,"") ->  | J50: Average of cumulative and conservative QALY gain estimates
F51: ICER (intervention cost only) | G51: =IFERROR(G45/G48,"") ->  | H51: =IFERROR(H45/H48,"") ->  | J51: Intervention cost only (no cost savings) / QALY gain
F52: ICER (net benefits only) | G52: =IFERROR(IF((-G47)/G48<0, "Dominant",(-G47)/G48),"") ->  | H52: =IFERROR(IF((-H47)/H48<0, "Dominant",(-H47)/H48),"") ->  | I52: =IFERROR(IF((-G47)/G48>(-H47)/H48,"Scenario 2 dominates Scenario 1","Scenario 1 dominates Scenario 2"),"") ->  | J52: Net benefit / QALY gain
F53: Benefit:Cost Ratio | G53: =IFERROR(G46/G45,"") ->  | H53: =IFERROR(H46/H45,"") ->  | I53: =IFERROR(H53-G53,"") ->  | J53: Government financial savings per £1 spent on the intervention
F54: Total value (inc. QALY gain) | G54: =IFERROR(G47+SUM(Results_PND_Sc1!O35,Results_PND_Sc1!O52,Results_PND_Sc1!O69),"") ->  | H54: =IFERROR(H47+SUM(Results_PND_Sc2!O34,Results_PND_Sc2!O51,Results_PND_Sc2!O68),"") ->  | I54: =IFERROR(H54-G54,"") -> 
F56: Postnatal depression_basic | G56: Scenario 1 vs. do nothing | H56: Scenario 2 vs. do nothing | I56: Scenario 2 vs Scenario 1
F57: Total eligible population | G57: =IFERROR(IF(AND('Intervention(s)_PND_Sc1'!J86<>"Yes",'Intervention(s)_PND_Sc1'!J103<>"Yes",'Intervention(s)_PND_Sc1'!J120<>"Yes",'Intervention(s)_PND_Sc1'!J137<>"Yes",'Intervention(s)_PND_Sc1'!J154<>"Yes",'Intervention(s)_PND_Sc1'!J171<>"Yes"),"",CONCATENATE(ROUND('Intervention(s)_PND_Sc1'!I30,0)," for universal PND interventions, ",ROUND('Intervention(s)_PND_Sc1'!I47,0)," for selective PND intervention")),"") -> 
F58: Total number allocated to intervention(s) | G58: =IF(SUM('Intervention(s)_Sc2'!J48:J53)=0,"not selected",SUM('Intervention(s)_Sc2'!J48:J53)) -> not selected | H58: =IF(SUM('Intervention(s)_Sc2'!N48:N53)=0,"not selected",SUM('Intervention(s)_Sc2'!N48:N53)) -> not selected | I58: =IFERROR(H58-G58,"") -> 
F59: =IF(AND(SUM('Intervention(s)_Sc2'!J48:J50)>Packages!G39,SUM('Intervention(s)_Sc2'!J51:J53)>Packages!H39),1,IF(SUM('Intervention(s)_Sc2'!J48:J50)>Packages!G39,2,IF(SUM('Intervention(s)_Sc2'!J51:J53)>Packages!H39,3,IF(AND(SUM('Intervention(s)_Sc2'!N48:N50)>Packages!G39,SUM('Intervention(s)_Sc2'!N51:N53)>Packages!H39),4,IF((SUM('Intervention(s)_Sc2'!N48:N50))>Packages!G39,5,IF(SUM('Intervention(s)_Sc2'!N51:N53)>H39,6,"")))))) ->  | G59: =IF(F59=1,"Number of people allocated to both Universal and Selective intervention(s) in Scenario 1 is greater than the eligible population. Please return to relevant input tabs and enter a number less than or equal to the eligible population.",IF(F59=2,"Number of people allocated to Univeral intervention(s) in Scenario 1 is greater than the eligible population. Please return to relevant input tabs and enter a number less than or equal to the eligible population.",IF(F59=3,"Number of people allocated to Selective intervention(s) in Scenario 1 is greater than the eligible population. Please return to relevant input tabs and enter a number less than or equal to the eligible population.",IF(F59=4,"Number of people allocated to both Universal & Selective intervention(s) in Scenario 2 is greater than the eligible population. Please return to relevant input tabs and enter a number less than or equal to the eligible population.",IF(F59=5,"Number of people allocated to Universal intervention(s) in Scenario 2 is greater than the eligible population. Please return to relevant input tabs and enter a number less than or equal to the eligible population.",IF(F59=6,"Number of people allocated to Selective intervention(s) in Scenario 2 is greater than the eligible population. Please return to relevant input tabs and enter a number less than or equal to the eligible population.",IF(F59="",""))))))) -> 
F60: Total no. of interventions* | G60: =IF(COUNT('Intervention(s)_Sc2'!J48:J53)=0,0,COUNT('Intervention(s)_Sc2'!J48:J53)) -> 0 | H60: =IF(COUNT('Intervention(s)_Sc2'!N48:N53)=0,0,COUNT('Intervention(s)_Sc2'!N48:N53)) -> 0 | I60: =IF(AND(G60="",H60=""),"",IF(G60=H60,CONCATENATE("Equal number of interventions = ",H60),CONCATENATE("Scenario 2 has",IF(H60-G60>0," +",""),H60-G60," interventions compared to Scenario 1"))) -> Equal number of interventions = 0
F61: Total cost of interventions | G61: =IF(SUM(Results_PND_Sc1!F89,Results_PND_Sc1!F105,Results_PND_Sc1!F121,Results_PND_Sc1!F137,Results_PND_Sc1!F153,Results_PND_Sc1!F169)=0,"",SUM(Results_PND_Sc1!F89,Results_PND_Sc1!F105,Results_PND_Sc1!F121,Results_PND_Sc1!F137,Results_PND_Sc1!F153,Results_PND_Sc1!F169)) ->  | H61: =IF(SUM(Results_PND_Sc2!F88,Results_PND_Sc2!F104,Results_PND_Sc2!F120,Results_PND_Sc2!F136,Results_PND_Sc2!F152,Results_PND_Sc2!F168)=0,"",SUM(Results_PND_Sc2!F88,Results_PND_Sc2!F104,Results_PND_Sc2!F120,Results_PND_Sc2!F136,Results_PND_Sc2!F152,Results_PND_Sc2!F168)) ->  | I61: =IFERROR(H61-G61,"") -> 
F62: Total cost savings | G62: ="none reported" -> none reported | H62: ="none reported" -> none reported | I62: none reported
F63: Total net benefit | G63: ="not applicable" -> not applicable | H63: ="not applicable" -> not applicable | I63: ="not applicable" -> not applicable
F64: Total QALY gain (cumulative) | G64: =IF(SUM(Results_PND_Sc1!I89,Results_PND_Sc1!I105,Results_PND_Sc1!I121,Results_PND_Sc1!I137,Results_PND_Sc1!I153,Results_PND_Sc1!I169)=0,"",SUM(Results_PND_Sc1!I89,Results_PND_Sc1!I105,Results_PND_Sc1!I121,Results_PND_Sc1!I137,Results_PND_Sc1!I153,Results_PND_Sc1!I169)) ->  | H64: =IF(SUM(Results_PND_Sc2!I88,Results_PND_Sc2!I104,Results_PND_Sc2!I120,Results_PND_Sc2!I136,Results_PND_Sc2!I152,Results_PND_Sc2!I168)=0,"",SUM(Results_PND_Sc2!I88,Results_PND_Sc2!I104,Results_PND_Sc2!I120,Results_PND_Sc2!I136,Results_PND_Sc2!I152,Results_PND_Sc2!I168)) ->  | I64: =IFERROR(H64-G64,"") ->  | J64: Assumes different people participate in each intervention
F65: ICER (intervention cost only) | G65: =IFERROR(G61/G64,"") ->  | H65: =IFERROR(H61/H64,"") ->  | I65: =IFERROR(H65-G65,"") ->  | J65: Intervention cost only (no cost savings) / QALY gain
F66: ICER (net benefits only) | G66: ="not applicable" -> not applicable | H66: not applicable | I66: not applicable | J66: Net benefit / QALY gain
F67: Benefit:Cost Ratio | G67: not applicable | H67: not applicable | I67: not applicable | J67: Government financial savings per £1 spent on the intervention
F68: Total value (inc. QALY gain) | G68: not applicable | H68: not applicable | I68: not applicable
F69: *Please note that only theTotal 'cumulative' QALY gain has been provided for PND_basic interventions. Total 'conservative & average' QALY gains have been omitted given the fact that the QALY gains presented for these interventions are already likely to be an underestimation of the potential QALY gains from such interventions.
F70: The postnatal depression_basic interventions did not provide enough information to fully take into account the effect of these interventions. Specifically, the potential cost savings associated with the interventions were not provided and/or could not be calculated from further research. Therefore the net benefit, ICER (intervention + timeframe benefits), B:C ratio and total value (inc. QALY gain) could not be computed for this selection of interventions.
F74: *The conservative approach assumes that where possible, people participate in >1 intervention. E.g. if 10 people take up one intervention, and 8 people another, it is assumes that 8 people take up both interventions and 2 people take up only the first. Given a lack of knowledge of how participating in multiple interventions affects effectiveness, we have assumed (we believe conservatively) that for individuals in >1 intervention the effectiveness is equal to that of the single intervention with the greatest effectiveness

Sheet Charts
E8: Breastfeeding Support | I8: Breastfeeding - Enhanced staff contact
F11: QALY's gained | G11: Benefit : Cost Ratio | J11: QALY's gained | K11: Benefit : Cost Ratio
E12: Scenario 2 vs Scenario 1 | F12: =IFERROR(F14-F13,"") ->  | G12: =IFERROR(G14-G13,"") ->  | I12: Scenario 2 vs Scenario 1 | J12: =IFERROR(J14-J13,"") ->  | K12: =IFERROR(K14-K13,"") -> 
E13: Scenario 1 vs do nothing | F13: =Packages!G19 ->  | G13: =Packages!G22 ->  | I13: Scenario 1 vs do nothing | J13: =Packages!G32 ->  | K13: =Packages!G35 -> 
E14: Scenario 2 vs do nothing | F14: =Packages!H19 ->  | G14: =Packages!H22 ->  | I14: Scenario 2 vs do nothing | J14: =Packages!H32 ->  | K14: =Packages!H35 -> 
E65: PND_Full
E66: **Please note that the results displayed below are for the interventions selected on the "Packages" sheet. ONLY PND_FULL INTERVENTIONS HAVE BEEN INCLUDED
F68: QALY's gained (cumulative) | G68: Benefit : Cost Ratio
E69: Scenario 2 vs Scenario 1 | F69: =IFERROR(F71-F70,"") ->  | G69: =IFERROR(G71-G70,"") -> 
E70: Scenario 1 vs do nothing | F70: =Packages!G48 ->  | G70: =Packages!G53 -> 
E71: Scenario 2 vs do nothing | F71: =Packages!H48 ->  | G71: =Packages!H53 -> 

Sheet Dropdowns_locations (hidden)
A1: National | B1: Regional | C1: County / Unitary Authority | D1: Local Authority | E1: CCG | F1: STP
A2: England | B2: East Midlands | C2: Bath and North East Somerset | D2: Adur | E2: NHS Airedale, Wharfdale and Craven | F2: Bath, Swindon and Wiltshire STP
B3: East | C3: Bedford | D3: Allerdale | E3: NHS Ashford | F3: Birmingham and Solihull STP
B4: London | C4: Blackburn with Darwen | D4: Amber Valley | E4: NHS Aylesbury Vale | F4: Black Country and West Birmingham STP
B5: North East | C5: Blackpool | D5: Arun | E5: NHS Barking and Dagenham | F5: Bristol, North Somerset, South Gloucestershire STP
B6: North West | C6: Bournemouth | D6: Ashfield | E6: NHS Barnet | F6: Buckinghamshire, Oxfordshire and Berkshire STP
B7: South East | C7: Bracknell Forest | D7: Ashford | E7: NHS Barnsley | F7: Cambridgeshire and Peterborough STP
B8: South West | C8: Brighton and Hove | D8: Aylesbury Vale | E8: NHS Basildon and Brentwood | F8: Cheshire and Merseyside STP
B9: West Midlands | C9: Bristol, City of | D9: Babergh | E9: NHS Bassetlaw | F9: Humber, Coast and Vale STP
B10: Yorkshire and The Humber | C10: Buckinghamshire | D10: Barking and Dagenham | E10: NHS Bath and North East Somerset | F10: Cornwall and the Isles of Scilly STP
C11: Cambridgeshire | D11: Barnet | E11: NHS Bedfordshire | F11: Coventry and Warwickshire STP
C12: Central Bedfordshire | D12: Barnsley | E12: NHS Bexley | F12: Derbyshire STP
C13: Cheshire East | D13: Barrow-in-Furness | E13: NHS Birmingham Crosscity | F13: Devon STP
C14: Cheshire West and Chester | D14: Basildon | E14: NHS Birmingham South and Central | F14: Dorset STP
C15: Cornwall | D15: Basingstoke and Deane | E15: NHS Blackburn with Darwen | F15: Durham, Darlington and Tees, Hambleton, Richmondshire and Whitby STP
C16: County Durham | D16: Bassetlaw | E16: NHS Blackpool | F16: Frimley Health STP
C17: Cumbria | D17: Bath and North East Somerset | E17: NHS Bolton | F17: Gloucestershire STP
C18: Darlington | D18: Bedford | E18: NHS Bracknell and Ascot | F18: Greater Manchester STP
C19: Derby | D19: Bexley | E19: NHS Bradford City | F19: Hampshire and the Isle of Wight STP
C20: Derbyshire | D20: Birmingham | E20: NHS Bradford Districts | F20: Herefordshire and Worcestershire STP
C21: Devon | D21: Blaby | E21: NHS Brent | F21: Hertfordshire and West Essex STP
C22: Dorset | D22: Blackburn with Darwen | E22: NHS Brighton and Hove | F22: Kent & Medway STP
C23: East Riding of Yorkshire | D23: Blackpool | E23: NHS Bristol | F23: Lancashire and South Cumbria STP
C24: East Sussex | D24: Bolsover | E24: NHS Bromley | F24: Leicester, Leicestershire and Rutland STP
C25: Essex | D25: Bolton | E25: NHS Bury | F25: Lincolnshire STP
C26: Gloucestershire | D26: Boston | E26: NHS Calderdale | F26: Mid and South Essex STP
C27: Greater Manchester (Met County) | D27: Bournemouth | E27: NHS Cambridgeshire and Peterborough | F27: Milton Keynes, Bedfordshire and Luton STP
C28: Halton | D28: Bracknell Forest | E28: NHS Camden | F28: Norfolk STP
C29: Hampshire | D29: Bradford | E29: NHS Cannock Chase | F29: North Central London STP
C30: Hartlepool | D30: Braintree | E30: NHS Canterbury and Coastal | F30: North East London STP
C31: Herefordshire, County of | D31: Breckland | E31: NHS Castle Point and Rochford | F31: North West London STP
C32: Hertfordshire | D32: Brent | E32: NHS Central London (Westminster) | F32: Northamptonshire STP
C33: Inner London | D33: Brentwood | E33: NHS Central Manchester | F33: Northumberland, Tyne and Wear STP
C34: Isle of Wight | D34: Brighton and Hove | E34: NHS Chiltern | F34: Nottinghamshire STP
C35: Isles of Scilly | D35: Bristol, City of | E35: NHS Chorley and South Ribble | F35: Shropshire, Telford and Wrekin STP
C36: Kent | D36: Broadland | E36: NHS City and Hackney | F36: Somerset STP
C37: Kingston upon Hull, City of | D37: Bromley | E37: NHS Coastal West Sussex | F37: South East London STP
C38: Lancashire | D38: Bromsgrove | E38: NHS Corby | F38: South West London STP
C39: Leicester | D39: Broxbourne | E39: NHS Coventry and Rugby | F39: South Yorkshire and Bassetlaw STP
C40: Leicestershire | D40: Broxtowe | E40: NHS Crawley | F40: Staffordshire STP
C41: Lincolnshire | D41: Burnley | E41: NHS Croydon | F41: Suffolk and North East Essex STP
C42: Luton | D42: Bury | E42: NHS Cumbria | F42: Surrey Heartlands STP
C43: Medway | D43: Calderdale | E43: NHS Darlington | F43: Sussex and East Surrey STP
C44: Merseyside (Met County) | D44: Cambridge | E44: NHS Dartford, Gravesham and Swanley | F44: West Yorkshire STP
C45: Middlesbrough | D45: Camden | E45: NHS Doncaster | F45: West, North and East Cumbria STP
C46: Milton Keynes | D46: Cannock Chase | E46: NHS Dorset
C47: Norfolk | D47: Canterbury | E47: NHS Dudley
C48: North East Lincolnshire | D48: Carlisle | E48: NHS Durham Dales, Easington and Sedgefield
C49: North Lincolnshire | D49: Castle Point | E49: NHS Ealing
C50: North Somerset | D50: Central Bedfordshire | E50: NHS East and North Hertfordshire
C51: North Yorkshire | D51: Charnwood | E51: NHS East Lancashire
C52: Northamptonshire | D52: Chelmsford | E52: NHS East Leicestershire and Rutland
C53: Northumberland | D53: Cheltenham | E53: NHS East Riding of Yorkshire
C54: Nottingham | D54: Cherwell | E54: NHS East Staffordshire
C55: Nottinghamshire | D55: Cheshire East | E55: NHS East Surrey
C56: Outer London | D56: Cheshire West and Chester | E56: NHS Eastbourne, Hailsham and Seaford
C57: Oxfordshire | D57: Chesterfield | E57: NHS Eastern Cheshire
C58: Peterborough | D58: Chichester | E58: NHS Enfield
C59: Plymouth | D59: Chiltern | E59: NHS Erewash
C60: Poole | D60: Chorley | E60: NHS Fareham and Gosport
C61: Portsmouth | D61: Christchurch | E61: NHS Fylde & Wyre
C62: Reading | D62: City of London | E62: NHS Gloucestershire
C63: Redcar and Cleveland | D63: Colchester | E63: NHS Great Yarmouth and Waveney
C64: Rutland | D64: Copeland | E64: NHS Greater Huddersfield
C65: Shropshire | D65: Corby | E65: NHS Greater Preston
C66: Slough | D66: Cornwall | E66: NHS Greenwich
C67: Somerset | D67: Cotswold | E67: NHS Guildford and Waverley
C68: South Gloucestershire | D68: County Durham | E68: NHS Halton
C69: South Yorkshire (Met County) | D69: Coventry | E69: NHS Hambleton, Richmondshire and Whitby
C70: Southampton | D70: Craven | E70: NHS Hammersmith and Fulham
C71: Southend-on-Sea | D71: Crawley | E71: NHS Hardwick
C72: Staffordshire | D72: Croydon | E72: NHS Haringey
C73: Stockton-on-Tees | D73: Dacorum | E73: NHS Harrogate and Rural District
C74: Stoke-on-Trent | D74: Darlington | E74: NHS Harrow
C75: Suffolk | D75: Dartford | E75: NHS Hartlepool and Stockton-On-Tees
C76: Surrey | D76: Daventry | E76: NHS Hastings and Rother
C77: Swindon | D77: Derby | E77: NHS Havering
C78: Telford and Wrekin | D78: Derbyshire Dales | E78: NHS Herefordshire
C79: Thurrock | D79: Doncaster | E79: NHS Herts Valleys
C80: Torbay | D80: Dover | E80: NHS Heywood, Middleton and Rochdale
C81: Tyne and Wear (Met County) | D81: Dudley | E81: NHS High Weald Lewes Havens
C82: Warrington | D82: Ealing | E82: NHS Hillingdon
C83: Warwickshire | D83: East Cambridgeshire | E83: NHS Horsham and Mid Sussex
C84: West Berkshire | D84: East Devon | E84: NHS Hounslow
C85: West Midlands (Met County) | D85: East Dorset | E85: NHS Hull
C86: West Sussex | D86: East Hampshire | E86: NHS Ipswich and East Suffolk
C87: West Yorkshire (Met County) | D87: East Hertfordshire | E87: NHS Isle of Wight
C88: Wiltshire | D88: East Lindsey | E88: NHS Islington
C89: Windsor and Maidenhead | D89: East Northamptonshire | E89: NHS Kernow
C90: Wokingham | D90: East Riding of Yorkshire | E90: NHS Kingston
C91: Worcestershire | D91: East Staffordshire | E91: NHS Knowsley
C92: York | D92: Eastbourne | E92: NHS Lambeth
D93: Eastleigh | E93: NHS Lancashire North
D94: Eden | E94: NHS Leeds North
D95: Elmbridge | E95: NHS Leeds South and East
D96: Enfield | E96: NHS Leeds West
D97: Epping Forest | E97: NHS Leicester City
D98: Epsom and Ewell | E98: NHS Lewisham
D99: Erewash | E99: NHS Lincolnshire East
D100: Exeter | E100: NHS Lincolnshire West
D101: Fareham | E101: NHS Liverpool
D102: Fenland | E102: NHS Luton
D103: Forest Heath | E103: NHS Mansfield and Ashfield
D104: Forest of Dean | E104: NHS Medway
D105: Fylde | E105: NHS Merton
D106: Gateshead | E106: NHS Mid Essex
D107: Gedling | E107: NHS Milton Keynes
D108: Gloucester | E108: NHS Nene
D109: Gosport | E109: NHS Newark & Sherwood
D110: Gravesham | E110: NHS Newbury and District
D111: Great Yarmouth | E111: NHS Newcastle Gateshead
D112: Greenwich | E112: NHS Newham
D113: Guildford | E113: NHS North & West Reading
D114: Hackney | E114: NHS North Derbyshire
D115: Halton | E115: NHS North Durham
D116: Hambleton | E116: NHS North East Essex
D117: Hammersmith and Fulham | E117: NHS North East Hampshire and Farnham
D118: Harborough | E118: NHS North East Lincolnshire
D119: Haringey | E119: NHS North Hampshire
D120: Harlow | E120: NHS North Kirklees
D121: Harrogate | E121: NHS North Lincolnshire
D122: Harrow | E122: NHS North Manchester
D123: Hart | E123: NHS North Norfolk
D124: Hartlepool | E124: NHS North Somerset
D125: Hastings | E125: NHS North Staffordshire
D126: Havant | E126: NHS North Tyneside
D127: Havering | E127: NHS North West Surrey
D128: Herefordshire, County of | E128: NHS North, East, West Devon
D129: Hertsmere | E129: NHS Northumberland
D130: High Peak | E130: NHS Norwich
D131: Hillingdon | E131: NHS Nottingham City
D132: Hinckley and Bosworth | E132: NHS Nottingham North and East
D133: Horsham | E133: NHS Nottingham West
D134: Hounslow | E134: NHS Oldham
D135: Huntingdonshire | E135: NHS Oxfordshire
D136: Hyndburn | E136: NHS Portsmouth
D137: Ipswich | E137: NHS Redbridge
D138: Isle of Wight | E138: NHS Redditch and Bromsgrove
D139: Isles of Scilly | E139: NHS Richmond
D140: Islington | E140: NHS Rotherham
D141: Kensington and Chelsea | E141: NHS Rushcliffe
D142: Kettering | E142: NHS Salford
D143: King's Lynn and West Norfolk | E143: NHS Sandwell and West Birmingham
D144: Kingston upon Hull, City of | E144: NHS Scarborough and Ryedale
D145: Kingston upon Thames | E145: NHS Sheffield
D146: Kirklees | E146: NHS Shropshire
D147: Knowsley | E147: NHS Slough
D148: Lambeth | E148: NHS Solihull
D149: Lancaster | E149: NHS Somerset
D150: Leeds | E150: NHS South Cheshire
D151: Leicester | E151: NHS South Devon and Torbay
D152: Lewes | E152: NHS South East Staffs and Seisdon Peninsular
D153: Lewisham | E153: NHS South Eastern Hampshire
D154: Lichfield | E154: NHS South Gloucestershire
D155: Lincoln | E155: NHS South Kent Coast
D156: Liverpool | E156: NHS South Lincolnshire
D157: Luton | E157: NHS South Manchester
D158: Maidstone | E158: NHS South Norfolk
D159: Maldon | E159: NHS South Reading
D160: Malvern Hills | E160: NHS South Sefton
D161: Manchester | E161: NHS South Tees
D162: Mansfield | E162: NHS South Tyneside
D163: Medway | E163: NHS South Warwickshire
D164: Melton | E164: NHS South West Lincolnshire
D165: Mendip | E165: NHS South Worcestershire
D166: Merton | E166: NHS Southampton
D167: Mid Devon | E167: NHS Southend
D168: Mid Suffolk | E168: NHS Southern Derbyshire
D169: Mid Sussex | E169: NHS Southport and Formby
D170: Middlesbrough | E170: NHS Southwark
D171: Milton Keynes | E171: NHS St Helens
D172: Mole Valley | E172: NHS Stafford and Surrounds
D173: New Forest | E173: NHS Stockport
D174: Newark and Sherwood | E174: NHS Stoke on Trent
D175: Newcastle upon Tyne | E175: NHS Sunderland
D176: Newcastle-under-Lyme | E176: NHS Surrey Downs
D177: Newham | E177: NHS Surrey Heath
D178: North Devon | E178: NHS Sutton
D179: North Dorset | E179: NHS Swale
D180: North East Derbyshire | E180: NHS Swindon
D181: North East Lincolnshire | E181: NHS Tameside and Glossop
D182: North Hertfordshire | E182: NHS Telford and Wrekin
D183: North Kesteven | E183: NHS Thanet
D184: North Lincolnshire | E184: NHS Thurrock
D185: North Norfolk | E185: NHS Tower Hamlets
D186: North Somerset | E186: NHS Trafford
D187: North Tyneside | E187: NHS Vale of York
D188: North Warwickshire | E188: NHS Vale Royal
D189: North West Leicestershire | E189: NHS Wakefield
D190: Northampton | E190: NHS Walsall
D191: Northumberland | E191: NHS Waltham Forest
D192: Norwich | E192: NHS Wandsworth
D193: Nottingham | E193: NHS Warrington
D194: Nuneaton and Bedworth | E194: NHS Warwickshire North
D195: Oadby and Wigston | E195: NHS West Cheshire
D196: Oldham | E196: NHS West Essex
D197: Oxford | E197: NHS West Hampshire
D198: Pendle | E198: NHS West Kent
D199: Peterborough | E199: NHS West Lancashire
D200: Plymouth | E200: NHS West Leicestershire
... 127 more rows

Sheet Dropdowns (hidden)
A1: Interventions: | C1: Population types | E1: Timeframe | H1: Selected intervention:
A3: Specialist HV assessment combined with behavioural or clinical treatment for mothers suffering PND | C3: New mothers | E3: 1 year | H3: Yes
A4: Breastfeeding | C4: Mother's at risk of PND | E4: 2 years (undiscounted) | H4: No
A5: Intervention 3 | E5: 2 years (discounted)
A6: Intervention 4 | E6: 5 years (undiscounted)
A7: Intervention 5 | E7: 5 years (discounted)
A8: Intervention 6 | E8: 10 years (undiscounted)
A9: Intervention 7 | E9: 10 years (discounted)
E10: All years (undiscounted)
E11: All years (discounted)

Sheet Package calculations (hidden)
A2: PND Full | B2: Scenario 1 | H2: PND Full | I2: Secnario 2
B4: Combined QALY gains | C4: Rank | D4: No. allocated to intervention | E4: Cum | F4: Allocated | I4: Combined QALY gains | J4: Rank | K4: No. allocated to intervention | L4: Cum | M4: Allocated
E5: 0 | L5: 0
A6: Midwifery redesigned postnatal care; Universal | B6: =IFERROR(INDEX(Full_PND_interventions,MATCH($A6,Full_PND_interventions_names,0),MATCH($B$4,Full_PND_interventions_headings,0)),"") ->  | C6: =IFERROR(RANK(B6,$B$6:$B$8,0),"") ->  | D6: =IFERROR(INDEX(Scenario1_inputs,MATCH($A6,Scenario1_inputs_intervention_names,0),MATCH(D$4,Scenario1_inputs_headings,0)),"") ->  | E6: =IF(ISNUMBER(D6),(E5+D6),0) -> 0 | F6: =IFERROR(IF(E5>(MAX($D$6:$D$8)),0,IF(E5+D6>(MAX($D$6:$D$8)),(MAX($D$6:$D$8)-E5),D6)),"") ->  | H6: Midwifery redesigned postnatal care; Universal | I6: =IFERROR(INDEX(Full_PND_Sc2_info,MATCH($H6,Full_PND_Sc2_info_intervention_names,0),MATCH($I$4,Full_PND_Sc2_info_intervention_headings,0)),"") -> 0 | J6: =RANK(I6,$I$6:$I$8,0) -> 1 | K6: =INDEX(Scenario2_inputs,MATCH($A6,Scenario2_inputs_intervention_names,0),MATCH(K$4,Scenario2_inputs_headings,0)) -> 0 | L6: =IF(ISNUMBER(K6),(L5+K6),0) -> 0 | M6: =IF(L5>(MAX($K$6:$K$8)),0,IF(L5+K6>(MAX($K$6:$K$8)),(MAX($K$6:$K$8)-L5),K6)) -> 0
A7: Peer Support Intervention for Prevention of Postpartum Depression; Selective | B7: =IFERROR(INDEX(Full_PND_interventions,MATCH($A7,Full_PND_interventions_names,0),MATCH($B$4,Full_PND_interventions_headings,0)),"") ->  | C7: =IFERROR(RANK(B7,$B$6:$B$8,0),"") ->  | D7: =IFERROR(INDEX(Scenario1_inputs,MATCH($A7,Scenario1_inputs_intervention_names,0),MATCH(D$4,Scenario1_inputs_headings,0)),"") ->  | E7: =IF(AND(ISNUMBER(E6),ISTEXT(D7)),(E6),IF(AND(ISNUMBER(E6),ISNUMBER(D7)),(SUM(E6,D7)))) -> 0 | F7: =IFERROR(IF(E6>(MAX($D$6:$D$8)),0,IF(E6+D7>(MAX($D$6:$D$8)),(MAX($D$6:$D$8)-E6),D7)),"") ->  | H7: Peer Support Intervention for Prevention of Postpartum Depression; Selective | I7: =IFERROR(INDEX(Full_PND_Sc2_info,MATCH($H7,Full_PND_Sc2_info_intervention_names,0),MATCH($I$4,Full_PND_Sc2_info_intervention_headings,0)),"") -> 0 | J7: =RANK(I7,$I$6:$I$8,0) -> 1 | K7: =INDEX(Scenario2_inputs,MATCH($A7,Scenario2_inputs_intervention_names,0),MATCH(K$4,Scenario2_inputs_headings,0)) -> 0 | L7: =IF(AND(ISNUMBER(L6),ISTEXT(K7)),(L6),IF(AND(ISNUMBER(L6),ISNUMBER(K7)),(SUM(L6,K7)))) -> 0 | M7: =IF(L6>(MAX($K$6:$K$8)),0,IF(L6+K7>(MAX($K$6:$K$8)),(MAX($K$6:$K$8)-L6),K7)) -> 0
A8: Group physical therapy exercises; Universal | B8: =IFERROR(INDEX(Full_PND_interventions,MATCH($A8,Full_PND_interventions_names,0),MATCH($B$4,Full_PND_interventions_headings,0)),"") ->  | D8: =IFERROR(INDEX(Scenario1_inputs,MATCH($A8,Scenario1_inputs_intervention_names,0),MATCH(D$4,Scenario1_inputs_headings,0)),"") ->  | E8: =IF(ISNUMBER(D8),(E7+D8),0) -> 0 | F8: =IFERROR(IF(E7>(MAX($D$6:$D$8)),0,IF(E7+D8>(MAX($D$6:$D$8)),(MAX($D$6:$D$8)-E7),D8)),"") ->  | H8: Group physical therapy exercises; Universal | I8: =IFERROR(INDEX(Full_PND_Sc2_info,MATCH($H8,Full_PND_Sc2_info_intervention_names,0),MATCH($I$4,Full_PND_Sc2_info_intervention_headings,0)),"") -> 0 | J8: =RANK(I8,$I$6:$I$8,0) -> 1 | K8: =INDEX(Scenario2_inputs,MATCH($A8,Scenario2_inputs_intervention_names,0),MATCH(K$4,Scenario2_inputs_headings,0)) -> 0 | L8: =IF(ISNUMBER(K8),(L7+K8),0) -> 0 | M8: =IF(L7>(MAX($K$6:$K$8)),0,IF(L7+K8>(MAX($K$6:$K$8)),(MAX($K$6:$K$8)-L7),K8)) -> 0
C10: where the assumption is: | J10: where the assumption is:
A11: Cumulative | B11: =SUMPRODUCT(B6:B8,D6:D8) -> 0 | C11: Assumes different people participate in each interventions. | H11: Cumulative | I11: =SUMPRODUCT(I6:I8,K6:K8) -> 0 | J11: Assumes different people participate in each interventions.
A12: Conservative | B12: =SUMPRODUCT(B6:B8,F6:F8) -> 0 | C12: Assumes that the same people participate in all interventions. | H12: Conservative | I12: =SUMPRODUCT(I6:I8,M6:M8) -> 0 | J12: Assumes that the same people participate in all interventions.
A13: Average | B13: =AVERAGE(B11:B12) -> 0 | C13: Is the average of the conservative and cumulative estimate | H13: Average | I13: =AVERAGE(I11:I12) -> 0 | J13: Is the average of the conservative and cumulative estimate
A18: PND Full | B18: Scenario 1 | H18: PND Full | I18: Secnario 2
B20: Combined QALY gains | C20: No. allocated to intervention | D20: Cum | E20: Allocated | I20: Combined QALY gains | J20: No. allocated to intervention | K20: Cum | L20: Allocated
D21: 0 | K21: 0
A22: =IFERROR(IF($C$6=1,$A$6,IF($C$7=1,$A$7,IF($C$8=1,$A$8))),"") -> FALSE | B22: =IFERROR(INDEX(PND_packages_Sc1,MATCH($A22,PND_packages_name_Sc1,0),MATCH(B$20,PND_packages_headings_Sc1,0)),"") ->  | D22: =IFERROR(D21+C22,"") ->  | E22: =IFERROR(IF(D21>(MAX($C$22:$C$24)),0,IF(D21+C22>(MAX($C$22:$C$24)),(MAX($C$22:$C$24)-D21),C22)),"") ->  | H22: =IF($J$6=1,$H$6,IF($J$7=1,$H$7,IF($J$8=1,$H$8))) -> Midwifery redesigned postnatal care; Universal | I22: =INDEX(PND_packages_Sc2,MATCH($H22,PND_packages_name_Sc2,0),MATCH(I$20,PND_packages_headings_Sc2,0)) -> 0 | J22: 0 | K22: =K21+J22 -> 0 | L22: =IF(K21>(MAX($J$22:$J$24)),0,IF(K21+J22>(MAX($J$22:$J$24)),(MAX($J$22:$J$24)-K21),J22)) -> 
A23: =IFERROR(IF($C$6=2,$A$6,IF($C$7=2,$A$7,IF($C$8=2,$A$8))),"") -> FALSE | D23: =IFERROR(D22+C23,"") ->  | E23: =IFERROR(IF(D22>(MAX($C$22:$C$24)),0,IF(D22+C23>(MAX($C$22:$C$24)),(MAX($C$22:$C$24)-D22),C23)),"") -> 0 | H23: =IF($J$6=2,$H$6,IF($J$7=2,$H$7,IF($J$8=2,$H$8))) -> FALSE | K23: =K22+J23 ->  | L23: =IF(K22>(MAX($J$22:$J$24)),0,IF(K22+J23>(MAX($J$22:$J$24)),(MAX($J$22:$J$24)-K22),J23)) -> 
A24: =IFERROR(IF($C$6=3,$A$6,IF($C$7=3,$A$7,IF($C$8=3,$A$8))),"") -> FALSE | D24: =IFERROR(D23+C24,"") ->  | E24: =IFERROR(IF(D23>(MAX($C$22:$C$24)),0,IF(D23+C24>(MAX($C$22:$C$24)),(MAX($C$22:$C$24)-D23),C24)),"") -> 0 | H24: =IF($J$6=3,$H$6,IF($J$7=3,$H$7,IF($J$8=3,$H$8))) -> FALSE | I24: =IFERROR(INDEX(PND_packages_Sc2,MATCH($H24,PND_packages_name_Sc2,0),MATCH(I$20,PND_packages_headings_Sc2,0)),"") ->  | J24: =IFERROR(INDEX(PND_packages_Sc2,MATCH($H24,PND_packages_name_Sc2,0),MATCH(J$20,PND_packages_headings_Sc2,0)),"") ->  | K24: =IFERROR(K23+J24,"") ->  | L24: =IF(K23>(MAX($J$22:$J$24)),0,IF(K23+J24>(MAX($J$22:$J$24)),(MAX($J$22:$J$24)-K23),J24)) -> 
A27: Cumulative | B27: =SUMPRODUCT(B22:B24,C22:C24) -> 0 | C27: Assumes different people participate in each interventions. | H27: Cumulative | I27: =SUMPRODUCT(I22:I24,J22:J24) ->  | J27: Assumes different people participate in each interventions.
A28: Conservative | B28: =SUMPRODUCT(B22:B24,E22:E24) -> 0 | C28: Assumes that the same people participate in all interventions. | H28: Conservative | I28: =SUMPRODUCT(I22:I24,L22:L24) ->  | J28: Assumes that the same people participate in all interventions.
A29: Average | B29: =AVERAGE(B27:B28) -> 0 | C29: Is the average of the conservative and cumulative estimate | H29: Average | I29: =AVERAGE(I27:I28) ->  | J29: Is the average of the conservative and cumulative estimate
A331: Intervention | B331: rank | C331: Effectiveness | D331: Popn | E331: Cum | F331: Allocated
E332: 0
A333: A | B333: =RANK(C333,$C$333:$C$337,0) -> 2 | C333: 0.3 | D333: 60 | E333: =E332+D333 -> 60 | F333: =IF(E332>(MAX($D$333:$D$337)),0,IF(E332+D333>(MAX($D$333:$D$337)),(MAX($D$333:$D$337)-E332),D333)) -> 60 | G333: 60
A334: B | B334: =RANK(C334,$C$333:$C$337,0) -> 5 | C334: 0.15 | D334: 40 | E334: =E333+D334 -> 100 | F334: =IF(E333>(MAX($D$333:$D$337)),0,IF(E333+D334>(MAX($D$333:$D$337)),(MAX($D$333:$D$337)-E333),D334)) -> 40 | G334: 0
A335: C | B335: =RANK(C335,$C$333:$C$337,0) -> 4 | C335: 0.25 | D335: 100 | E335: 200 | F335: =IF(E334>(MAX($D$333:$D$337)),0,IF(E334+D335>(MAX($D$333:$D$337)),(MAX($D$333:$D$337)-E334),D335)) -> 0 | G335: 20
A336: D | B336: =RANK(C336,$C$333:$C$337,0) -> 1 | C336: 0.5 | D336: 20 | E336: 220 | F336: =IF(E335>(MAX($D$333:$D$337)),0,IF(E335+D336>(MAX($D$333:$D$337)),(MAX($D$333:$D$337)-E335),D336)) -> 0 | G336: 20
A337: E | B337: =RANK(C337,$C$333:$C$337,0) -> 3 | C337: 0.26 | D337: 80 | E337: 300 | F337: =IF(E336>(MAX($D$333:$D$337)),0,IF(E336+D337>(MAX($D$333:$D$337)),(MAX($D$333:$D$337)-E336),D337)) -> 0 | G337: 0
C339: where the assumption is:
A340: Conservative | C340: Assumes that the same people participate in all interventions. I.e. population = 100
A341: Cumulative | C341: Assumes different people participate in each interventions. I.e. population = 300
A342: Average | C342: Is the average of the conservative and cumulative estimate
A344: Intervention | B344: Effectiveness | C344: Popn | D344: Cum | E344: Allocated
D345: 0
A346: =IF($B$333=1,$A$333,IF($B$334=1,$A$334,IF($B$335=1,$A$335,IF($B$336=1,$A$336,IF($B$337=1,$A$337))))) -> D | B346: =INDEX(test,MATCH($A346,test_names,0),MATCH(B$344,test_headings,0)) -> 0.5 | C346: 20 | D346: =D345+C346 -> 20 | E346: =IF(D345>(MAX($C$346:$C$350)),0,IF(D345+C346>(MAX($C$346:$C$350)),(MAX($C$346:$C$350)-D345),C346)) -> 20
A347: =IF($B$333=2,$A$333,IF($B$334=2,$A$334,IF($B$335=2,$A$335,IF($B$336=2,$A$336,IF($B$337=2,$A$337))))) -> A | B347: 0.3 | C347: 60 | D347: =D346+C347 -> 80 | E347: =IF(D346>(MAX($C$346:$C$350)),0,IF(D346+C347>(MAX($C$346:$C$350)),(MAX($C$346:$C$350)-D346),C347)) -> 60
A348: =IF($B$333=3,$A$333,IF($B$334=3,$A$334,IF($B$335=3,$A$335,IF($B$336=3,$A$336,IF($B$337=3,$A$337))))) -> E | B348: 0.26 | C348: 80 | D348: 160 | E348: =IF(D347>(MAX($C$346:$C$350)),0,IF(D347+C348>(MAX($C$346:$C$350)),(MAX($C$346:$C$350)-D347),C348)) -> 20
A349: =IF($B$333=4,$A$333,IF($B$334=4,$A$334,IF($B$335=4,$A$335,IF($B$336=4,$A$336,IF($B$337=4,$A$337))))) -> C | B349: 0.25 | C349: 100 | D349: 260 | E349: =IF(D348>(MAX($C$346:$C$350)),0,IF(D348+C349>(MAX($C$346:$C$350)),(MAX($C$346:$C$350)-D348),C349)) -> 0
A350: =IF($B$333=5,$A$333,IF($B$334=5,$A$334,IF($B$335=5,$A$335,IF($B$336=5,$A$336,IF($B$337=5,$A$337))))) -> B | B350: 0.15 | C350: 40 | D350: 300 | E350: =IF(D349>(MAX($C$346:$C$350)),0,IF(D349+C350>(MAX($C$346:$C$350)),(MAX($C$346:$C$350)-D349),C350)) -> 0
C352: where the assumption is:
A353: Conservative | B353: =SUMPRODUCT(B346:B350,E346:E350) -> 33.2 | C353: Assumes that the same people participate in all interventions. I.e. population = 100
A354: Cumulative | B354: =SUMPRODUCT(B346:B350,C346:C350) -> 79.8 | C354: Assumes different people participate in each interventions. I.e. population = 300
A355: Average | B355: =AVERAGE(B353:B354) -> 56.5 | C355: Is the average of the conservative and cumulative estimate

Sheet Data extraction_Sc1 (hidden)
A1: Data extraction to tool
F2: Population | H2: Interventions | P2: 0.035 | Q2: 0.015 | R2: Results | V2: Packages
A3: ID | B3: Intervention | C3: Intervention name | D3: Intervention type | E3: Description | F3: Prevalence (%) | G3: eligible population description | H3: Cost of intervention(not incremental) | I3: Cost of comparator | J3: Cost of intervention | K3: effectiveness description | L3: effectiveness (1) Intervention | M3: effectiveness (1) comparator | N3: Effectiveness | O3: Value of a QALY | P3: Discount rate (costs) | Q3: Discount rate (benefits) | R3: Cost (per person) (incremental) | S3: Cost Saving | T3: Net benefit | U3: QALY gain | V3: aggregations and calculations
A4: 1 | B4: Hoddinott, 2012, any | C4: Breastfeeding support: Proactive and Reactive call, daily, for 1 week following hospital discharge. Any breast feeding | D4: Breastfeeding | E4: Intervention: Proactive telephone calls daily for 1 week following hospital discharge by a specialised feeding team on a postnatal ward. Calls terminated at the woman’s request or if breast feeding ceased. At 1 week following discharge, women could choose to continue receiving daily calls for a further week, change the frequency of calls or have no further calls. Women could telephone the feeding team at any point over the 2 weeks following discharge. Text and answer phone messaging was available. All proactive calls stopped 14 days after hospital discharge Control: Reactive telephone calls - women could telephone the feeding team at any point over the 2 weeks following discharge. Text and answer phone messaging was available NB: Cost Year = 2009 / 2010 | G4: women from deprived areas (SIMD 1-3) and were breastfeeding at hospital discharge | H4: 41.25 | I4: 21.13 | J4: =H4-I4 -> 20.12 | K4: Any breastfeeding at 6-8 weeks after hospital discharge, percentage increase from baseline with no intervention. Information provided in this paper was linked to three reports; LSE et. al (2014), Victora (2016) & UNICEF (2012) to allow for calculations or cost-savings and QALY gains for the mother-child dyad. | L4: 0.69 | M4: 0.46 | N4: =L4-M4 -> 0.23 | P4: 3.5% for costs and utility | Q4: 3.5% for costs and utility | R4: =Table14[[#This Row],[Cost of intervention]] -> 20.12 | S4: 500 | T4: =R4-S4 -> -479.88 | U4: 0.003 | V4: =Table14[[#This Row],[Cost (per person) (incremental)]]/Table14[[#This Row],[QALY gain]] -> 6706.666667
A5: 2 | B5: Hoddinott, 2012, exclusive | C5: Breastfeeding support: Proactive and Reactive call, daily, for 1 week following hospital discharge. Exclusive breast feeding | D5: Breastfeeding | E5: Intervention: Proactive telephone calls daily for 1 week following hospital discharge by a specialised feeding team on a postnatal ward. Calls terminated at the woman’s request or if breast feeding ceased. At 1 week following discharge, women could choose to continue receiving daily calls for a further week, change the frequency of calls or have no further calls. Women could telephone the feeding team at any point over the 2 weeks following discharge. Text and answer phone messaging was available. All proactive calls stopped 14 days after hospital discharge Control: Reactive telephone calls - women could telephone the feeding team at any point over the 2 weeks following discharge. Text and answer phone messaging was available NB: Cost Year = 2009 / 2010 | G5: women from deprived areas (Index of Multiple Deprivation (IMD) for England, 1-3) and were breastfeeding at hospital discharge | H5: 41.25 | I5: 21.13 | J5: =(H5-I5)*(100/'GDP deflators, March 2017'!$S$62) -> 22.46082616 | K5: Exclusive breastfeeding at 6-8 weeks after hospital discharge, percentage increase from baseline with no intervention. Information provided in this paper was linked to three reports; Renfrew (2012), Pokhrel et. al. (2014) & Victora (2016) to allow for calculations to estimate cost-savings and QALY gains for the mother-child dyad. | L5: 0.53 | M5: 0.31 | N5: =L5-M5 -> 0.22 | P5: 3.5% for costs and utility | Q5: 3.5% for costs and utility | R5: =Table14[[#This Row],[Cost of intervention]] -> 22.46082616 | S5: 600 | T5: =R5-S5 -> -577.5391738 | U5: 0.007 | V5: =Table14[[#This Row],[Cost (per person) (incremental)]]/Table14[[#This Row],[QALY gain]] -> 3208.689451
A6: 3 | B6: Renfrew, 500–999 g; | C6: Enhanced staff contact (500-999g) | D6: Breastfeeding | E6: Intervention taken from an economic model that uses the findings of a systematic review - i.e. the intervention is not clearly defined Intervention: enhanced staff contact – the addition of specially trained staff, who would be available to advise and support mothers on milk expression and breastfeeding. The intervention is termed broadly as Enhanced Staff contact and includes lactation support at children's hospital neonatal intensive care unit. 45 minutes of specially trained staff time + 2.5 hours of additional staff contact Control: normal staff contact – that is to say, no addition of specially trained staff. NB: Cost Year = 2006 / 2007 | F6: (check background section) | G6: Mothers with infants in neonatal units with infants born underweight: infants were premature (ie, < 37 weeks’ gestation) or low birth weight (≤ 2500 g) subgroups were: 500–999 g; | H6: 45 minutes of specially trained staff time + 2.5 hours of additional staff contact | I6: 45 minutes of specially trained staff time | J6: =121*(100/'GDP deflators, March 2017'!$S$59) -> 144.0629653 | K6: Child QALY gains The clinical outcomes of interest were sepsis, confirmed NEC (necrotising enterocolitis) and mortality. The clinical outcomes were aggregated and measured in QALYs over lifetime: incidence NEC (stage II and III) and its secondary effects (mortality, long-term disability) and incidence of sepsis and its secondary effects (mortality, long-term disability) | L6: 14.7 | M6: 14.45 | N6: =L6-M6 -> 0.25 | P6: 3.5% for costs and utility | Q6: 3.5% for costs and utility | R6: ='Intervention(s)_Sc2'!$K$25 ->  | S6: 707 | T6: =Table14[[#This Row],[Cost Saving]]-Table14[[#This Row],[Cost (per person) (incremental)]] ->  | U6: ='Intervention(s)_BF_Sc1'!J51 ->  | V6: =Table14[[#This Row],[Cost (per person) (incremental)]]/Table14[[#This Row],[QALY gain]] -> 
A7: 4 | B7: Renfrew, 1000–1749 g; | C7: Enhanced staff contact (1000-1749g) | D7: Breastfeeding | E7: Intervention taken from an economic model that uses the findings of a systematic review - i.e. the intervention is not clearly defined Intervention: enhanced staff contact – the addition of specially trained staff, who would be available to advise and support mothers on milk expression and breastfeeding. The intervention is termed broadly as Enhanced Staff contact and includes lactation support at children's hospital neonatal intensive care unit. 45 minutes of specially trained staff time + 2.5 hours of additional staff contact Control: normal staff contact – that is to say, no addition of specially trained staff. NB: Cost Year = 2006 / 2007 | G7: Mothers with infants in neonatal units with infants born underweight: infants were premature (ie, < 37 weeks’ gestation) or low birth weight (≤ 2500 g) subgroups were: 1000–1749 g; | H7: 45 minutes of specially trained staff time + 2.5 hours of additional staff contact | I7: 45 minutes of specially trained staff time | J7: =121*(100/'GDP deflators, March 2017'!$S$59) -> 144.0629653 | K7: Child QALY gains The clinical outcomes of interest were sepsis, confirmed NEC (necrotising enterocolitis) and mortality. The clinical outcomes were aggregated and measured in QALYs over lifetime: incidence NEC (stage II and III) and its secondary effects (mortality, long-term disability) and incidence of sepsis and its secondary effects (mortality, long-term disability) | L7: 21.05 | M7: 21 | N7: =L7-M7 -> 0.05 | P7: 3.5% for costs and utility | Q7: 3.5% for costs and utility | R7: ='Intervention(s)_Sc2'!$K$25 ->  | S7: =(38159+18666-57240)*(-1) -> 415 | T7: =Table14[[#This Row],[Cost Saving]]-Table14[[#This Row],[Cost (per person) (incremental)]] ->  | U7: ='Intervention(s)_BF_Sc1'!J52 ->  | V7: =Table14[[#This Row],[Cost (per person) (incremental)]]/Table14[[#This Row],[QALY gain]] -> 
A8: 5 | B8: Renfrew, 1750–2500 g | C8: Enhanced staff contact (1750-2500g) | D8: Breastfeeding | E8: Intervention taken from an economic model that uses the findings of a systematic review - i.e. the intervention is not clearly defined Intervention: enhanced staff contact – the addition of specially trained staff, who would be available to advise and support mothers on milk expression and breastfeeding. The intervention is termed broadly as Enhanced Staff contact and includes lactation support at children's hospital neonatal intensive care unit. 45 minutes of specially trained staff time + 2.5 hours of additional staff contact Control: normal staff contact – that is to say, no addition of specially trained staff. NB: Cost Year = 2006 / 2007 | G8: Mothers with infants in neonatal units with infants born underweight: infants were premature (ie, < 37 weeks’ gestation) or low birth weight (≤ 2500 g) subgroups were: 1750–2500 g | H8: 45 minutes of specially trained staff time + 2.5 hours of additional staff contact | I8: 45 minutes of specially trained staff time | J8: =121*(100/'GDP deflators, March 2017'!$S$59) -> 144.0629653 | K8: Child QALY gains The clinical outcomes of interest were sepsis, confirmed NEC (necrotising enterocolitis) and mortality. The clinical outcomes were aggregated and measured in QALYs over lifetime: incidence NEC (stage II and III) and its secondary effects (mortality, long-term disability) and incidence of sepsis and its secondary effects (mortality, long-term disability) | L8: 21.92 | M8: 21.91 | N8: =L8-M8 -> 0.01 | P8: 3.5% for costs and utility | Q8: 3.5% for costs and utility | R8: ='Intervention(s)_Sc2'!$K$25 ->  | S8: =(22648+24458-47294)*(-1) -> 188 | T8: =Table14[[#This Row],[Cost Saving]]-Table14[[#This Row],[Cost (per person) (incremental)]] ->  | U8: ='Intervention(s)_BF_Sc1'!J53 ->  | V8: =Table14[[#This Row],[Cost (per person) (incremental)]]/Table14[[#This Row],[QALY gain]] -> 
A9: 6 | B9: Morrell, 2009, women at risk, CBA | C9: Women at risk; CBA | D9: Maternal Mental Health | E9: The PoNDER trial HV training in the assessment of postnatal women, combined with cognitive behavioural approach (CBA) plus the option of a selective serotonin reuptake inhibitor if indicated. The comparator is Health Visitor care as Usual | G9: Women who were 18+ and could speak English; Women were eligible for the intervention if they were, first, at-risk women (who returned a 6-week EPDS score ≥ 12 on the postal questionnaire) and, second, had an 8-week EPDS score ≥ 12 when the EPDS was repeated face-to-face by the HV at 8 weeks postnatally. Women eligible for the intervention were therefore defined by two EPDS score ≥ 12. | I9: NEEDS TO BE UPDATED as we have questions on the costing methodology cost of intervention as calculated in morrell 2016, uplifted to 2012/13 figures | J9: -35 | K9: QALYs gained from changes in SF-6D score - measured 6 months after birth (SF-6D scores were estimated using the UK tariff) | L9: 0.027 | M9: 0.023 | N9: 0.004 | P9: 3.5% for costs and utility | Q9: 3.5% for costs and utility | R9: =Table14[[#This Row],[Cost of intervention]] -> -35 | S9: =Table14[[#This Row],[Net benefit]]+Table14[[#This Row],[Cost (per person) (incremental)]] -> 10 | T9: 45 | U9: =Table14[[#This Row],[Effectiveness]] -> 0.004 | V9: =IF(-Table14[[#This Row],[Net benefit]]/Table14[[#This Row],[QALY gain]]<0, "Dominating", -Table14[[#This Row],[Net benefit]]/Table14[[#This Row],[QALY gain]]) -> Dominating
A10: 7 | B10: Morrell, 2009, women at risk, PCA | C10: Women at risk; PCA | D10: Maternal Mental Health | E10: The PoNDER trial HV training in the assessment of postnatal women, combined with person-centred approach (PCA), plus the option of a selective serotonin reuptake inhibitor if indicated. The comparator is Health Visitor care as Usual | G10: Women who were 18+ and could speak English; Women were eligible for the intervention if they were, first, at-risk women (who returned a 6-week EPDS score ≥ 12 on the postal questionnaire) and, second, had an 8-week EPDS score ≥ 12 when the EPDS was repeated face-to-face by the HV at 8 weeks postnatally. Women eligible for the intervention were therefore defined by two EPDS score ≥ 12. | I10: NEEDS TO BE UPDATED as we have questions on the costing methodology cost of intervention as calculated in morrell 2016, uplifted to 2012/13 figures | J10: 3 | K10: QALYs gained from changes in SF-6D score - measured 6 months after birth (SF-6D scores were estimated using the UK tariff) | L10: 0.025 | M10: 0.023 | N10: 0.002 | P10: 3.5% for costs and utility | Q10: 3.5% for costs and utility | R10: =Table14[[#This Row],[Cost of intervention]] -> 3 | S10: =Table14[[#This Row],[Net benefit]]+Table14[[#This Row],[Cost (per person) (incremental)]] -> 24 | T10: 21 | U10: =Table14[[#This Row],[Effectiveness]] -> 0.002 | V10: =IF(-Table14[[#This Row],[Net benefit]]/Table14[[#This Row],[QALY gain]]<0, "Dominating", -Table14[[#This Row],[Net benefit]]/Table14[[#This Row],[QALY gain]]) -> Dominating
A11: 8 | B11: Morrell, 2009, women at risk, combined | C11: Women at risk; combined | D11: Maternal Mental Health | E11: The PoNDER trial HV training in the assessment of postnatal women, combined with cognitive behavioural approach (CBA) and person-centred approach (PCA) sessions for eligible women, plus the option of a selective serotonin reuptake inhibitor if indicated. The comparator is Health Visitor care as Usual | G11: Women who were 18+ and could speak English; Women were eligible for the intervention if they were, first, at-risk women (who returned a 6-week EPDS score ≥ 12 on the postal questionnaire) and, second, had an 8-week EPDS score ≥ 12 when the EPDS was repeated face-to-face by the HV at 8 weeks postnatally. Women eligible for the intervention were therefore defined by two EPDS score ≥ 12. | I11: NEEDS TO BE UPDATED as we have questions on the costing methodology cost of intervention as calculated in morrell 2016, uplifted to 2012/13 figures | J11: =AVERAGE(J9:J10) -> -16 | K11: QALYs gained from changes in SF-6D score - measured 6 months after birth (SF-6D scores were estimated using the UK tariff) | L11: 0.026 | M11: 0.023 | N11: 0.003 | P11: 3.5% for costs and utility | Q11: 3.5% for costs and utility | R11: =Table14[[#This Row],[Cost of intervention]] -> -16 | S11: =Table14[[#This Row],[Net benefit]]+Table14[[#This Row],[Cost (per person) (incremental)]] -> 18.759 | T11: 34.759 | U11: =Table14[[#This Row],[Effectiveness]] -> 0.003 | V11: =IF(-Table14[[#This Row],[Net benefit]]/Table14[[#This Row],[QALY gain]]<0, "Dominating", -Table14[[#This Row],[Net benefit]]/Table14[[#This Row],[QALY gain]]) -> Dominating
A12: 9 | B12: Morrell, 2009, all women, CBA | C12: All women; CBA | D12: Maternal Mental Health | E12: The PoNDER trial HV training in the assessment of postnatal women, combined with cognitive behavioural approach (CBA) plus the option of a selective serotonin reuptake inhibitor if indicated. The comparator is Health Visitor care as Usual | G12: women were recruited if they were registered with participating GP practices, became 36 weeks pregnant during the recruitment phase of the trial, had a live baby and were on a collaborating HV’s caseload for 4 months postnatally. For the purpose of this tool: all women | I12: NEEDS TO BE UPDATED as we have questions on the costing methodology cost of intervention as calculated in morrell 2016, uplifted to 2012/13 figures | J12: -24 | K12: QALYs gained from changes in SF-6D score - measured 6 months after birth (SF-6D scores were estimated using the UK tariff) | L12: 0.03 | M12: 0.028 | N12: 0.002 | P12: 3.5% for costs and utility | Q12: 3.5% for costs and utility | R12: =Table14[[#This Row],[Cost of intervention]] -> -24 | S12: =Table14[[#This Row],[Net benefit]]+Table14[[#This Row],[Cost (per person) (incremental)]] -> -5.55 | T12: 18.45 | U12: =Table14[[#This Row],[Effectiveness]] -> 0.002 | V12: =IF(-Table14[[#This Row],[Net benefit]]/Table14[[#This Row],[QALY gain]]<0, "Dominating", -Table14[[#This Row],[Net benefit]]/Table14[[#This Row],[QALY gain]]) -> Dominating
A13: 10 | B13: Morrell, 2009, all women, PCA | C13: All women; PCA | D13: Maternal Mental Health | E13: The PoNDER trial HV training in the assessment of postnatal women, combined with person-centred approach (PCA), plus the option of a selective serotonin reuptake inhibitor if indicated. The comparator is Health Visitor care as Usual | G13: women were recruited if they were registered with participating GP practices, became 36 weeks pregnant during the recruitment phase of the trial, had a live baby and were on a collaborating HV’s caseload for 4 months postnatally. For the purpose of this tool: all women | I13: NEEDS TO BE UPDATED as we have questions on the costing methodology cost of intervention as calculated in morrell 2016, uplifted to 2012/13 figures | J13: -28 | K13: QALYs gained from changes in SF-6D score - measured 6 months after birth (SF-6D scores were estimated using the UK tariff) | L13: 0.03 | M13: 0.028 | N13: 0.002 | P13: 3.5% for costs and utility | Q13: 3.5% for costs and utility | R13: =Table14[[#This Row],[Cost of intervention]] -> -28 | S13: =Table14[[#This Row],[Net benefit]]+Table14[[#This Row],[Cost (per person) (incremental)]] -> -6.17 | T13: 21.83 | U13: =Table14[[#This Row],[Effectiveness]] -> 0.002 | V13: =IF(-Table14[[#This Row],[Net benefit]]/Table14[[#This Row],[QALY gain]]<0, "Dominating", -Table14[[#This Row],[Net benefit]]/Table14[[#This Row],[QALY gain]]) -> Dominating
A14: 11 | B14: Morrell, 2009, all women, combined | C14: All women; combined | D14: Maternal Mental Health | E14: The PoNDER trial HV training in the assessment of postnatal women, combined with cognitive behavioural approach (CBA) and person-centred approach (PCA) sessions for eligible women, plus the option of a selective serotonin reuptake inhibitor if indicated. The comparator is Health Visitor care as Usual | G14: women were recruited if they were registered with participating GP practices, became 36 weeks pregnant during the recruitment phase of the trial, had a live baby and were on a collaborating HV’s caseload for 4 months postnatally. For the purpose of this tool: all women | I14: NEEDS TO BE UPDATED as we have questions on the costing methodology cost of intervention as calculated in morrell 2016, uplifted to 2012/13 figures | J14: =AVERAGE(J12:J13) -> -26 | K14: QALYs gained from changes in SF-6D score - measured 6 months after birth (SF-6D scores were estimated using the UK tariff) | L14: 0.03 | M14: 0.028 | N14: 0.002 | P14: 3.5% for costs and utility | Q14: 3.5% for costs and utility | R14: =Table14[[#This Row],[Cost of intervention]] -> -26 | S14: =Table14[[#This Row],[Net benefit]]+Table14[[#This Row],[Cost (per person) (incremental)]] -> -6.032 | T14: 19.968 | U14: =Table14[[#This Row],[Effectiveness]] -> 0.002 | V14: =IF(-Table14[[#This Row],[Net benefit]]/Table14[[#This Row],[QALY gain]]<0, "Dominating", -Table14[[#This Row],[Net benefit]]/Table14[[#This Row],[QALY gain]]) -> Dominating
A15: 12 | B15: Morrell, 2016, booklet on PND, universal preventive | C15: Booklet on PND; Universal | D15: Maternal Mental Health | E15: An educational pamphlet ‘Why is everyone happy but me?’ mailed at 4-weeks postpartum, that explained the symptoms of PPD and identified local services for PPD, Sealy, 2009 The comparator is usual care. NB: Cost Year = 2012 / 2013 | G15: universal | H15: - | I15: - | J15: =1*(100/'GDP deflators, March 2017'!$S$62) -> 1.116343248 | K15: QALYs gained - data from the Convergence Diagnostic and Output Analysis (CODA) samples generated from the NMA of Edinburgh Postnatal Depression Scale (EPDS) values. 1-year time horizon There was not enough information available to calculate cost-savings for this intervention. | L15: - | M15: - | N15: 0.0076 | P15: 3.5% for costs and utility | Q15: 3.5% for costs and utility | R15: ='Intervention(s)_Sc2'!K48 ->  | S15: 0 | T15: =Table14[[#This Row],[Cost Saving]]-Table14[[#This Row],[Cost (per person) (incremental)]] ->  | U15: =Table14[[#This Row],[Effectiveness]] -> 0.0076 | V15: =IF(-Table14[[#This Row],[Net benefit]]/Table14[[#This Row],[QALY gain]]<0, "Dominating", -Table14[[#This Row],[Net benefit]]/Table14[[#This Row],[QALY gain]]) ->  | X15: No cost savings or cases averted were found for this intervention / paper - reporting here only the cost of intervention but we should caveat that there will be additional cost savings to both child and mother per case averted
A16: 13 | B16: Morrell, 2016, Early contact with care provider, universal preventive | C16: Early contact with care provider; Universal | D16: Maternal Mental Health | E16: A postnatal check-up with a GP 1 week after hospital discharge Changing the 6-week GP appointment to a 1-week appointment (assumes all women still have 6-week appointment in addition) - Gunn, 1998 The comparator is usual care. NB: Cost Year = 2012 / 2013 | G16: universal | H16: - | I16: - | J16: =41*(100/'GDP deflators, March 2017'!$S$66) -> 42.71615456 | K16: QALYs gained - data from the Convergence Diagnostic and Output Analysis (CODA) samples generated from the NMA of Edinburgh Postnatal Depression Scale (EPDS) values. 1-year time horizon There was not enough information available to calculate cost-savings for this intervention. | L16: - | M16: - | N16: 0.0058 | P16: 3.5% for costs and utility | Q16: 3.5% for costs and utility | R16: ='Intervention(s)_Sc2'!K49 ->  | S16: 0 | T16: =Table14[[#This Row],[Cost Saving]]-Table14[[#This Row],[Cost (per person) (incremental)]] ->  | U16: =Table14[[#This Row],[Effectiveness]] -> 0.0058 | V16: =IF(-Table14[[#This Row],[Net benefit]]/Table14[[#This Row],[QALY gain]]<0, "Dominating", -Table14[[#This Row],[Net benefit]]/Table14[[#This Row],[QALY gain]]) ->  | X16: No cost savings or cases averted were found for this intervention / paper - reporting here only the cost of intervention but we should caveat that there will be additional cost savings to both child and mother per case averted
A17: 14 | B17: Morrell, 2016, calcium, universal preventive | C17: Calcium; Universal | D17: Maternal Mental Health | E17: 2000 mg of elemental calcium per day during pregnancy Women prescribed 1000mg of calcium twice a day between 11 and 21 weeks' gestation until birth Harrison-Hohner, 2001 The comparator is usual care. NB: Cost Year = 2012 / 2013 | G17: universal | H17: - | I17: - | J17: =78.96*(100/'GDP deflators, March 2017'!$S$66) -> 82.26506254 | K17: QALYs gained - data from the Convergence Diagnostic and Output Analysis (CODA) samples generated from the NMA of Edinburgh Postnatal Depression Scale (EPDS) values. 1-year time horizon There was not enough information available to calculate cost-savings for this intervention. | L17: - | M17: - | N17: 0.0086 | P17: 3.5% for costs and utility | Q17: 3.5% for costs and utility | R17: ='Intervention(s)_Sc2'!K50 ->  | S17: 0 | T17: =Table14[[#This Row],[Cost Saving]]-Table14[[#This Row],[Cost (per person) (incremental)]] ->  | U17: =Table14[[#This Row],[Effectiveness]] -> 0.0086 | V17: =IF(-Table14[[#This Row],[Net benefit]]/Table14[[#This Row],[QALY gain]]<0, "Dominating", -Table14[[#This Row],[Net benefit]]/Table14[[#This Row],[QALY gain]]) ->  | X17: No cost savings or cases averted were found for this intervention / paper - reporting here only the cost of intervention but we should caveat that there will be additional cost savings to both child and mother per case averted
A18: 15 | B18: Morrell, 2016, Midwifery redesigned postnatal care, universal preventive | C18: Midwifery redesigned postnatal care; Universal | D18: Maternal Mental Health | E18: Redesigned midwifery-led community postnatal care Changes to postnatal care to systematic identification and management of women's health problems MacArthur, 2003 The comparator is usual care. NB: Cost Year = 2012 / 2013 | G18: universal | H18: - | I18: - | J18: =107.64*(100/'GDP deflators, March 2017'!$S$65) -> 113.9950723 | K18: post partum depression as measured 8 weeks postpartum (but maintained at 12 weeks), >=13 in Edinburgh Postnatal Depression Scale (EPDS) score (change in incidence) Information regarding the interventions from this review was linked to the Bauer et al. report to allow for calculations to estimate cost-savings and QALY gains. | L18: - | M18: - | N18: 0.0236 | P18: 3.5% for costs and utility | Q18: 3.5% for costs and utility | R18: =Table14[[#This Row],[Cost of intervention]] -> 113.9950723 | X18: Cost savings reported in the original paper: did not differ substantially Cases averted: odds ration at 12 months (with usual care as baseline), women scored >12 in EPDS: 0.46 | Z18: One of 3 full interventions
A19: 16 | B19: Morrell, 2016, CBT-based intervention, selective preventive | C19: CBT-based intervention; Selective | D19: Maternal Mental Health | E19: 1-hour prevention session between 2 and 5 days postnatally given by master level psychology students, Barnes 2009 The comparator is usual care. NB: Cost Year = 2012 / 2013 | G19: selective, women scoring 9+ on the Social Disadvantage Screening Index and accepting the offer to participate | H19: - | I19: - | J19: =99*(100/'GDP deflators, March 2017'!$S$66) -> 103.1438854 | K19: QALYs gained - data from the Convergence Diagnostic and Output Analysis (CODA) samples generated from the NMA of Edinburgh Postnatal Depression Scale (EPDS) values. 1-year time horizon There was not enough information available to calculate cost-savings for this intervention. | L19: - | M19: - | N19: 0.0025 | P19: 3.5% for costs and utility | Q19: 3.5% for costs and utility | R19: ='Intervention(s)_Sc2'!K51 ->  | S19: 0 | T19: =Table14[[#This Row],[Cost Saving]]-Table14[[#This Row],[Cost (per person) (incremental)]] ->  | U19: =Table14[[#This Row],[Effectiveness]] -> 0.0025 | V19: =IF(-Table14[[#This Row],[Net benefit]]/Table14[[#This Row],[QALY gain]]<0, "Dominating", -Table14[[#This Row],[Net benefit]]/Table14[[#This Row],[QALY gain]]) ->  | X19: No cost savings or cases averted were found for this intervention / paper - reporting here only the cost of intervention but we should caveat that there will be additional cost savings to both child and mother per case averted
A20: 17 | B20: Morrell, 2016, Education on preparing for parenting, selective preventive | C20: Education on preparing for parenting; Selective | D20: Maternal Mental Health | E20: A twin midwife advisor, invitation to attend a series of education sessions, additional home visits and attendance at an antenatal twin clinic for women with twins, Sen, 2006 Used for econ modelling: Four additional classes, run by midwives, nurse/psychologist, psychologist, Sen 2006 One individual visit prenatal and postnatal, five antenatal group sessions lasting 2 hours, Zlotnick, 2011 The comparator is usual care. NB: Cost Year = 2012 / 2013 | G20: selective Sen: women with twins Zlotnick: low-income pregnant women with recent intimate partner violence (IPV). | H20: - | I20: - | J20: =266.17*(100/'GDP deflators, March 2017'!$S$66) -> 277.3111917 | K20: QALYs gained - data from the Convergence Diagnostic and Output Analysis (CODA) samples generated from the NMA of Edinburgh Postnatal Depression Scale (EPDS) values. 1-year time horizon There was not enough information available to calculate cost-savings for this intervention. | L20: - | M20: - | N20: 0.0158 | P20: 3.5% for costs and utility | Q20: 3.5% for costs and utility | R20: ='Intervention(s)_Sc2'!K52 ->  | S20: 0 | T20: =Table14[[#This Row],[Cost Saving]]-Table14[[#This Row],[Cost (per person) (incremental)]] ->  | U20: =Table14[[#This Row],[Effectiveness]] -> 0.0158 | V20: =IF(-Table14[[#This Row],[Net benefit]]/Table14[[#This Row],[QALY gain]]<0, "Dominating", -Table14[[#This Row],[Net benefit]]/Table14[[#This Row],[QALY gain]]) ->  | X20: No cost savings or cases averted were found for this intervention / paper - reporting here only the cost of intervention but we should caveat that there will be additional cost savings to both child and mother per case averted
A21: 18 | B21: Morrell, 2016, IPT-based intervention, selective preventive | C21: IPT-based intervention; Selective | D21: Maternal Mental Health | E21: Five individual 1-hour sessions - provided by study interventionists, Chabrol, 2002 The comparator is usual care. NB: Cost Year = 2012 / 2013 | G21: selective Mothers at risk (N = 258) (Edinburgh Postnatal Depression Scale (EPDS) scores [ges ]9) | H21: - | I21: - | J21: =495*(100/'GDP deflators, March 2017'!$S$66) -> 515.719427 | K21: QALYs gained - data from the Convergence Diagnostic and Output Analysis (CODA) samples generated from the NMA of Edinburgh Postnatal Depression Scale (EPDS) values. 1-year time horizon There was not enough information available to calculate cost-savings for this intervention. | L21: - | M21: - | N21: 0.0147 | P21: 3.5% for costs and utility | Q21: 3.5% for costs and utility | R21: ='Intervention(s)_Sc2'!K53 ->  | S21: 0 | T21: =Table14[[#This Row],[Cost Saving]]-Table14[[#This Row],[Cost (per person) (incremental)]] ->  | U21: =Table14[[#This Row],[Effectiveness]] -> 0.0147 | V21: =IF(-Table14[[#This Row],[Net benefit]]/Table14[[#This Row],[QALY gain]]<0, "Dominating", -Table14[[#This Row],[Net benefit]]/Table14[[#This Row],[QALY gain]]) ->  | X21: No cost savings or cases averted were found for this intervention / paper - reporting here only the cost of intervention but we should caveat that there will be additional cost savings to both child and mother per case averted
A22: 19 | B22: Morrell, 2016, PCA-based intervention, indicated preventive | C22: PCA-based intervention; Indicated | D22: Maternal Mental Health | E22: HV training in the assessment of postnatal women combined with Person-Centred Approach sessions for eligible women who scored 12 or more on the Edinburgh Postnatal Depression Scale (EPDS) Psychologically informed interventions by health visitors. Morrell, 2009 NB: Cost Year = 2012 / 2013 | G22: indicated see morrell 2009 population | H22: - | I22: - | J22: 3 | K22: QALYs gained - data from the Convergence Diagnostic and Output Analysis (CODA) samples generated from the NMA of Edinburgh Postnatal Depression Scale (EPDS) values. 1-year time horizon | L22: - | M22: - | N22: 0.0067 | P22: 3.5% for costs and utility | Q22: 3.5% for costs and utility | R22: =Table14[[#This Row],[Cost of intervention]] -> 3 | T22: =Table14[[#This Row],[Cost Saving]]-Table14[[#This Row],[Cost (per person) (incremental)]] -> -3 | U22: =Table14[[#This Row],[Effectiveness]] -> 0.0067 | V22: =IF(-Table14[[#This Row],[Net benefit]]/Table14[[#This Row],[QALY gain]]<0, "Dominating", -Table14[[#This Row],[Net benefit]]/Table14[[#This Row],[QALY gain]]) -> 447.761194 | X22: Covered in Morrell 2009 Time horizon issue: 2009: 6 months, 2016: 1 year. Concerns about calculating the intervention costs
A23: 20 | B23: Morrell, 2016, CBT-based intervention, indicated preventive | C23: CBT-based intervention; Indicated | D23: Maternal Mental Health | E23: 1: An antenatal cognitive–behavioural group intervention in a primary care setting for pregnant women identified with mild to moderate symptoms in pregnancy and/or at risk of developing depression or anxiety in the perinatal period - CBT-based intervention comprised of 6 weekly 2-hour sessions (and a later follow-up session) of CBT delivered by a clinical psychologist and specially trained midwife Austin, 2008 2: An eight-lesson cognitive–behavioural-based programme, Living in Harmony, for reservation-based American Indians Eight weekly 30-60 minute in home (or in office sessions) of cognitive-behaviourally based programme delivered by Apache paraprofessionals family health educators and three booster sessions. Ginsburg, 2012 3: HV training in the assessment of postnatal women combined with cognitive–behavioural approach sessions for eligible women who scored 12 or more on the EPDS Psychologically informed interventions by health visitors. Morrell, 2009 4: Mamás y Bebés/Mothers and Babies Course developed in Spanish and English that uses a cognitive–behavioural mood management framework and incorporates social learning concepts, attachment theory and sociocultural issues, for low-income predominantly Latina women who screened positive for a major depressive episode and/or who scored 16 or more on CES-D CBT-based intervention: 12-week mood management course, and four booster sessions, conducted at approximately 1,3,6 and 12 months postpartum. Groups of 3-8 pregnant women Munoz, 2007 NB: Cost Year = 2012 / 2013 | G23: indicated, multiple criteria for eligible women - suggestion: use morrell 2009 criterion for eligibility | H23: - | I23: - | J23: 514.25 | K23: QALYs gained - data from the Convergence Diagnostic and Output Analysis (CODA) samples generated from the NMA of Edinburgh Postnatal Depression Scale (EPDS) values. 1-year time horizon | L23: - | M23: - | N23: 0.0093 | P23: 3.5% for costs and utility | Q23: 3.5% for costs and utility | R23: =Table14[[#This Row],[Cost of intervention]] -> 514.25 | T23: =Table14[[#This Row],[Cost Saving]]-Table14[[#This Row],[Cost (per person) (incremental)]] -> -514.25 | U23: =Table14[[#This Row],[Effectiveness]] -> 0.0093 | V23: =IF(-Table14[[#This Row],[Net benefit]]/Table14[[#This Row],[QALY gain]]<0, "Dominating", -Table14[[#This Row],[Net benefit]]/Table14[[#This Row],[QALY gain]]) -> 55295.69892 | X23: Intervention has multiple papers - uses averages to present final cost of intervention and QALY gain. No cost savings or cases averted were found for this intervention / paper - reporting here only the cost of intervention but we should caveat that there will be additional cost savings to both child and mother per case averted Collapse to Morrell 2009 Time horizon issue: 2009: 6 months, 2016: 1 year.
A24: 21 | B24: Morrell, 2016, IPT-based intervention, indicated preventive | C24: IPT-based intervention; Indicated | D24: Maternal Mental Health | E24: 1: A preventive intervention adapted from IPT for depression, for women at high risk of PND and adjustment problems Five individual sessions on IPT for depression Gorman, 1997 2: Culturally relevant, enhanced brief IPT-B consisting of an engagement session, followed by eight acute IPT-B sessions before birth and maintenance IPT up to 6 months postpartum for low-income, pregnant women scoring 13 or more on the EPDS Engagement session followed by eight acute IPT-brief sessions before birth and maintenance IPT in either biweekly or monthly sessions up to 6 months postnatally Grote, 2009 | G24: indicated, use eligibility criterion as per Grote, 2009 | H24: - | I24: - | J24: 1163.25 | K24: QALYs gained - data from the Convergence Diagnostic and Output Analysis (CODA) samples generated from the NMA of Edinburgh Postnatal Depression Scale (EPDS) values. 1-year time horizon | L24: - | M24: - | N24: 0.0254 | P24: 3.5% for costs and utility | Q24: 3.5% for costs and utility | R24: =Table14[[#This Row],[Cost of intervention]] -> 1163.25 | S24: 500 | T24: =Table14[[#This Row],[Cost Saving]]-Table14[[#This Row],[Cost (per person) (incremental)]] -> -663.25 | U24: =Table14[[#This Row],[Effectiveness]] -> 0.0254 | V24: =IF(-Table14[[#This Row],[Net benefit]]/Table14[[#This Row],[QALY gain]]<0, "Dominating", -Table14[[#This Row],[Net benefit]]/Table14[[#This Row],[QALY gain]]) -> 26112.20472 | X24: Intervention has multiple papers - uses averages to present final cost of intervention and QALY gain. No cost savings or cases averted were found for this intervention / paper - reporting here only the cost of intervention but we should caveat that there will be additional cost savings to both child and mother per case averted exclude
A25: 22 | B25: Jones DE, 2014 | C25: Parental Education and training | D25: Parenting skills | E25: Family Foundations Programme: Couples participated in four prenatal sessions while mothers were in their second or third trimester, and participated in four postnatal sessions when the baby was (on average) 5 months old. The couples also participated in three booster sessions when the child was two years old, so families were involved with the program for approximately 26 months total. This program was designed to help couples navigate co-parenting challenges common to early parenthood through a series of eight classes bracketing the birthdate. The classes cover issues common to relationships and caring for a newborn child, including emotional self management, conflict management, problem solving, communication, and mutual support strategies. | G25: universal | H25: 779 | I25: - | J25: 779 | K25: no effectiveness information | L25: parameter searching is needed - how is the intervention translated in QALYs for the child? | N25: 0.54 | P25: 3.5% for costs and utility | Q25: 3.5% for costs and utility | R25: =Table14[[#This Row],[Cost of intervention]] -> 779 | S25: 650 | T25: =Table14[[#This Row],[Cost Saving]]-Table14[[#This Row],[Cost (per person) (incremental)]] -> -129 | U25: 0.5 | V25: =IF(-Table14[[#This Row],[Net benefit]]/Table14[[#This Row],[QALY gain]]<0, "Dominating", -Table14[[#This Row],[Net benefit]]/Table14[[#This Row],[QALY gain]]) -> 258 | X25: excluded
A26: 23 | B26: Morrell, 2016, Peer Support, indicated prevention | C26: Peer Support Intervention for Prevention of Postpartum Depression; Selective | D26: Maternal Mental Health | E26: Proactive individualised telephone based peer (mother to mother) support, initiated within 48-72 hours of randomisation, provided by a volunteer recruited from the community who had previously experienced and recovered from self reported postnatal depression and attended a four hour training session The comparator is usual care. NB: Cost Year = 2012 / 2013 | G26: mothers at risk of PND ~ >9 in Edinburgh Postnatal Depression Scale (EPDS) | H26: $793.00 | J26: =793*(100/'GDP deflators, March 2017'!$S$65) -> 839.8187691 | K26: post partum depression as measured 12 weeks postpartum, >12 in Edinburgh Postnatal Depression Scale (EPDS) score (incidence) Information regarding the interventions from this review was linked to the Bauer et al. report to allow for calculations to estimate cost-savings and QALY gains. | L26: 0.14 | M26: 0.25 | N26: 0.11 | P26: 3.5% for costs and utility | Q26: 3.5% for costs and utility | X26: The morrell 2016, originally values this intervention at ICER £100k - however, if we calculate the the cases averted and use the LSE data the ICER drops dramatically and becomes acceptable (<20k) | Z26: One of 3 full interventions
A27: 24 | B27: Morrell, 2016, Exercise, universal | C27: Group physical therapy exercises; Universal | D27: Maternal Mental Health | E27: 8-week programme of 1 hour of group physical therapy exercises given by a physical therapist and a 30-minute education session delivered by health-care professionals each week. The comparator is usual care. NB: Cost Year = 2012 / 2013 | G27: universal | H27: 67.86 | J27: =(Table14[[#This Row],[Cost of intervention(not incremental)]]-Table14[[#This Row],[Cost of comparator]])*(100/'GDP deflators, March 2017'!$S$65) -> 71.8664586 | K27: post partum depression as measured 8 weeks postpartum (but maintained at 12 weeks), >=13 in Edinburgh Postnatal Depression Scale (EPDS) score (change in incidence) Information regarding the interventions from this review was linked to the Bauer et al. report to allow for calculations to estimate cost-savings and QALY gains. | L27: 0.5 | M27: 0 | N27: 0.5 | P27: 3.5% for costs and utility | Q27: 3.5% for costs and utility | Z27: One of 3 full interventions
B32: Proportion of women living in a deprived area (15-50) England | C32: 0.64
B33: Women that do not breastfeed | C33: 0.568
B34: Women that do any breastfeeding (including exclusive) | C34: 0.432
B35: Women that exclusively breastfeed | C35: 0.284
B36: Women that do partial breastfeeding | C36: 0.148
B37: Prevalence of PND | C37: 0.13
B38: Proportion of women with PND | C38: 0.13
B39: Proportion of women at risk of PND | C39: 0.13

Sheet Data extraction_Sc2 (hidden)
A1: Data extraction to tool
F2: Population | H2: Interventions | J2: Incremental | P2: 0.035 | Q2: 0.015 | R2: Results | V2: Packages
A3: ID | B3: Intervention | C3: Intervention name | D3: Intervention type | E3: Description | F3: Prevalence (%) | G3: eligible population description | H3: Cost of Intervention(not incremental) | I3: Cost of comparator | J3: Cost of intervention | K3: effectiveness description | L3: effectiveness (1) Intervention | M3: effectiveness (1) comparator | N3: Effectiveness | O3: Value of a QALY | P3: Discount rate (costs) | Q3: Discount rate (benefits) | R3: Cost (per person) (incremental) | S3: Cost Saving | T3: Net benefit | U3: QALY gain | V3: aggregations and calculations
A4: 1 | B4: Hoddinott, 2012, any | C4: Breastfeeding support: Proactive and Reactive call, daily, for 1 week following hospital discharge. Any breast feeding | D4: Breastfeeding | E4: Intervention: Proactive telephone calls daily for 1 week following hospital discharge by a specialised feeding team on a postnatal ward. Calls terminated at the woman’s request or if breast feeding ceased. At 1 week following discharge, women could choose to continue receiving daily calls for a further week, change the frequency of calls or have no further calls. Women could telephone the feeding team at any point over the 2 weeks following discharge. Text and answer phone messaging was available. All proactive calls stopped 14 days after hospital discharge Control: Reactive telephone calls - women could telephone the feeding team at any point over the 2 weeks following discharge. Text and answer phone messaging was available | G4: women from deprived areas (SIMD 1-3) and were breastfeeding at hospital discharge | H4: 41.25 | I4: 21.13 | J4: =H4-I4 -> 20.12 | K4: Any breastfeeding at 6-8 weeks after hospital discharge, percentage increase from baseline with no intervention | L4: 0.69 | M4: 0.46 | N4: =L4-M4 -> 0.23 | P4: 3.5% for costs and utility | Q4: 3.5% for costs and utility | R4: =Table144[[#This Row],[Cost of intervention]] -> 20.12 | S4: 500 | T4: =R4-S4 -> -479.88 | U4: 0.003 | V4: =Table144[[#This Row],[Cost (per person) (incremental)]]/Table144[[#This Row],[QALY gain]] -> 6706.666667
A5: 2 | B5: Hoddinott, 2012, exclusive | C5: Breastfeeding support: Proactive and Reactive call, daily, for 1 week following hospital discharge. Exclusive breast feeding | D5: Breastfeeding | E5: Intervention: Proactive telephone calls daily for 1 week following hospital discharge by a specialised feeding team on a postnatal ward. Calls terminated at the woman’s request or if breast feeding ceased. At 1 week following discharge, women could choose to continue receiving daily calls for a further week, change the frequency of calls or have no further calls. Women could telephone the feeding team at any point over the 2 weeks following discharge. Text and answer phone messaging was available. All proactive calls stopped 14 days after hospital discharge Control: Reactive telephone calls - women could telephone the feeding team at any point over the 2 weeks following discharge. Text and answer phone messaging was available | G5: women from deprived areas (SIMD 1-3) and were breastfeeding at hospital discharge | H5: 41.25 | I5: 21.13 | J5: =H5-I5 -> 20.12 | K5: Exclusive breastfeeding at 6-8 weeks after hospital discharge, percentage increase from baseline with no intervention | L5: 0.53 | M5: 0.31 | N5: =L5-M5 -> 0.22 | P5: 3.5% for costs and utility | Q5: 3.5% for costs and utility | R5: ='Intervention(s)_BF_Sc1'!$J$33 ->  | S5: 600 | T5: =R5-S5 ->  | U5: 0.007 | V5: =Table144[[#This Row],[Cost (per person) (incremental)]]/Table144[[#This Row],[QALY gain]] -> 
A6: 3 | B6: Renfrew, 500–999 g; | C6: Enhanced staff contact (500-999g) | D6: Breastfeeding | E6: Intervention taken from an economic model that uses the findings of a systematic review - i.e. the intervention is not clearly defined Intervention: enhanced staff contact – the addition of specially trained staff, who would be available to advise and support mothers on milk expression and breastfeeding. The intervention is termed broadly as Enhanced Staff contact and includes lactation support at children's hospital neonatal intensive care unit. 45 minutes of specially trained staff time + 2.5 hours of additional staff contact Control: normal staff contact – that is to say, no addition of specially trained staff. | F6: (check background section) | G6: Mothers with infants in neonatal units with infants born underweight: infants were premature (ie, < 37 weeks’ gestation) or low birth weight (≤ 2500 g) subgroups were: 500–999 g; | H6: 45 minutes of specially trained staff time + 2.5 hours of additional staff contact | I6: 45 minutes of specially trained staff time | J6: 121 | K6: The clinical outcomes of interest were sepsis, confirmed NEC (necrotising enterocolitis) and mortality. The clinical outcomes were aggregated and measured in QALYs over lifetime: incidence NEC (stage II and III) and its secondary effects (mortality, long-term disability) and incidence of sepsis and its secondary effects (mortality, long-term disability) | L6: 14.7 | M6: 14.45 | N6: =L6-M6 -> 0.25 | P6: 3.5% for costs and utility | Q6: 3.5% for costs and utility | R6: ='Intervention(s)_Sc2'!$O$25 -> 0 | S6: 707 | T6: =Table144[[#This Row],[Cost Saving]]-Table144[[#This Row],[Cost (per person) (incremental)]] -> 707 | U6: ='Intervention(s)_Sc2'!P25 -> 0 | V6: =Table144[[#This Row],[Cost (per person) (incremental)]]/Table144[[#This Row],[QALY gain]] -> 
A7: 4 | B7: Renfrew, 1000–1749 g; | C7: Enhanced staff contact (1000-1749g) | D7: Breastfeeding | E7: Intervention taken from an economic model that uses the findings of a systematic review - i.e. the intervention is not clearly defined Intervention: enhanced staff contact – the addition of specially trained staff, who would be available to advise and support mothers on milk expression and breastfeeding. The intervention is termed broadly as Enhanced Staff contact and includes lactation support at children's hospital neonatal intensive care unit. 45 minutes of specially trained staff time + 2.5 hours of additional staff contact Control: normal staff contact – that is to say, no addition of specially trained staff. | G7: Mothers with infants in neonatal units with infants born underweight: infants were premature (ie, < 37 weeks’ gestation) or low birth weight (≤ 2500 g) subgroups were: 1000–1749 g; | H7: 45 minutes of specially trained staff time + 2.5 hours of additional staff contact | I7: 45 minutes of specially trained staff time | J7: 121 | K7: The clinical outcomes of interest were sepsis, confirmed NEC (necrotising enterocolitis) and mortality. The clinical outcomes were aggregated and measured in QALYs over lifetime: incidence NEC (stage II and III) and its secondary effects (mortality, long-term disability) and incidence of sepsis and its secondary effects (mortality, long-term disability) | L7: 21.05 | M7: 21 | N7: =L7-M7 -> 0.05 | P7: 3.5% for costs and utility | Q7: 3.5% for costs and utility | R7: ='Intervention(s)_Sc2'!$O$25 -> 0 | S7: =(38159+18666-57240)*(-1) -> 415 | T7: =Table144[[#This Row],[Cost Saving]]-Table144[[#This Row],[Cost (per person) (incremental)]] -> 415 | U7: ='Intervention(s)_Sc2'!P26 -> 0 | V7: =Table144[[#This Row],[Cost (per person) (incremental)]]/Table144[[#This Row],[QALY gain]] -> 
A8: 5 | B8: Renfrew, 1750–2500 g | C8: Enhanced staff contact (1750-2500g) | D8: Breastfeeding | E8: Intervention taken from an economic model that uses the findings of a systematic review - i.e. the intervention is not clearly defined Intervention: enhanced staff contact – the addition of specially trained staff, who would be available to advise and support mothers on milk expression and breastfeeding. The intervention is termed broadly as Enhanced Staff contact and includes lactation support at children's hospital neonatal intensive care unit. 45 minutes of specially trained staff time + 2.5 hours of additional staff contact Control: normal staff contact – that is to say, no addition of specially trained staff. | G8: Mothers with infants in neonatal units with infants born underweight: infants were premature (ie, < 37 weeks’ gestation) or low birth weight (≤ 2500 g) subgroups were: 1750–2500 g | H8: 45 minutes of specially trained staff time + 2.5 hours of additional staff contact | I8: 45 minutes of specially trained staff time | J8: 121 | K8: The clinical outcomes of interest were sepsis, confirmed NEC (necrotising enterocolitis) and mortality. The clinical outcomes were aggregated and measured in QALYs over lifetime: incidence NEC (stage II and III) and its secondary effects (mortality, long-term disability) and incidence of sepsis and its secondary effects (mortality, long-term disability) | L8: 21.92 | M8: 21.91 | N8: =L8-M8 -> 0.01 | P8: 3.5% for costs and utility | Q8: 3.5% for costs and utility | R8: ='Intervention(s)_Sc2'!$O$25 -> 0 | S8: =(22648+24458-47294)*(-1) -> 188 | T8: =Table144[[#This Row],[Cost Saving]]-Table144[[#This Row],[Cost (per person) (incremental)]] -> 188 | U8: ='Intervention(s)_Sc2'!P27 -> 0 | V8: =Table144[[#This Row],[Cost (per person) (incremental)]]/Table144[[#This Row],[QALY gain]] -> 
A9: 6 | B9: Morrell, 2009, women at risk, CBA | C9: Women at risk; CBA | D9: Maternal Mental Health | E9: The PoNDER trial HV training in the assessment of postnatal women, combined with cognitive behavioural approach (CBA) plus the option of a selective serotonin reuptake inhibitor if indicated. The comparator is Health Visitor care as Usual | G9: Women who were 18+ and could speak English; Women were eligible for the intervention if they were, first, at-risk women (who returned a 6-week EPDS score ≥ 12 on the postal questionnaire) and, second, had an 8-week EPDS score ≥ 12 when the EPDS was repeated face-to-face by the HV at 8 weeks postnatally. Women eligible for the intervention were therefore defined by two EPDS score ≥ 12. | I9: NEEDS TO BE UPDATED as we have questions on the costing methodology cost of intervention as calculated in morrell 2016, uplifted to 2012/13 figures | J9: -35 | K9: QALYs gained from changes in SF-6D score - measured 6 months after birth (SF-6D scores were estimated using the UK tariff) | L9: 0.027 | M9: 0.023 | N9: 0.004 | P9: 3.5% for costs and utility | Q9: 3.5% for costs and utility | R9: =Table144[[#This Row],[Cost of intervention]] -> -35 | S9: =Table144[[#This Row],[Net benefit]]+Table144[[#This Row],[Cost (per person) (incremental)]] -> 10 | T9: 45 | U9: =Table144[[#This Row],[Effectiveness]] -> 0.004 | V9: =IF(-Table144[[#This Row],[Net benefit]]/Table144[[#This Row],[QALY gain]]<0, "Dominating", -Table144[[#This Row],[Net benefit]]/Table144[[#This Row],[QALY gain]]) -> Dominating
A10: 7 | B10: Morrell, 2009, women at risk, PCA | C10: Women at risk; PCA | D10: Maternal Mental Health | E10: The PoNDER trial HV training in the assessment of postnatal women, combined with person-centred approach (PCA), plus the option of a selective serotonin reuptake inhibitor if indicated. The comparator is Health Visitor care as Usual | G10: Women who were 18+ and could speak English; Women were eligible for the intervention if they were, first, at-risk women (who returned a 6-week EPDS score ≥ 12 on the postal questionnaire) and, second, had an 8-week EPDS score ≥ 12 when the EPDS was repeated face-to-face by the HV at 8 weeks postnatally. Women eligible for the intervention were therefore defined by two EPDS score ≥ 12. | I10: NEEDS TO BE UPDATED as we have questions on the costing methodology cost of intervention as calculated in morrell 2016, uplifted to 2012/13 figures | J10: 3 | K10: QALYs gained from changes in SF-6D score - measured 6 months after birth (SF-6D scores were estimated using the UK tariff) | L10: 0.025 | M10: 0.023 | N10: 0.002 | P10: 3.5% for costs and utility | Q10: 3.5% for costs and utility | R10: =Table144[[#This Row],[Cost of intervention]] -> 3 | S10: =Table144[[#This Row],[Net benefit]]+Table144[[#This Row],[Cost (per person) (incremental)]] -> 24 | T10: 21 | U10: =Table144[[#This Row],[Effectiveness]] -> 0.002 | V10: =IF(-Table144[[#This Row],[Net benefit]]/Table144[[#This Row],[QALY gain]]<0, "Dominating", -Table144[[#This Row],[Net benefit]]/Table144[[#This Row],[QALY gain]]) -> Dominating
A11: 8 | B11: Morrell, 2009, women at risk, combined | C11: Women at risk; combined | D11: Maternal Mental Health | E11: The PoNDER trial HV training in the assessment of postnatal women, combined with cognitive behavioural approach (CBA) and person-centred approach (PCA) sessions for eligible women, plus the option of a selective serotonin reuptake inhibitor if indicated. The comparator is Health Visitor care as Usual | G11: Women who were 18+ and could speak English; Women were eligible for the intervention if they were, first, at-risk women (who returned a 6-week EPDS score ≥ 12 on the postal questionnaire) and, second, had an 8-week EPDS score ≥ 12 when the EPDS was repeated face-to-face by the HV at 8 weeks postnatally. Women eligible for the intervention were therefore defined by two EPDS score ≥ 12. | I11: NEEDS TO BE UPDATED as we have questions on the costing methodology cost of intervention as calculated in morrell 2016, uplifted to 2012/13 figures | J11: =AVERAGE(J9:J10) -> -16 | K11: QALYs gained from changes in SF-6D score - measured 6 months after birth (SF-6D scores were estimated using the UK tariff) | L11: 0.026 | M11: 0.023 | N11: 0.003 | P11: 3.5% for costs and utility | Q11: 3.5% for costs and utility | R11: =Table144[[#This Row],[Cost of intervention]] -> -16 | S11: =Table144[[#This Row],[Net benefit]]+Table144[[#This Row],[Cost (per person) (incremental)]] -> 18.759 | T11: 34.759 | U11: =Table144[[#This Row],[Effectiveness]] -> 0.003 | V11: =IF(-Table144[[#This Row],[Net benefit]]/Table144[[#This Row],[QALY gain]]<0, "Dominating", -Table144[[#This Row],[Net benefit]]/Table144[[#This Row],[QALY gain]]) -> Dominating
A12: 9 | B12: Morrell, 2009, all women, CBA | C12: All women; CBA | D12: Maternal Mental Health | E12: The PoNDER trial HV training in the assessment of postnatal women, combined with cognitive behavioural approach (CBA) plus the option of a selective serotonin reuptake inhibitor if indicated. The comparator is Health Visitor care as Usual | G12: women were recruited if they were registered with participating GP practices, became 36 weeks pregnant during the recruitment phase of the trial, had a live baby and were on a collaborating HV’s caseload for 4 months postnatally. For the purpose of this tool: all women | I12: NEEDS TO BE UPDATED as we have questions on the costing methodology cost of intervention as calculated in morrell 2016, uplifted to 2012/13 figures | J12: -24 | K12: QALYs gained from changes in SF-6D score - measured 6 months after birth (SF-6D scores were estimated using the UK tariff) | L12: 0.03 | M12: 0.028 | N12: 0.002 | P12: 3.5% for costs and utility | Q12: 3.5% for costs and utility | R12: =Table144[[#This Row],[Cost of intervention]] -> -24 | S12: =Table144[[#This Row],[Net benefit]]+Table144[[#This Row],[Cost (per person) (incremental)]] -> -5.55 | T12: 18.45 | U12: =Table144[[#This Row],[Effectiveness]] -> 0.002 | V12: =IF(-Table144[[#This Row],[Net benefit]]/Table144[[#This Row],[QALY gain]]<0, "Dominating", -Table144[[#This Row],[Net benefit]]/Table144[[#This Row],[QALY gain]]) -> Dominating
A13: 10 | B13: Morrell, 2009, all women, PCA | C13: All women; PCA | D13: Maternal Mental Health | E13: The PoNDER trial HV training in the assessment of postnatal women, combined with person-centred approach (PCA), plus the option of a selective serotonin reuptake inhibitor if indicated. The comparator is Health Visitor care as Usual | G13: women were recruited if they were registered with participating GP practices, became 36 weeks pregnant during the recruitment phase of the trial, had a live baby and were on a collaborating HV’s caseload for 4 months postnatally. For the purpose of this tool: all women | I13: NEEDS TO BE UPDATED as we have questions on the costing methodology cost of intervention as calculated in morrell 2016, uplifted to 2012/13 figures | J13: -28 | K13: QALYs gained from changes in SF-6D score - measured 6 months after birth (SF-6D scores were estimated using the UK tariff) | L13: 0.03 | M13: 0.028 | N13: 0.002 | P13: 3.5% for costs and utility | Q13: 3.5% for costs and utility | R13: =Table144[[#This Row],[Cost of intervention]] -> -28 | S13: =Table144[[#This Row],[Net benefit]]+Table144[[#This Row],[Cost (per person) (incremental)]] -> -6.17 | T13: 21.83 | U13: =Table144[[#This Row],[Effectiveness]] -> 0.002 | V13: =IF(-Table144[[#This Row],[Net benefit]]/Table144[[#This Row],[QALY gain]]<0, "Dominating", -Table144[[#This Row],[Net benefit]]/Table144[[#This Row],[QALY gain]]) -> Dominating
A14: 11 | B14: Morrell, 2009, all women, combined | C14: All women; combined | D14: Maternal Mental Health | E14: The PoNDER trial HV training in the assessment of postnatal women, combined with cognitive behavioural approach (CBA) and person-centred approach (PCA) sessions for eligible women, plus the option of a selective serotonin reuptake inhibitor if indicated. The comparator is Health Visitor care as Usual | G14: women were recruited if they were registered with participating GP practices, became 36 weeks pregnant during the recruitment phase of the trial, had a live baby and were on a collaborating HV’s caseload for 4 months postnatally. For the purpose of this tool: all women | I14: NEEDS TO BE UPDATED as we have questions on the costing methodology cost of intervention as calculated in morrell 2016, uplifted to 2012/13 figures | J14: =AVERAGE(J12:J13) -> -26 | K14: QALYs gained from changes in SF-6D score - measured 6 months after birth (SF-6D scores were estimated using the UK tariff) | L14: 0.03 | M14: 0.028 | N14: 0.002 | P14: 3.5% for costs and utility | Q14: 3.5% for costs and utility | R14: =Table144[[#This Row],[Cost of intervention]] -> -26 | S14: =Table144[[#This Row],[Net benefit]]+Table144[[#This Row],[Cost (per person) (incremental)]] -> -6.032 | T14: 19.968 | U14: =Table144[[#This Row],[Effectiveness]] -> 0.002 | V14: =IF(-Table144[[#This Row],[Net benefit]]/Table144[[#This Row],[QALY gain]]<0, "Dominating", -Table144[[#This Row],[Net benefit]]/Table144[[#This Row],[QALY gain]]) -> Dominating
A15: 12 | B15: Morrell, 2016, booklet on PDN, universal preventive | C15: Booklet on PND; Universal | D15: Maternal Mental Health | E15: An educational pamphlet ‘Why is everyone happy but me?’ mailed at 4-weeks postpartum, that explained the symptoms of PPD and identified local services for PPD, Sealy, 2009 | G15: universal | H15: - | I15: - | J15: 1 | K15: QALYs gained - data from the Convergence Diagnostic and Output Analysis (CODA) samples generated from the NMA of EPDS values. 1-year time horizon | L15: - | M15: - | N15: 0.0076 | P15: 3.5% for costs and utility | Q15: 3.5% for costs and utility | R15: ='Intervention(s)_Sc2'!O48 -> 0 | S15: 0 | T15: =Table144[[#This Row],[Cost Saving]]-Table144[[#This Row],[Cost (per person) (incremental)]] -> 0 | U15: =Table144[[#This Row],[Effectiveness]] -> 0.0076 | V15: =IF(-Table144[[#This Row],[Net benefit]]/Table144[[#This Row],[QALY gain]]<0, "Dominating", -Table144[[#This Row],[Net benefit]]/Table144[[#This Row],[QALY gain]]) -> 0 | X15: No cost savings or cases averted were found for this intervention / paper - reporting here only the cost of intervention but we should caveat that there will be additional cost savings to both child and mother per case averted
A16: 13 | B16: Morrell, 2016, Early contact with care provider, universal preventive | C16: Early contact with care provider; Universal | D16: Maternal Mental Health | E16: A postnatal check-up with a GP 1 week after hospital discharge Changing the 6-week GP appointment to a 1-week appointment (assumes all women still have 6-week appointment in addition) - Gunn, 1998 | G16: universal | H16: - | I16: - | J16: 41 | K16: QALYs gained - data from the Convergence Diagnostic and Output Analysis (CODA) samples generated from the NMA of EPDS values. 1-year time horizon | L16: - | M16: - | N16: 0.0058 | P16: 3.5% for costs and utility | Q16: 3.5% for costs and utility | R16: ='Intervention(s)_Sc2'!O49 -> 0 | S16: 0 | T16: =Table144[[#This Row],[Cost Saving]]-Table144[[#This Row],[Cost (per person) (incremental)]] -> 0 | U16: =Table144[[#This Row],[Effectiveness]] -> 0.0058 | V16: =IF(-Table144[[#This Row],[Net benefit]]/Table144[[#This Row],[QALY gain]]<0, "Dominating", -Table144[[#This Row],[Net benefit]]/Table144[[#This Row],[QALY gain]]) -> 0 | X16: No cost savings or cases averted were found for this intervention / paper - reporting here only the cost of intervention but we should caveat that there will be additional cost savings to both child and mother per case averted
A17: 14 | B17: Morrell, 2016, calcium, universal preventive | C17: Calcium; Universal | D17: Maternal Mental Health | E17: 2000 mg of elemental calcium per day during pregnancy Women prescribed 1000mg of calcium twice a day between 11 and 21 weeks' gestation until birth Harrison-Hohner, 2001 | G17: universal | H17: - | I17: - | J17: 78.96 | K17: QALYs gained - data from the Convergence Diagnostic and Output Analysis (CODA) samples generated from the NMA of EPDS values. 1-year time horizon | L17: - | M17: - | N17: 0.0086 | P17: 3.5% for costs and utility | Q17: 3.5% for costs and utility | R17: ='Intervention(s)_Sc2'!O50 -> 0 | S17: 0 | T17: =Table144[[#This Row],[Cost Saving]]-Table144[[#This Row],[Cost (per person) (incremental)]] -> 0 | U17: =Table144[[#This Row],[Effectiveness]] -> 0.0086 | V17: =IF(-Table144[[#This Row],[Net benefit]]/Table144[[#This Row],[QALY gain]]<0, "Dominating", -Table144[[#This Row],[Net benefit]]/Table144[[#This Row],[QALY gain]]) -> 0 | X17: No cost savings or cases averted were found for this intervention / paper - reporting here only the cost of intervention but we should caveat that there will be additional cost savings to both child and mother per case averted
A18: 15 | B18: Morrell, 2016, Midwifery redesigned postnatal care, universal preventive | C18: Midwifery redesigned postnatal care; Universal | D18: Maternal Mental Health | E18: Redesigned midwifery-led community postnatal care Changes to postnatal care to systematic identification and management of women's health problems MacArthur, 2003 | G18: universal | H18: - | I18: - | J18: 107.64 | K18: QALYs gained - data from the Convergence Diagnostic and Output Analysis (CODA) samples generated from the NMA of EPDS values. 1-year time horizon | L18: - | M18: - | N18: 0.0236 | P18: 3.5% for costs and utility | Q18: 3.5% for costs and utility | R18: =Table144[[#This Row],[Cost of intervention]] -> 107.64 | X18: Cost savings reported in the original paper: did not differ substantially Cases averted: odds ration at 12 months (with usual care as baseline), women scored >12 in EPDS: 0.46 | Z18: One of 3 full interventions
A19: 16 | B19: Morrell, 2016, CBT-based intervention, selective preventive | C19: CBT-based intervention; Selective | D19: Maternal Mental Health | E19: 1-hour prevention session between 2 and 5 days postnatally given by master level psychology students, Barnes 2009 | G19: selective, women scoring 9+ on the Social Disadvantage Screening Index and accepting the offer to participate | H19: - | I19: - | J19: 99 | K19: QALYs gained - data from the Convergence Diagnostic and Output Analysis (CODA) samples generated from the NMA of EPDS values. 1-year time horizon | L19: - | M19: - | N19: 0.0025 | P19: 3.5% for costs and utility | Q19: 3.5% for costs and utility | R19: ='Intervention(s)_Sc2'!O51 -> 0 | S19: 0 | T19: =Table144[[#This Row],[Cost Saving]]-Table144[[#This Row],[Cost (per person) (incremental)]] -> 0 | U19: =Table144[[#This Row],[Effectiveness]] -> 0.0025 | V19: =IF(-Table144[[#This Row],[Net benefit]]/Table144[[#This Row],[QALY gain]]<0, "Dominating", -Table144[[#This Row],[Net benefit]]/Table144[[#This Row],[QALY gain]]) -> 0 | X19: No cost savings or cases averted were found for this intervention / paper - reporting here only the cost of intervention but we should caveat that there will be additional cost savings to both child and mother per case averted
A20: 17 | B20: Morrell, 2016, Education on preparing for parenting, selective preventive | C20: Education on preparing for parenting; Selective | D20: Maternal Mental Health | E20: A twin midwife advisor, invitation to attend a series of education sessions, additional home visits and attendance at an antenatal twin clinic for women with twins, Sen, 2006 Used for econ modelling: Four additional classes, run by midwives, nurse/psychologist, psychologist, Sen 2006 One individual visit prenatal and postnatal, five antenatal group sessions lasting 2 hours, Zlotnick, 2011 | G20: selective Sen: women with twins Zlotnick: low-income pregnant women with recent intimate partner violence (IPV). | H20: - | I20: - | J20: 266.17 | K20: QALYs gained - data from the Convergence Diagnostic and Output Analysis (CODA) samples generated from the NMA of EPDS values. 1-year time horizon | L20: - | M20: - | N20: 0.0158 | P20: 3.5% for costs and utility | Q20: 3.5% for costs and utility | R20: ='Intervention(s)_Sc2'!O52 -> 0 | S20: 0 | T20: =Table144[[#This Row],[Cost Saving]]-Table144[[#This Row],[Cost (per person) (incremental)]] -> 0 | U20: =Table144[[#This Row],[Effectiveness]] -> 0.0158 | V20: =IF(-Table144[[#This Row],[Net benefit]]/Table144[[#This Row],[QALY gain]]<0, "Dominating", -Table144[[#This Row],[Net benefit]]/Table144[[#This Row],[QALY gain]]) -> 0 | X20: No cost savings or cases averted were found for this intervention / paper - reporting here only the cost of intervention but we should caveat that there will be additional cost savings to both child and mother per case averted
A21: 18 | B21: Morrell, 2016, IPT-based intervention, selective preventive | C21: IPT-based intervention; Selective | D21: Maternal Mental Health | E21: Five individual 1-hour sessions - provided by study interventionists, Chabrol, 2002 | G21: selective Mothers at risk (N = 258) (EPDS scores [ges ]9) | H21: - | I21: - | J21: 495 | K21: QALYs gained - data from the Convergence Diagnostic and Output Analysis (CODA) samples generated from the NMA of EPDS values. 1-year time horizon | L21: - | M21: - | N21: 0.0147 | P21: 3.5% for costs and utility | Q21: 3.5% for costs and utility | R21: ='Intervention(s)_Sc2'!O53 -> 0 | S21: 0 | T21: =Table144[[#This Row],[Cost Saving]]-Table144[[#This Row],[Cost (per person) (incremental)]] -> 0 | U21: =Table144[[#This Row],[Effectiveness]] -> 0.0147 | V21: =IF(-Table144[[#This Row],[Net benefit]]/Table144[[#This Row],[QALY gain]]<0, "Dominating", -Table144[[#This Row],[Net benefit]]/Table144[[#This Row],[QALY gain]]) -> 0 | X21: No cost savings or cases averted were found for this intervention / paper - reporting here only the cost of intervention but we should caveat that there will be additional cost savings to both child and mother per case averted
A22: 19 | B22: Morrell, 2016, PCA-based intervention, indicated preventive | C22: PCA-based intervention; Indicated | D22: Maternal Mental Health | E22: HV training in the assessment of postnatal women combined with Person-Centred Approach sessions for eligible women who scored 12 or more on the EPDS Psychologically informed interventions by health visitors. Morrell, 2009 | G22: indicated see morrell 2009 population | H22: - | I22: - | J22: 3 | K22: QALYs gained - data from the Convergence Diagnostic and Output Analysis (CODA) samples generated from the NMA of EPDS values. 1-year time horizon | L22: - | M22: - | N22: 0.0067 | P22: 3.5% for costs and utility | Q22: 3.5% for costs and utility | R22: =Table144[[#This Row],[Cost of intervention]] -> 3 | T22: =Table144[[#This Row],[Cost Saving]]-Table144[[#This Row],[Cost (per person) (incremental)]] -> -3 | U22: =Table144[[#This Row],[Effectiveness]] -> 0.0067 | V22: =IF(-Table144[[#This Row],[Net benefit]]/Table144[[#This Row],[QALY gain]]<0, "Dominating", -Table144[[#This Row],[Net benefit]]/Table144[[#This Row],[QALY gain]]) -> 447.761194 | X22: Covered in Morrell 2009 Time horizon issue: 2009: 6 months, 2016: 1 year. Concerns about calculating the intervention costs
A23: 20 | B23: Morrell, 2016, CBT-based intervention, indicated preventive | C23: CBT-based intervention; Indicated | D23: Maternal Mental Health | E23: 1: An antenatal cognitive–behavioural group intervention in a primary care setting for pregnant women identified with mild to moderate symptoms in pregnancy and/or at risk of developing depression or anxiety in the perinatal period - CBT-based intervention comprised of 6 weekly 2-hour sessions (and a later follow-up session) of CBT delivered by a clinical psychologist and specially trained midwife Austin, 2008 2: An eight-lesson cognitive–behavioural-based programme, Living in Harmony, for reservation-based American Indians Eight weekly 30-60 minute in home (or in office sessions) of cognitive-behaviourally based programme delivered by Apache paraprofessionals family health educators and three booster sessions. Ginsburg, 2012 3: HV training in the assessment of postnatal women combined with cognitive–behavioural approach sessions for eligible women who scored 12 or more on the EPDS Psychologically informed interventions by health visitors. Morrell, 2009 4: Mamás y Bebés/Mothers and Babies Course developed in Spanish and English that uses a cognitive–behavioural mood management framework and incorporates social learning concepts, attachment theory and sociocultural issues, for low-income predominantly Latina women who screened positive for a major depressive episode and/or who scored 16 or more on CES-D CBT-based intervention: 12-week mood management course, and four booster sessions, conducted at approximately 1,3,6 and 12 months postpartum. Groups of 3-8 pregnant women Munoz, 2007 | G23: indicated, multiple criteria for eligible women - suggestion: use morrell 2009 criterion for eligibility | H23: - | I23: - | J23: 514.25 | K23: QALYs gained - data from the Convergence Diagnostic and Output Analysis (CODA) samples generated from the NMA of EPDS values. 1-year time horizon | L23: - | M23: - | N23: 0.0093 | P23: 3.5% for costs and utility | Q23: 3.5% for costs and utility | R23: =Table144[[#This Row],[Cost of intervention]] -> 514.25 | T23: =Table144[[#This Row],[Cost Saving]]-Table144[[#This Row],[Cost (per person) (incremental)]] -> -514.25 | U23: =Table144[[#This Row],[Effectiveness]] -> 0.0093 | V23: =IF(-Table144[[#This Row],[Net benefit]]/Table144[[#This Row],[QALY gain]]<0, "Dominating", -Table144[[#This Row],[Net benefit]]/Table144[[#This Row],[QALY gain]]) -> 55295.69892 | X23: Intervention has multiple papers - uses averages to present final cost of intervention and QALY gain. No cost savings or cases averted were found for this intervention / paper - reporting here only the cost of intervention but we should caveat that there will be additional cost savings to both child and mother per case averted Collapse to Morrell 2009 Time horizon issue: 2009: 6 months, 2016: 1 year.
A24: 21 | B24: Morrell, 2016, IPT-based intervention, indicated preventive | C24: IPT-based intervention; Indicated | D24: Maternal Mental Health | E24: 1: A preventive intervention adapted from IPT for depression, for women at high risk of PND and adjustment problems Five individual sessions on IPT for depression Gorman, 1997 2: Culturally relevant, enhanced brief IPT-B consisting of an engagement session, followed by eight acute IPT-B sessions before birth and maintenance IPT up to 6 months postpartum for low-income, pregnant women scoring 13 or more on the EPDS Engagement session followed by eight acute IPT-brief sessions before birth and maintenance IPT in either biweekly or monthly sessions up to 6 months postnatally Grote, 2009 | G24: indicated, use eligibility criterion as per Grote, 2009 | H24: - | I24: - | J24: 1163.25 | K24: QALYs gained - data from the Convergence Diagnostic and Output Analysis (CODA) samples generated from the NMA of EPDS values. 1-year time horizon | L24: - | M24: - | N24: 0.0254 | P24: 3.5% for costs and utility | Q24: 3.5% for costs and utility | R24: =Table144[[#This Row],[Cost of intervention]] -> 1163.25 | S24: 500 | T24: =Table144[[#This Row],[Cost Saving]]-Table144[[#This Row],[Cost (per person) (incremental)]] -> -663.25 | U24: =Table144[[#This Row],[Effectiveness]] -> 0.0254 | V24: =IF(-Table144[[#This Row],[Net benefit]]/Table144[[#This Row],[QALY gain]]<0, "Dominating", -Table144[[#This Row],[Net benefit]]/Table144[[#This Row],[QALY gain]]) -> 26112.20472 | X24: Intervention has multiple papers - uses averages to present final cost of intervention and QALY gain. No cost savings or cases averted were found for this intervention / paper - reporting here only the cost of intervention but we should caveat that there will be additional cost savings to both child and mother per case averted exclude
A25: 22 | B25: Jones DE, 2014 | C25: Parental Education and training | D25: Parenting skills | E25: Family Foundations Programme: Couples participated in four prenatal sessions while mothers were in their second or third trimester, and participated in four postnatal sessions when the baby was (on average) 5 months old. The couples also participated in three booster sessions when the child was two years old, so families were involved with the program for approximately 26 months total. This program was designed to help couples navigate co-parenting challenges common to early parenthood through a series of eight classes bracketing the birthdate. The classes cover issues common to relationships and caring for a newborn child, including emotional self management, conflict management, problem solving, communication, and mutual support strategies. | G25: universal | H25: 779 | I25: - | J25: 779 | K25: no effectiveness information | L25: parameter searching is needed - how is the intervention translated in QALYs for the child? | N25: 0.54 | P25: 3.5% for costs and utility | Q25: 3.5% for costs and utility | R25: =Table144[[#This Row],[Cost of intervention]] -> 779 | S25: 650 | T25: =Table144[[#This Row],[Cost Saving]]-Table144[[#This Row],[Cost (per person) (incremental)]] -> -129 | U25: 0.5 | V25: =IF(-Table144[[#This Row],[Net benefit]]/Table144[[#This Row],[QALY gain]]<0, "Dominating", -Table144[[#This Row],[Net benefit]]/Table144[[#This Row],[QALY gain]]) -> 258 | X25: excluded
A26: 23 | B26: Morrell, 2016, Peer Support, indicated prevention | C26: Peer Support Intervention for Prevention of Postpartum Depression; Selective | D26: Maternal Mental Health | E26: Proactive individualised telephone based peer (mother to mother) support, initiated within 48-72 hours of randomisation, provided by a volunteer recruited from the community who had previously experienced and recovered from self reported postnatal depression and attended a four hour training session | G26: mothers at risk of PND ~ >9 in EPDS | H26: $793.00 | J26: 793 | K26: post partum depression as measured 12 weeks postpartum, >12 in EPDS score (incidence) | L26: 0.14 | M26: 0.25 | N26: 0.11 | P26: 3.5% for costs and utility | Q26: 3.5% for costs and utility | X26: The morrell 2016, originally values this intervention at ICER £100k - however, if we calculate the the cases averted and use the LSE data the ICER drops dramatically and becomes acceptable (<20k) | Z26: One of 3 full interventions
A27: 24 | B27: Morrell, 2016, Exercise, universal | C27: Group physical therapy exercises; Universal | D27: Maternal Mental Health | E27: 8-week programme of 1 hour of group physical therapy exercises given by a physical therapist and a 30-minute education session delivered by health-care professionals each week. | G27: universal | H27: 67.86 | J27: =Table144[[#This Row],[Cost of Intervention(not incremental)]]-Table144[[#This Row],[Cost of comparator]] -> 67.86 | K27: post partum depression as measured 8 weeks postpartum (but maintained at 12 weeks), >=13 in EPDS score (change in incidence) | L27: 0.5 | M27: 0 | N27: 0.5 | P27: 3.5% for costs and utility | Q27: 3.5% for costs and utility | Z27: One of 3 full interventions
B32: Proportion of women living in a deprived area (15-50) England | C32: 0.64
B33: Women that do not breast feed | C33: 0.568
B34: Women that do any breastfeeding (including exclusive) | C34: 0.432
B35: Women that exclusively breastfeed | C35: 0.284
B36: Women that do partial breastfeeding | C36: 0.148
B37: Prevalence of PND | C37: 0.13
B38: Proportion of women with PND | C38: 0.13
B39: Proportion of women at risk of PND | C39: 0.13

Sheet Further Calculations_Sc1 (hidden)
L1: Per person | V1: Per person
A2: Breastfeeding | G2: Women that do not breastfeed | J2: Incremental increase in exclusive breastfeeding | L2: Mothers | V2: Children | Z2: Gastrointestinal illnesses | AI2: Lower respiratory tract infection | AR2: Acute otitis media | BA2: NEC | BI2: Combined
A3: Breastfeeding support: Proactive and Reactive call, daily, for 1 week following hospital discharge. Any breast feeding | D3: Intervention name | E3: Intervention | F3: cost of intervention | G3: Women population baseline (specific to intervention) | H3: Effectiveness reported description | I3: Effectiveness of intervention | J3: Delta | K3: No BF reduction - noeffect | L3: Odds ratio - maternal Breast cancer - ever BS vs no BS | M3: Incidence of Breast Cancer | N3: Baseline cost per case | O3: Baseline QALY loss per case | P3: incremental benefit (cases averted due to intervention) | Q3: Cost savings per mother | R3: QALY gain per mother | T3: QALY gain per child | U3: Cost savings per child | V3: Odds ratio of mortality - no breast feeding as baseline | W3: Mortality due to infectious diseases | X3: QALY loss if died at age 1 | Y3: Incremental Benefit cases p(inci|yes)*yeseffect + p(inci|no)*noeffect | Z3: Incidence - Gastrointestinal illnesses - Hospital admissions | AA3: Incidence - Gastrointestinal illnesses - GP Visits | AB3: Unit costs - Gastrointestinal illnesses - Hospital admissions | AC3: Unit costs - Gastrointestinal illnesses - GP Visits | AD3: odds ratios in favour of Breast feeding - Gastrointestinal illneses - hospitalisation | AE3: odds ratios in favour of Breast feeding - Gastrointestinal illneses - GP visits | AF3: incremental benefit in cases (hospitalisation) | AG3: incremental benefit in cases (GP) | AH3: cost savings | AI3: Incidence - Lower respiratory tract infection - Hospital admissions | AJ3: Incidence - Lower respiratory tract infection - GP Visits | AK3: Unit costs - Lower respiratory tract infection - Hospital admissions | AL3: Unit costs - Lower respiratory tract infection - GP Visits | AM3: odds ratios in favour of Breast feeding - Lower respiratory tract infection - hospitalisation | AN3: odds ratios in favour of Breast feeding - Lower respiratory tract infection - GP visits | AO3: incremental benefit in cases (hospitalisation) | AP3: incremental benefit in cases (GP) | AQ3: cost savings | AR3: Incidence - Acute otitis media - Hospital admissions | AS3: Incidence - Acute otitis media - GP Visits | AT3: Unit costs - Acute otitis media - Hospital admissions | AU3: Unit costs - Acute otitis media - GP Visits | AV3: odds ratios in favour of Breast feeding - Acute otitis media - hospitalisations | AW3: odds ratios in favour of Breast feeding - Acute otitis media - GP visits | AX3: incremental benefit in cases (hospitalisation) | AY3: incremental benefit in cases (GP) | AZ3: cost savings | BA3: Surgical NEC Cases | BB3: Medical NEC Cases | BC3: Cost of Surgical NEC per case | BD3: Cost of Medical NEC | BE3: odds ratios in favour of Breast feeding - NEC | BF3: incremental benefit in cases (Surgical) | BG3: incremental benefit in cases (Medical) | BH3: cost savings | BI3: Combined cost savings | BJ3: Combined QALY gain | BK3: Combined net benefit | BL3: Combined ICER per QALY
D5: Breastfeeding support: Proactive and Reactive call, daily, for 1 week following hospital discharge. Exclusive breast feeding | E5: Hoddinott, 2012, exclusive | F5: =INDEX(Scenario1_inputs,MATCH($D$5,Scenario1_inputs_intervention_names,0),MATCH(F3,Scenario1_inputs_headings,0)) ->  | G5: ='Population(s)'!I36 ->  | H5: Exclusive breastfeeding at 6-8 weeks after hospital discharge, percentage increase from baseline with no intervention | I5: =INDEX(Scenario1_inputs,MATCH($D$5,Scenario1_inputs_intervention_names,0),MATCH(I3,Scenario1_inputs_headings,0)) ->  | J5: =I5*G5 ->  | L5: 0.96 | M5: =12500/100000 -> 0.125 | N5: 11726 | O5: =$D$7 -> 0.0009221297763 | P5: =ABS(J5*'Odds Ratio'!E17) ->  | Q5: =P5*N5 ->  | R5: =P5*O5 ->  | T5: =ABS(X5*Y5) ->  | U5: =SUM(AH5,AQ5,AZ5,BH5) ->  | V5: 0.12 | W5: 6.8e-05 | X5: =$B$20 -> 37.83244535 | Y5: ='Odds Ratio'!E19*'Further Calculations_Sc1'!J5 ->  | Z5: =17.2/1000 -> 0.0172 | AA5: =4682/100000 -> 0.04682 | AB5: 989 | AC5: 36 | AD5: 0.39 | AE5: 0.28 | AF5: =J5*'Odds Ratio'!E21 ->  | AG5: =J5*'Odds Ratio'!E23 ->  | AH5: =ABS(AF5*AB5+AG5*AC5) ->  | AI5: =59.1/1000 -> 0.0591 | AJ5: =23433/100000 -> 0.23433 | AK5: 1078 | AL5: 36 | AM5: 0.7 | AN5: 0.69 | AO5: =$J$5*'Odds Ratio'!$E$25 ->  | AP5: =$J$5*'Odds Ratio'!$E$27 ->  | AQ5: =ABS(AO5*AK5+AP5*AL5) ->  | AR5: - | AS5: =136/100000 -> 0.00136 | AT5: - | AU5: 36 | AV5: - | AW5: 0.5 | AX5: - | AY5: =J5*'Odds Ratio'!E29 ->  | AZ5: =ABS(AY5*AU5) ->  | BA5: =(1/100)*31%*(17.2+59.1)/1000 -> 0.00023653 | BB5: =(1/100)*69%*(17.2+59.1)/1000 -> 0.00052647 | BC5: 1450 | BD5: =618*26.7 -> 16500.6 | BE5: 0.19 | BF5: =$J$5*'Odds Ratio'!$E$30 ->  | BG5: =$J$5*'Odds Ratio'!$E$32 ->  | BH5: =ABS(BF5*BC5+BG5*BD5) ->  | BI5: =BH5+AZ5+AQ5+AH5+Q5 ->  | BJ5: =ABS(Y5*X5)+R5 ->  | BK5: =BI5-F5 ->  | BL5: =IF(-BK5/BJ5<0, "Dominating", -BK5/BJ5) -> 
D6: Per case QALY
A7: A total of 371 QALYs would also be gained from the reduction in incidence of BC across the lifetime of 313 817 first-time mothers, if half the number of those not breast feeding currently were supported to breast feed for up to 6 months in their lifetime. | C7: =371/313817 -> 0.001182217662 | D7: =C7*2*0.39 -> 0.0009221297763 | E7: <<Assumption that discounting has already been applied from source | AD7: =$J$4*ABS('Odds Ratio'!E18) -> 0 | AE7: =AD7*AB4 -> 0 | BF7: Child: Infectious diseases (cost savings)
D8: *0.39 refers to proportion of live births that are first time births >> | E8: https://www.ons.gov.uk/peoplepopulationandcommunity/birthsdeathsandmarriages/livebirths/bulletins/birthsbyparentscharacteristicsinenglandandwales/2015 | AD8: =$J$4*ABS('Odds Ratio'!E19) -> 0 | AE8: =AD8*AC4 -> 0 | AF8: =(21-SUM(AE7:AE10))/SUM(AD11:AD12) -> 
B9: Option 1 | C9: Option 2 | D9: Option 3 | E9: Source: | AD9: =$J$4*ABS('Odds Ratio'!E20) -> 0 | AE9: =AD9*AB5 -> 0
A10: Utilities with no health problems | B10: 0.81 | C10: 0.829 | D10: 0.851 | E10: Quality of life impact of mental health conditions in England: results from the adult psychiatric morbidity surveys | AD10: =$J$4*ABS('Odds Ratio'!E21) -> 0 | AE10: =AD10*AC5 -> 0
AC11: =$J$4*ABS('Odds Ratio'!E22) -> 0 | AD11: =AC11*X4 -> 0
B12: Males | C12: Females | D12: Average | E12: Source: | AC12: =$J$4*ABS('Odds Ratio'!E23) -> 0 | AD12: =AC12*X5 -> 0
A13: Life expectancy at birth | B13: 78.85 | C13: 82.72 | D13: =AVERAGE(B13:C13) -> 80.785 | E13: Life expectancy at birth and at age 65, England and Wales, 1991-93 to 2010-12, Data 2010-12
A16: Start age for healthy | B16: 0
A17: End Age for healthy | B17: 1
A18: Missed years as cons. early mortality | B18: =D13-B17 -> 79.785
A19: End Age | B19: =D13 -> 80.785
A20: QALYS lost if died at age 1: | B20: =B10*Discounting!E5 -> 37.83244535
A24: Post Natal Depression
A26: data from LSE - The costs of perinatal mental health problems
A28: cost of QALY
A29: 25000 | D29: *NB: Authors use willingness to pay value of £25,000 for a QALY reflecting the midpoint of the £20,000 to £30,000 threshold used by NICE.
A31: Impact on mother
A32: QALY per PND case (mother) | B32: In QALYs | C32: Time Horizon
A33: 18158 | B33: =A33/A29 -> 0.72632 | C33: 10 years after birth
A35: Savings for mother | C35: Time Horizon
A36: 1688 | C36: 10 years after birth
A38: Impact on child
A39: QALY per PND case (child) | B39: In QALYs | C39: Time Horizon
A40: =30580-418 -> 30162 | B40: =A40/A29 -> 1.20648 | C40: Lifetime
A42: Health and social care savings for child | C42: Time Horizon
A43: =2831-974 -> 1857 | C43: Lifetime
A45: Education savings for child | C45: Time Horizon
A46: =3166 -> 3166 | C46: Lifetime
A48: Criminal justice savings for child | C48: Time Horizon
A49: 1947 | C49: Lifetime | K49: Per person
K50: Mothers | O50: Child | V50: combined
C51: Intervention name | D51: Intervention ID | E51: Intervention | F51: Cost of intervention | G51: Prevalence of PND | H51: Effectiveness reported description | I51: Incremental effectiveness | J51: Effectiveness of intervention | K51: Cost savings per mother | L51: QALY gains per mother | M51: Net Benefit - mother | N51: ICER per QALY - mother | O51: Health and social care savings - child | P51: Educational savings - child | Q51: Criminal savings - child | R51: Cost savings per child | S51: QALY gains per child | T51: Net Benefit - child | U51: ICER per QALY - child | V51: Combined cost savings | W51: Combined QALY gains | X51: Combined Net Benefit | Y51: Combined ICER per QALY
C52: Midwifery redesigned postnatal care; Universal | D52: 15 | E52: Morrell, 2016, Midwifery redesigned postnatal care, universal preventive | F52: =INDEX(Scenario1_inputs,MATCH(C52,Scenario1_inputs_intervention_names,0),MATCH($F$51,Scenario1_inputs_headings,0)) ->  | G52: =VLOOKUP($G$51,Prevalence_data,2,0) -> 0.13 | H52: odds ratio at 12 months (with usual care as baseline), women scored >12 in EPDS: | I52: 0.46 | J52: =INDEX(Scenario1_inputs,MATCH(C52,Scenario1_inputs_intervention_names,0),MATCH($J$51,Scenario1_inputs_headings,0)) ->  | K52: =J52*$A$36 ->  | L52: =J52*$B$33 ->  | M52: =K52-F52 ->  | N52: =IF(-M52/L52<0, "Dominating", -M52/L52) ->  | O52: =J52*$A$43 ->  | P52: =J52*$A$46 ->  | Q52: =J52*$A$49 ->  | R52: =SUM(O52:Q52) ->  | S52: =J52*$B$40 ->  | T52: =R52-F52 ->  | U52: =IF(-T52/S52<0, "Dominating", -T52/S52) ->  | V52: =R52+K52 ->  | X52: =V52-F52 ->  | Y52: =IF(-X52/W52<0, "Dominating", -X52/W52) -> 
C53: Peer Support Intervention for Prevention of Postpartum Depression; Selective | D53: 23 | E53: Morrell, 2016, Peer Support, indicated prevention | F53: =INDEX(Scenario1_inputs,MATCH(C53,Scenario1_inputs_intervention_names,0),MATCH($F$51,Scenario1_inputs_headings,0)) ->  | G53: =VLOOKUP($G$51,Prevalence_data,2,0) -> 0.13 | H53: odds ratio at 12 weeks (with usual care as baseline), women scored >12 in EPDS: | I53: 0.44 | J53: =INDEX(Scenario1_inputs,MATCH(C53,Scenario1_inputs_intervention_names,0),MATCH($J$51,Scenario1_inputs_headings,0)) ->  | K53: =J53*$A$36 ->  | L53: =J53*$B$33 ->  | M53: =K53-F53 ->  | N53: =IF(-M53/L53<0, "Dominating", -M53/L53) ->  | O53: =J53*$A$43 ->  | P53: =J53*$A$46 ->  | Q53: =J53*$A$49 ->  | R53: =SUM(O53:Q53) ->  | S53: =J53*$B$40 ->  | T53: =R53-F53 ->  | U53: =IF(-T53/S53<0, "Dominating", -T53/S53) ->  | X53: =V53-F53 ->  | Y53: =IF(-X53/W53<0, "Dominating", -X53/W53) -> 
C54: Group physical therapy exercises; Universal | D54: 24 | E54: Morrell, 2016, Exercise, universal | F54: =INDEX(Scenario1_inputs,MATCH(C54,Scenario1_inputs_intervention_names,0),MATCH($F$51,Scenario1_inputs_headings,0)) ->  | G54: =VLOOKUP($G$51,Prevalence_data,2,0) -> 0.13 | H54: post partum depression as measured 8 weeks postpartum (but maintained at 12 weeks), >=13 in EPDS score (change in incidence) | I54: 0.5 | J54: =INDEX(Scenario1_inputs,MATCH(C54,Scenario1_inputs_intervention_names,0),MATCH($J$51,Scenario1_inputs_headings,0)) ->  | K54: =J54*$A$36 ->  | L54: =J54*$B$33 ->  | M54: =K54-F54 ->  | N54: =IF(-M54/L54<0, "Dominating", -M54/L54) ->  | O54: =J54*$A$43 ->  | P54: =J54*$A$46 ->  | Q54: =J54*$A$49 ->  | R54: =SUM(O54:Q54) ->  | S54: =J54*$B$40 ->  | T54: =R54-F54 ->  | U54: =IF(-T54/S54<0, "Dominating", -T54/S54) ->  | X54: =V54-F54 ->  | Y54: =IF(-X54/W54<0, "Dominating", -X54/W54) -> 
J55: Cases Averted (%) | K55: Health and social care savings per mother | R55: Total social perspective per child | V55: total social perspective
A59: Currency conversion rates | B59: exchange rates taken from XE (http://www.xe.com/) as accessed on 01 June 2017, 16:40
B61: USD | C61: EUR | D61: GBP | E61: CAD
A62: USD | B62: 1 | C62: 0.89175 | D62: 0.77694 | E62: 1.34673
A63: EUR | B63: 1.11815 | C63: 1 | D63: 0.86847 | E63: 1.50585
A64: GBP | B64: 1.2871 | C64: 1.15061 | D64: 1 | E64: 1.7949
A65: CAD | B65: 0.7418 | C65: 0.6615 | D65: 0.57491 | E65: 1

Sheet Further Calculations_Sc2 (hidden)
L1: Per person | V1: Per person
A2: Breastfeeding | G2: Women that do not breastfeed | J2: Incremental increase in exclusive breastfeeding | L2: Mothers | V2: Children | Z2: Gastrointestinal illnesses | AI2: Lower respiratory tract infection | AR2: Acute otitis media | BA2: NEC | BI2: Combined
A3: Breastfeeding support: Proactive and Reactive call, daily, for 1 week following hospital discharge. Any breast feeding | D3: Intervention name | E3: Intervention | F3: cost of intervention | G3: Women population baseline (specific to intervention) | H3: Effectiveness reported description | I3: Effectiveness of intervention | J3: Delta | K3: No BF reduction - noeffect | L3: Odds ratio - maternal Breast cancer - ever BS vs no BS | M3: Incidence of Breast Cancer | N3: Baseline cost per case | O3: Baseline QALY loss per case | P3: incremental benefit (cases averted due to intervention) | Q3: Cost savings per mother | R3: QALY gain per mother | T3: QALY gain per child | U3: Cost savings per child | V3: Odds ratio of mortality - no breast feeding as baseline | W3: Mortality due to infectious diseases | X3: QALY loss if died at age 1 | Y3: Incremental Benefit cases p(inci|yes)*yeseffect + p(inci|no)*noeffect | Z3: Incidence - Gastrointestinal illnesses - Hospital admissions | AA3: Incidence - Gastrointestinal illnesses - GP Visits | AB3: Unit costs - Gastrointestinal illnesses - Hospital admissions | AC3: Unit costs - Gastrointestinal illnesses - GP Visits | AD3: odds ratios in favour of Breast feeding - Gastrointestinal illneses - hospitalisation | AE3: odds ratios in favour of Breast feeding - Gastrointestinal illneses - GP visits | AF3: incremental benefit in cases (hospitalisation) | AG3: incremental benefit in cases (GP) | AH3: cost savings | AI3: Incidence - Lower respiratory tract infection - Hospital admissions | AJ3: Incidence - Lower respiratory tract infection - GP Visits | AK3: Unit costs - Lower respiratory tract infection - Hospital admissions | AL3: Unit costs - Lower respiratory tract infection - GP Visits | AM3: odds ratios in favour of Breast feeding - Lower respiratory tract infection - hospitalisation | AN3: odds ratios in favour of Breast feeding - Lower respiratory tract infection - GP visits | AO3: incremental benefit in cases (hospitalisation) | AP3: incremental benefit in cases (GP) | AQ3: cost savings | AR3: Incidence - Acute otitis media - Hospital admissions | AS3: Incidence - Acute otitis media - GP Visits | AT3: Unit costs - Acute otitis media - Hospital admissions | AU3: Unit costs - Acute otitis media - GP Visits | AV3: odds ratios in favour of Breast feeding - Acute otitis media - hospitalisations | AW3: odds ratios in favour of Breast feeding - Acute otitis media - GP visits | AX3: incremental benefit in cases (hospitalisation) | AY3: incremental benefit in cases (GP) | AZ3: cost savings | BA3: Surgical NEC Cases | BB3: Medical NEC Cases | BC3: Cost of Surgical NEC per case | BD3: Cost of Medical NEC | BE3: odds ratios in favour of Breast feeding - NEC | BF3: incremental benefit in cases (Surgical) | BG3: incremental benefit in cases (Medical) | BH3: cost savings | BI3: Combined cost savings | BJ3: Combined QALY gain | BK3: Combined net benefit | BL3: Combined ICER per QALY
D5: Breastfeeding support: Proactive and Reactive call, daily, for 1 week following hospital discharge. Exclusive breast feeding | E5: Hoddinott, 2012, exclusive | F5: =INDEX(Scenario2_inputs,MATCH($D$5,Scenario2_inputs_intervention_names,0),MATCH(F3,Scenario2_inputs_headings,0)) -> 0 | G5: ='Population(s)'!I36 ->  | H5: Exclusive breastfeeding at 6-8 weeks after hospital discharge, percentage increase from baseline with no intervention | I5: =INDEX(Scenario2_inputs,MATCH($D$5,Scenario2_inputs_intervention_names,0),MATCH(I3,Scenario2_inputs_headings,0)) -> 0 | J5: =I5*G5 ->  | L5: 0.96 | M5: =12500/100000 -> 0.125 | N5: 11726 | O5: =$D$7 -> 0.0009221297763 | P5: =ABS(J5*'Odds Ratio'!E17) ->  | Q5: =P5*N5 ->  | R5: =P5*O5 ->  | T5: =ABS(X5*Y5) ->  | U5: =SUM(AH5,AQ5,AZ5,BH5) ->  | V5: 0.12 | W5: 6.8e-05 | X5: =$B$20 -> 37.83244535 | Y5: ='Odds Ratio'!E19*'Further Calculations_Sc2'!J5 ->  | Z5: =17.2/1000 -> 0.0172 | AA5: =4682/100000 -> 0.04682 | AB5: 989 | AC5: 36 | AD5: 0.39 | AE5: 0.28 | AF5: =J5*'Odds Ratio'!E21 ->  | AG5: =J5*'Odds Ratio'!E23 ->  | AH5: =ABS(AF5*AB5+AG5*AC5) ->  | AI5: =59.1/1000 -> 0.0591 | AJ5: =23433/100000 -> 0.23433 | AK5: 1078 | AL5: 36 | AM5: 0.7 | AN5: 0.69 | AO5: =$J$5*'Odds Ratio'!$E$25 ->  | AP5: =$J$5*'Odds Ratio'!$E$27 ->  | AQ5: =ABS(AO5*AK5+AP5*AL5) ->  | AR5: - | AS5: =136/100000 -> 0.00136 | AT5: - | AU5: 36 | AV5: - | AW5: 0.5 | AX5: - | AY5: =J5*'Odds Ratio'!E29 ->  | AZ5: =ABS(AY5*AU5) ->  | BA5: =(1/100)*31%*(17.2+59.1)/1000 -> 0.00023653 | BB5: =(1/100)*69%*(17.2+59.1)/1000 -> 0.00052647 | BC5: 1450 | BD5: =618*26.7 -> 16500.6 | BE5: 0.19 | BF5: =$J$5*'Odds Ratio'!$E$30 ->  | BG5: =$J$5*'Odds Ratio'!$E$32 ->  | BH5: =ABS(BF5*BC5+BG5*BD5) ->  | BI5: =BH5+AZ5+AQ5+AH5+Q5 ->  | BJ5: =ABS(Y5*X5)+R5 ->  | BK5: =BI5-F5 ->  | BL5: =IF(-BK5/BJ5<0, "Dominating", -BK5/BJ5) -> 
D6: Per case QALY
A7: A total of 371 QALYs would also be gained from the reduction in incidence of BC across the lifetime of 313 817 first-time mothers, if half the number of those not breast feeding currently were supported to breast feed for up to 6 months in their lifetime. | C7: =371/313817 -> 0.001182217662 | D7: =C7*2*0.39 -> 0.0009221297763 | E7: <<Assumption that discounting has already been applied from source | AD7: =$J$4*ABS('Odds Ratio'!E18) -> 0 | AE7: =AD7*AB4 -> 0 | BF7: Child: Infectious diseases (cost savings)
D8: *0.39 refers to proportion of live births that are first time births >> | E8: https://www.ons.gov.uk/peoplepopulationandcommunity/birthsdeathsandmarriages/livebirths/bulletins/birthsbyparentscharacteristicsinenglandandwales/2015 | AD8: =$J$4*ABS('Odds Ratio'!E19) -> 0 | AE8: =AD8*AC4 -> 0 | AF8: =(21-SUM(AE7:AE10))/SUM(AD11:AD12) -> 
B9: Option 1 | C9: Option 2 | D9: Option 3 | E9: Source: | AD9: =$J$4*ABS('Odds Ratio'!E20) -> 0 | AE9: =AD9*AB5 -> 0
A10: Utilities with no health problems | B10: 0.81 | C10: 0.829 | D10: 0.851 | E10: Quality of life impact of mental health conditions in England: results from the adult psychiatric morbidity surveys | AD10: =$J$4*ABS('Odds Ratio'!E21) -> 0 | AE10: =AD10*AC5 -> 0
AC11: =$J$4*ABS('Odds Ratio'!E22) -> 0 | AD11: =AC11*X4 -> 0
B12: Males | C12: Females | D12: Average | E12: Source: | AC12: =$J$4*ABS('Odds Ratio'!E23) -> 0 | AD12: =AC12*X5 -> 0
A13: Life expectancy at birth | B13: 78.85 | C13: 82.72 | D13: =AVERAGE(B13:C13) -> 80.785 | E13: Life expectancy at birth and at age 65, England and Wales, 1991-93 to 2010-12, Data 2010-12
A16: Start age for healthy | B16: 0
A17: End Age for healthy | B17: 1
A18: Missed years as cons. early mortality | B18: =D13-B17 -> 79.785
A19: End Age | B19: =D13 -> 80.785
A20: QALYS lost if died at age 1: | B20: =B10*Discounting!E5 -> 37.83244535
A24: Post Natal Depression
A26: data from LSE - The costs of perinatal mental health problems
A28: cost of QALY
A29: 25000 | D29: *NB: Authors use willingness to pay value of £25,000 for a QALY reflecting the midpoint of the £20,000 to £30,000 threshold used by NICE.
A31: Impact on mother
A32: QALY per PND case (mother) | B32: In QALYs | C32: Time Horizon
A33: 18158 | B33: =A33/A29 -> 0.72632 | C33: 10 years after birth
A35: Savings for mother | C35: Time Horizon
A36: 1688 | C36: 10 years after birth
A38: Impact on child
A39: QALY per PND case (child) | B39: In QALYs | C39: Time Horizon
A40: =30580-418 -> 30162 | B40: =A40/A29 -> 1.20648 | C40: Lifetime
A42: Health and social care savings for child | C42: Time Horizon
A43: =2831-974 -> 1857 | C43: Lifetime
A45: Education savings for child | C45: Time Horizon
A46: 3166 | C46: Lifetime
A48: Criminal justice savings for child | C48: Time Horizon
A49: 1947 | C49: Lifetime | K49: Per person
K50: Mothers | O50: Child | V50: combined
C51: Intervention name | D51: Intervention ID | E51: Intervention | F51: cost of intervention | G51: Prevalence of PND | H51: Effectiveness reported description | I51: Incremental effectiveness | J51: Effectiveness of intervention | K51: Cost savings per mother | L51: QALY gains per mother | M51: Net Benefit - mother | N51: ICER per QALY - mother | O51: Health and social care savings - child | P51: Educational savings - child | Q51: Criminal savings - child | R51: Cost savings per child | S51: QALY gains per child | T51: Net Benefit - child | U51: ICER per QALY - child | V51: Combined cost savings | W51: Combined QALY gains | X51: Combined Net Benefit | Y51: Combined ICER per QALY
C52: Midwifery redesigned postnatal care; Universal | D52: 15 | E52: Morrell, 2016, Midwifery redesigned postnatal care, universal preventive | F52: =INDEX(Scenario2_inputs,MATCH(C52,Scenario2_inputs_intervention_names,0),MATCH($F$51,Scenario2_inputs_headings,0)) -> 0 | G52: =VLOOKUP($G$51,Prevalence_data,2,0) -> 0.13 | H52: odds ratio at 12 months (with usual care as baseline), women scored >12 in EPDS: | I52: 0.46 | J52: =INDEX(Scenario2_inputs,MATCH(C52,Scenario2_inputs_intervention_names,0),MATCH($J$51,Scenario2_inputs_headings,0)) -> 0 | K52: =J52*$A$36 -> 0 | L52: =J52*$B$33 -> 0 | M52: =K52-F52 -> 0 | N52: =IF(-M52/L52<0, "Dominating", -M52/L52) ->  | O52: =J52*$A$43 -> 0 | P52: =J52*$A$46 -> 0 | Q52: =J52*$A$49 -> 0 | R52: =SUM(O52:Q52) -> 0 | S52: =J52*$B$40 -> 0 | T52: =R52-F52 -> 0 | U52: =IF(-T52/S52<0, "Dominating", -T52/S52) ->  | V52: =R52+K52 -> 0 | W52: 0 | X52: =V52-F52 -> 0 | Y52: =IF(-X52/W52<0, "Dominating", -X52/W52) -> 
C53: Peer Support Intervention for Prevention of Postpartum Depression; Selective | D53: 23 | E53: Morrell, 2016, Peer Support, indicated prevention | F53: =INDEX(Scenario2_inputs,MATCH(C53,Scenario2_inputs_intervention_names,0),MATCH($F$51,Scenario2_inputs_headings,0)) -> 0 | G53: =VLOOKUP($G$51,Prevalence_data,2,0) -> 0.13 | H53: odds ratio at 12 weeks (with usual care as baseline), women scored >12 in EPDS: | I53: 0.44 | J53: =INDEX(Scenario2_inputs,MATCH(C53,Scenario2_inputs_intervention_names,0),MATCH($J$51,Scenario2_inputs_headings,0)) -> 0 | K53: =J53*$A$36 -> 0 | L53: =J53*$B$33 -> 0 | M53: =K53-F53 -> 0 | N53: =IF(-M53/L53<0, "Dominating", -M53/L53) ->  | O53: =J53*$A$43 -> 0 | P53: =J53*$A$46 -> 0 | Q53: =J53*$A$49 -> 0 | R53: =SUM(O53:Q53) -> 0 | S53: =J53*$B$40 -> 0 | T53: =R53-F53 -> 0 | U53: =IF(-T53/S53<0, "Dominating", -T53/S53) ->  | V53: 0 | W53: 0 | X53: =V53-F53 -> 0 | Y53: =IF(-X53/W53<0, "Dominating", -X53/W53) -> 
C54: Group physical therapy exercises; Universal | D54: 24 | E54: Morrell, 2016, Exercise, universal | F54: =INDEX(Scenario2_inputs,MATCH(C54,Scenario2_inputs_intervention_names,0),MATCH($F$51,Scenario2_inputs_headings,0)) -> 0 | G54: =VLOOKUP($G$51,Prevalence_data,2,0) -> 0.13 | H54: post partum depression as measured 8 weeks postpartum (but maintained at 12 weeks), >=13 in EPDS score (change in incidence) | I54: 0.5 | J54: =INDEX(Scenario2_inputs,MATCH(C54,Scenario2_inputs_intervention_names,0),MATCH($J$51,Scenario2_inputs_headings,0)) -> 0 | K54: =J54*$A$36 -> 0 | L54: =J54*$B$33 -> 0 | M54: =K54-F54 -> 0 | N54: =IF(-M54/L54<0, "Dominating", -M54/L54) ->  | O54: =J54*$A$43 -> 0 | P54: =J54*$A$46 -> 0 | Q54: =J54*$A$49 -> 0 | R54: =SUM(O54:Q54) -> 0 | S54: =J54*$B$40 -> 0 | T54: =R54-F54 -> 0 | U54: =IF(-T54/S54<0, "Dominating", -T54/S54) ->  | V54: 0 | W54: 0 | X54: =V54-F54 -> 0 | Y54: =IF(-X54/W54<0, "Dominating", -X54/W54) -> 
F55: =MATCH(C54,Full_PND_interventions_names,0) -> 4 | G55: =MATCH(F51,Full_PND_interventions_headings,0) -> 4 | J55: Cases Averted (%) | K55: Health and social care savings per mother | R55: Total social perspective per child | V55: total social perspective
A59: Currency conversion rates | B59: exchange rates taken from XE (http://www.xe.com/) as accessed on 01 June 2017, 16:40
B61: USD | C61: EUR | D61: GBP | E61: CAD
A62: USD | B62: 1 | C62: 0.89175 | D62: 0.77694 | E62: 1.34673
A63: EUR | B63: 1.11815 | C63: 1 | D63: 0.86847 | E63: 1.50585
A64: GBP | B64: 1.2871 | C64: 1.15061 | D64: 1 | E64: 1.7949
A65: CAD | B65: 0.7418 | C65: 0.6615 | D65: 0.57491 | E65: 1

Sheet Odds Ratio (hidden)
B2: ODDS RATIO TO EFFECT SIZE
B3: Formula for T | C3: T = 1 - (1 - B) / (OR * B + 1 - B)
B4: Key | C4: If OR > 1, x is the outcome the intervention tries to increase (e.g. people not drinking) If OR < 1, x is the outcome the intervention tries to decrease (e.g. people drinking) Assuming intervention is successful!
B6: Odds ratio (odds of x with intervention:odds of x at baseline) | C6: Probability of x at baseline | D6: 1 - (P/(OR*(1-P)+P)) - 1/P | E6: Incremental probability (as % of whole population) | F6: Effect size (as % of drinkers rather than whole popn)
B7: OR | C7: B | D7: T | E7: T - B
B8: 2.19 | C8: 0.75 | D8: =1-(1-C8)/(B8*C8+1-C8) -> 0.8678996037 | E8: =D8-C8 -> 0.1178996037 | F8: =IF(B8<1,-E8/C8,E8/(1-C8)) -> 0.4715984148
B9: 0.62 | C9: 0.1 | D9: =1-(1-C9)/(B9*C9+1-C9) -> 0.06444906445 | E9: =D9-C9 -> -0.03555093555 | F9: =IF(B9<1,-E9/C9,E9/(1-C9)) -> 0.3555093555 | G9: Odds Ratio: Odds of receiving a 6-months EPDS score >= 12 for @ risk women --> intervention to control
B10: 0.59 | C10: 0.1 | D10: 0.06152241919 | E10: -0.03847758081 | F10: 0.3847758081 | G10: Odds Ratio: Odds of receiving a 6-months EPDS score >= 12 for @ risk women --> CBA to control
B11: 0.65 | C11: 0.1 | D11: 0.06735751295 | E11: -0.03264248705 | F11: 0.3264248705 | G11: Odds Ratio: Odds of receiving a 6-months EPDS score >= 12 for @ risk women --> PCA to control
B12: 0.67 | C12: 0.1 | D12: 0.06928645295 | E12: -0.03071354705 | F12: 0.3071354705 | G12: Odds Ratio: Odds of receiving a 6-months EPDS score >= 12 for ALL women --> intervention to control
B13: 0.66 | C13: 0.1 | D13: 0.06832298137 | E13: -0.03167701863 | F13: 0.3167701863 | G13: Odds Ratio: Odds of receiving a 6-months EPDS score >= 12 for ALL women --> CBA to control
B14: 0.67 | C14: 0.1 | D14: 0.06928645295 | E14: -0.03071354705 | F14: 0.3071354705 | G14: Odds Ratio: Odds of receiving a 6-months EPDS score >= 12 for ALL women --> PCA to control
B15: 0.46 | C15: 0.13 | D15: 0.06431490643 | E15: -0.06568509357 | F15: 0.5052699505 | G15: Morrell, 2016, Midwifery redesigned postnatal care, universal preventive odds ration at 12 months (with usual care as baseline), women scored >12 in EPDS
B16: 0.44 | C16: 0.13 | D16: 0.06169111303 | E16: -0.06830888697 | F16: 0.5254529767 | G16: Morrell, 2016, Peer Support, indicated prevention odds ration at 12 weeks (with usual care as baseline), women scored >12 in EPDS
B17: 0.96 | C17: 0.125 | D17: 0.1206030151 | E17: -0.004396984925 | F17: 0.0351758794
B18: 0.48 | C18: 6.8e-05 | D18: 3.264115419e-05 | E18: -3.535884581e-05 | F18: 0.5199830266 | G18: Mortality due to infectious diseases any vs no
B19: 0.12 | C19: 6.8e-05 | D19: 8.160488324e-06 | E19: -5.983951168e-05 | F19: 0.8799928188 | G19: Mortality due to infectious diseases exclusive vs no
B20: 0.52 | C20: =17.2/1000 -> 0.0172 | D20: 0.009018456376 | E20: -0.008181543624 | F20: 0.4756711409 | G20: odds ratios in favour of Breast feeding - Gastrointestinal illneses - hospitalisation - any
B21: 0.39 | C21: =17.2/1000 -> 0.0172 | D21: 0.006779126596 | E21: -0.0104208734 | F21: 0.6058647328 | G21: odds ratios in favour of Breast feeding - Gastrointestinal illneses - hospitalisation - exclusive
B22: 0.36 | C22: =4682/100000 -> 0.04682 | D22: =1-(1-C22)/(B22*C22+1-C22) -> 0.0173758643 | E22: =D22-C22 -> -0.0294441357 | F22: =IF(B22<1,-E22/C22,E22/(1-C22)) -> 0.6288794468 | G22: odds ratios in favour of Breast feeding - Gastrointestinal illneses - GPs - any
B23: 0.28 | C23: =4682/100000 -> 0.04682 | D23: =1-(1-C23)/(B23*C23+1-C23) -> 0.01356694722 | E23: =D23-C23 -> -0.03325305278 | F23: =IF(B23<1,-E23/C23,E23/(1-C23)) -> 0.710231798 | G23: odds ratios in favour of Breast feeding - Gastrointestinal illneses - GPs - exclusive
B24: 0.67 | C24: =59.1/1000 -> 0.0591 | D24: 0.04038462127 | E24: -0.01871537873 | F24: 0.316673075 | G24: odds ratios in favour of Breast feeding - Lower respiratory tract infection - hospitalisation - any
B25: 0.7 | C25: =59.1/1000 -> 0.0591 | D25: 0.04211672962 | E25: -0.01698327038 | F25: 0.2873649811 | G25: odds ratios in favour of Breast feeding - Lower respiratory tract infection - hospitalisation - exclusive
B26: 0.65 | C26: =23433/100000 -> 0.23433 | D26: 0.1659227362 | E26: -0.06840726383 | F26: 0.2919270423 | G26: odds ratios in favour of Breast feeding - Lower respiratory tract infection - GP - any
B27: 0.69 | C27: =23433/100000 -> 0.23433 | D27: 0.174353111 | E27: -0.05997688901 | F27: 0.2559505356 | G27: odds ratios in favour of Breast feeding - Lower respiratory tract infection - GP - exclusive
B28: 0.4 | C28: =136/100000 -> 0.00136 | D28: 0.0005444442665 | E28: -0.0008155557335 | F28: 0.5996733334 | G28: odds ratios in favour of Breast feeding - Acute otitis media - GP visits - any
B29: 0.5 | C29: =136/100000 -> 0.00136 | D29: 0.0006804627146 | E29: -0.0006795372854 | F29: 0.4996597686 | G29: odds ratios in favour of Breast feeding - Acute otitis media - GP visits - excusive
B30: 0.19 | C30: =(1/100)*31%*(17.2+59.1)/1000 -> 0.00023653 | D30: 4.494931181e-05 | E30: -0.0001915806882 | F30: 0.8099635911
B31: 0.19 | C31: =(1/100)*31%*(17.2+59.1)/1000 -> 0.00023653 | D31: 4.494931181e-05 | E31: -0.0001915806882 | F31: 0.8099635911
B32: 0.19 | C32: =(1/100)*69%*(17.2+59.1)/1000 -> 0.00052647 | D32: 0.0001000719748 | E32: -0.0004263980252 | F32: 0.8099189417
B33: 0.19 | C33: =(1/100)*69%*(17.2+59.1)/1000 -> 0.00052647 | D33: 0.0001000719748 | E33: -0.0004263980252 | F33: 0.8099189417
D34: 0 | E34: 0
D35: 0 | E35: 0

Sheet Discounting (hidden)
B2: Years from input: | D2: 4 | E2: 79
D3: Cost discounting | E3: Health Benefits discounting
B4: Discount rate: | D4: ='Other Inputs'!#REF! ->  | E4: ='Intervention(s)_BF_Sc1'!J28 -> 0.015
B5: Discount factor sum: | D5: =SUM(D8:D58) ->  | E5: =SUM(E9:E108) -> 46.70672265
B7: Discount factor | C7: Included | D7: Used discount factor
A8: 0 | B8: =1/(1+$D$4)^A8 ->  | C8: =IF($D$2-A8<1,IF($D$2-A8<0,0,$D$2-A8),1) -> 1 | D8: =C8*B8 ->  | E8: =1/(1+$E$4)^A8 -> 1
A9: 1 | C9: 1 | E9: =1/(1+$E$4)^A9 -> 0.9852216749
A10: 2 | C10: 1 | E10: 0.9706617486
A11: 3 | C11: 1 | E11: 0.9563169937
A12: 4 | C12: 0 | E12: 0.9421842303
A13: 5 | C13: 0 | E13: 0.9282603254
A14: 6 | C14: 0 | E14: 0.9145421925
A15: 7 | C15: 0 | E15: 0.9010267907
A16: 8 | C16: 0 | E16: 0.8877111238
A17: 9 | C17: 0 | E17: 0.8745922402
A18: 10 | C18: 0 | E18: 0.8616672317
A19: 11 | C19: 0 | E19: 0.8489332332
A20: 12 | C20: 0 | E20: 0.8363874219
A21: 13 | C21: 0 | E21: 0.8240270166
A22: 14 | C22: 0 | E22: 0.8118492775
A23: 15 | C23: 0 | E23: 0.7998515049
A24: 16 | C24: 0 | E24: 0.7880310393
A25: 17 | C25: 0 | E25: 0.7763852604
A26: 18 | C26: 0 | E26: 0.7649115866
A27: 19 | C27: 0 | E27: 0.7536074745
A28: 20 | C28: 0 | E28: 0.7424704182
A29: 21 | C29: 0 | E29: 0.731497949
A30: 22 | C30: 0 | E30: 0.7206876345
A31: 23 | C31: 0 | E31: 0.7100370783
A32: 24 | C32: 0 | E32: 0.6995439195
A33: 25 | C33: 0 | E33: 0.689205832
A34: 26 | C34: 0 | E34: 0.6790205242
A35: 27 | C35: 0 | E35: 0.6689857381
A36: 28 | C36: 0 | E36: 0.6590992494
A37: 29 | C37: 0 | E37: 0.6493588664
A38: 30 | C38: 0 | E38: 0.6397624299
A39: 31 | C39: 0 | E39: 0.6303078127
A40: 32 | B40: =1/(1+$D$4)^A40 ->  | C40: =IF($D$2-A40<1,IF($D$2-A40<0,0,$D$2-A40),1) -> 0 | D40: =C40*B40 ->  | E40: 0.6209929189
A41: 33 | C41: 0 | E41: 0.6118156837
A42: 34 | C42: 0 | E42: 0.6027740726
A43: 35 | C43: 0 | E43: 0.5938660814
A44: 36 | C44: 0 | E44: 0.5850897353
A45: 37 | C45: 0 | E45: 0.576443089
A46: 38 | C46: 0 | E46: 0.5679242256
A47: 39 | C47: 0 | E47: 0.5595312568
A48: 40 | C48: 0 | E48: 0.5512623219
A49: 41 | C49: 0 | E49: 0.5431155881
A50: 42 | C50: 0 | E50: 0.5350892494
A51: 43 | C51: 0 | E51: 0.5271815265
A52: 44 | C52: 0 | E52: 0.5193906665
A53: 45 | C53: 0 | E53: 0.5117149423
A54: 46 | C54: 0 | E54: 0.5041526526
A55: 47 | C55: 0 | E55: 0.4967021207
A56: 48 | C56: 0 | E56: 0.4893616953
A57: 49 | C57: 0 | E57: 0.4821297491
A58: 50 | C58: 0 | E58: 0.4750046789
A59: 51 | B59: =1/(1+$D$4)^A59 ->  | C59: =IF($D$2-A59<1,IF($D$2-A59<0,0,$D$2-A59),1) -> 0 | D59: =C59*B59 ->  | E59: =1/(1+$E$4)^A59 -> 0.4679849053
A60: 52 | C60: 0 | E60: 0.4610688722
A61: 53 | C61: 0 | E61: 0.4542550465
A62: 54 | C62: 0 | E62: 0.4475419178
A63: 55 | C63: 0 | E63: 0.4409279978
A64: 56 | C64: 0 | E64: 0.4344118205
A65: 57 | C65: 0 | E65: 0.4279919414
A66: 58 | C66: 0 | E66: 0.4216669373
A67: 59 | C67: 0 | E67: 0.4154354062
A68: 60 | C68: 0 | E68: 0.4092959667
A69: 61 | C69: 0 | E69: 0.4032472579
A70: 62 | C70: 0 | E70: 0.3972879388
A71: 63 | C71: 0 | E71: 0.3914166884
A72: 64 | C72: 0 | E72: 0.3856322054
A73: 65 | C73: 0 | E73: 0.3799332073
A74: 66 | C74: 0 | E74: 0.3743184308
A75: 67 | C75: 0 | E75: 0.3687866313
A76: 68 | C76: 0 | E76: 0.3633365826
A77: 69 | C77: 0 | E77: 0.3579670764
A78: 70 | C78: 0 | E78: 0.3526769226
A79: 71 | C79: 0 | E79: 0.3474649484
A80: 72 | C80: 0 | E80: 0.3423299984
A81: 73 | C81: 0 | E81: 0.3372709344
A82: 74 | C82: 0 | E82: 0.3322866349
A83: 75 | C83: 0 | E83: 0.3273759949
A84: 76 | C84: 0 | E84: 0.322537926
A85: 77 | C85: 0 | E85: 0.3177713557
A86: 78 | C86: 0 | E86: 0.3130752273
A87: 79 | C87: 0 | E87: 0.3084484998
A88: 80 | C88: 0 | E88: 0.3038901476
A89: 81 | C89: 0 | E89: 0.2993991602
A90: 82 | C90: 0
A91: 83 | C91: 0
A92: 84 | C92: 0
A93: 85 | C93: 0
A94: 86 | C94: 0
A95: 87 | C95: 0
A96: 88 | C96: 0
A97: 89 | C97: 0
A98: 90 | C98: 0
A99: 91 | C99: 0
A100: 92 | C100: 0
A101: 93 | C101: 0
A102: 94 | C102: 0
A103: 95 | C103: 0
A104: 96 | C104: 0
A105: 97 | C105: 0
A106: 98 | C106: 0
A107: 99 | C107: 0
A108: 100 | C108: 0

Sheet Underweight live births (hidden)
A3: Percentage live births 500-999g | B3: 0.005 | C3: 0.07246376812 | G3: =B3/$B$6 -> 0.07246376812 | H3: =G3*$F$6 -> 7.246376812
A4: Percentage live births 1000-1749g | B4: 0.0115 | C4: 0.1666666667 | G4: =B4/$B$6 -> 0.1666666667 | H4: =G4*$F$6 -> 16.66666667
A5: Percentage live births 1749-2499g | B5: 0.0525 | C5: 0.7608695652 | G5: =B5/$B$6 -> 0.7608695652 | H5: =G5*$F$6 -> 76.08695652
A6: Total | B6: =SUM(B3:B5) -> 0.069 | C6: 1000 | F6: 100
A8: Area of usual residence | B8: Area | C8: Percentage of live births under 2.5kg | D8: Total (live births) | E8: Number live births under 2.5kg | F8: Number live births 500-999g | G8: Number live births 1000-1749g | H8: Number live births 1749-2499g | I8: Proportion live births 500-999g | J8: Proportion live births 1000-1749g | K8: Proportion live births 1750-2499g
A10: K02000001 | B10: UNITED KINGDOM | C10: =(INDEX(Live_Births,MATCH($B10,Live_Births_Area,0), MATCH(C$8,Live_Births_headings,0))/100) ->  | D10: =(INDEX(Live_Births,MATCH($B10,Live_Births_Area,0),MATCH(D$8,Live_Births_headings,0))) -> 777165 | E10: =D10*C10 ->  | F10: =$E10*$C$3 ->  | G10: =$E10*$C$4 ->  | H10: =$E10*$C$5 ->  | I10: =IF(F10=0,0,F10/$D10) -> 
A11: K04000001, J99000001 | B11: ENGLAND, WALES AND ELSEWHERE | C11: 0.07 | D11: =(INDEX(Live_Births,MATCH($B11,Live_Births_Area,0),MATCH(D$8,Live_Births_headings,0))) -> 697852 | E11: =D11*C11 -> 48849.64 | F11: =$E11*$C$3 -> 3539.828986 | G11: =$E11*$C$4 -> 8141.606667 | H11: =$E11*$C$5 -> 37168.20435 | I11: 0.005072463768 | J11: 0.01166666667 | K11: 0.05326086957
A12: E92000001 | B12: ENGLAND | C12: 0.07 | D12: 664399 | E12: 46507.93 | F12: 3370.139855 | G12: 7751.321667 | H12: 35386.46848 | I12: =IF(F12=0,0,F12/$D12) -> 0.005072463768 | J12: =IF(G12=0,0,G12/$D12) -> 0.01166666667 | K12: =IF(H12=0,0,H12/$D12) -> 0.05326086957
A13: E12000001 | B13: NORTH EAST | C13: 0.07 | D13: 28400 | E13: 1988 | F13: 144.057971 | G13: 331.3333333 | H13: 1512.608696 | I13: 0.005072463768 | J13: 0.01166666667 | K13: 0.05326086957
A14: E06000047 | B14: County Durham | C14: 0.079 | D14: 5355 | E14: 423.045 | F14: 30.65543478 | G14: 70.5075 | H14: 321.8820652 | I14: 0.005724637681 | J14: 0.01316666667 | K14: 0.06010869565
A15: E06000005 | B15: Darlington | C15: 0.051 | D15: 1217 | E15: 62.067 | F15: 4.497608696 | G15: 10.3445 | H15: 47.2248913 | I15: 0.003695652174 | J15: 0.0085 | K15: 0.03880434783
A16: E06000001 | B16: Hartlepool | C16: 0.059 | D16: 1080 | E16: 63.72 | F16: 4.617391304 | G16: 10.62 | H16: 48.4826087 | I16: 0.004275362319 | J16: 0.009833333333 | K16: 0.04489130435
A17: E06000002 | B17: Middlesbrough | C17: 0.084 | D17: 1925 | E17: 161.7 | F17: 11.7173913 | G17: 26.95 | H17: 123.0326087 | I17: 0.006086956522 | J17: 0.014 | K17: 0.06391304348
A18: E06000057 | B18: Northumberland | C18: 0.042 | D18: 2832 | E18: 118.944 | F18: 8.619130435 | G18: 19.824 | H18: 90.50086957 | I18: 0.003043478261 | J18: 0.007 | K18: 0.03195652174
A19: E06000003 | B19: Redcar and Cleveland | C19: 0.066 | D19: 1431 | E19: 94.446 | F19: 6.843913043 | G19: 15.741 | H19: 71.86108696 | I19: 0.004782608696 | J19: 0.011 | K19: 0.0502173913
A20: E06000004 | B20: Stockton-on-Tees | C20: 0.074 | D20: 2274 | E20: 168.276 | F20: 12.19391304 | G20: 28.046 | H20: 128.036087 | I20: 0.005362318841 | J20: 0.01233333333 | K20: 0.05630434783
A21: E11000007 | B21: Tyne and Wear (Met County) | C21: 0.073 | D21: 12286 | E21: 896.878 | F21: 64.99115942 | G21: 149.4796667 | H21: 682.4071739 | I21: 0.005289855072 | J21: 0.01216666667 | K21: 0.05554347826
A22: E08000037 | B22: Gateshead | C22: 0.069 | D22: 2214 | E22: 152.766 | F22: 11.07 | G22: 25.461 | H22: 116.235 | I22: 0.005 | J22: 0.0115 | K22: 0.0525
A23: E08000021 | B23: Newcastle upon Tyne | C23: 0.074 | D23: 3329 | E23: 246.346 | F23: 17.85115942 | G23: 41.05766667 | H23: 187.4371739 | I23: 0.005362318841 | J23: 0.01233333333 | K23: 0.05630434783
A24: E08000022 | B24: North Tyneside | C24: 0.061 | D24: 2207 | E24: 134.627 | F24: 9.75557971 | G24: 22.43783333 | H24: 102.433587 | I24: 0.004420289855 | J24: 0.01016666667 | K24: 0.04641304348
A25: E08000023 | B25: South Tyneside | C25: 0.069 | D25: 1647 | E25: 113.643 | F25: 8.235 | G25: 18.9405 | H25: 86.4675 | I25: 0.005 | J25: 0.0115 | K25: 0.0525
A26: E08000024 | B26: Sunderland | C26: 0.086 | D26: 2889 | E26: 248.454 | F26: 18.00391304 | G26: 41.409 | H26: 189.041087 | I26: 0.006231884058 | J26: 0.01433333333 | K26: 0.06543478261
A27: E12000002 | B27: NORTH WEST | C27: 0.07 | D27: 85838 | E27: 6008.66 | F27: 435.4101449 | G27: 1001.443333 | H27: 4571.806522 | I27: 0.005072463768 | J27: 0.01166666667 | K27: 0.05326086957
A28: E06000008 | B28: Blackburn with Darwen | C28: 0.097 | D28: 2115 | E28: 205.155 | F28: 14.86630435 | G28: 34.1925 | H28: 156.0961957 | I28: 0.007028985507 | J28: 0.01616666667 | K28: 0.07380434783
A29: E06000009 | B29: Blackpool | C29: 0.07 | D29: 1665 | E29: 116.55 | F29: 8.445652174 | G29: 19.425 | H29: 88.67934783 | I29: 0.005072463768 | J29: 0.01166666667 | K29: 0.05326086957
A30: E06000049 | B30: Cheshire East | C30: 0.061 | D30: 3848 | E30: 234.728 | F30: 17.00927536 | G30: 39.12133333 | H30: 178.5973913 | I30: 0.004420289855 | J30: 0.01016666667 | K30: 0.04641304348
